Workbook

Sheet Control
A1: Sheets | B1: Text File Names | C1: Description | E1: Notes: 50 sheets maximum
A2: Inf | B2: Infiltration.txt | C2: Percolation into and through the tailings | E2: Referenced text files must be in same root folder as this spreadsheet

Sheet PlotControl
A2: Model Name: | B2: Plant Site Version 6.0
C4: =B2 & " Model " & "Annual Percolation into the " & B8 -> Plant Site Version 6.0 Model Annual Percolation into the Cell 2W Banks
C5: =B2 & " Model Monthly Percoation into the " & B8 -> Plant Site Version 6.0 Model Monthly Percoation into the Cell 2W Banks
A8: Location to Plot (dropdown): | B8: Cell 2W Banks | C8: =MATCH(B8,$A$15:$A$22,0) -> 3
A10: Initial Time for Monthly Plot (yr): | B10: 0
B11: =B10+20 -> 20
A12: Standard | B12: =VLOOKUP($B$6,$A$25:$B$52,2,FALSE) -> 
A14: Locations
A15: Cell 2W Fines
A16: Cell 2W Coarse
A17: Cell 2W Banks
A18: Cell 2E Fines
A19: Cell 2E Coarse
A20: Cell 2E Banks
A21: Cell 1E Fines
A22: Cell 1E Coarse
I23: Annual Project Results | S23: Monthly Project Results
H24: Time | I24: P10 | J24: P50 | K24: P90 | L24: Mean | R24: Time | S24: P10 | T24: P50 | U24: P90 | V24: Mean
H25: 0 | I25: =SUM(OFFSET(Inf!$A$10,$H25*12,4*($C$8-1)+2,12,1)) -> 6.376861 | J25: =SUM(OFFSET(Inf!$A$10,$H25*12,4*($C$8-1)+3,12,1)) -> 9.07292 | K25: =SUM(OFFSET(Inf!$A$10,$H25*12,4*($C$8-1)+4,12,1)) -> 12.13768 | L25: =SUM(OFFSET(Inf!$A$10,$H25*12,4*($C$8-1)+1,12,1)) -> 9.16464 | R25: =B10 -> 0 | S25: =VLOOKUP($R25,Inf!$A$10:$AG$2410,4*($C$8-1)+3) -> 0.4749 | T25: =VLOOKUP($R25,Inf!$A$10:$AG$2410,4*($C$8-1)+4) -> 0.58799 | U25: =VLOOKUP($R25,Inf!$A$10:$AG$2410,4*($C$8-1)+5) -> 0.70693 | V25: =VLOOKUP($R25,Inf!$A$10:$AG$2410,4*($C$8-1)+2) -> 0.58991
H26: 1 | I26: =SUM(OFFSET(Inf!$A$10,$H26*12,4*($C$8-1)+2,12,1)) -> 6.4384 | J26: =SUM(OFFSET(Inf!$A$10,$H26*12,4*($C$8-1)+3,12,1)) -> 9.11169 | K26: =SUM(OFFSET(Inf!$A$10,$H26*12,4*($C$8-1)+4,12,1)) -> 12.30324 | L26: =SUM(OFFSET(Inf!$A$10,$H26*12,4*($C$8-1)+1,12,1)) -> 9.27532 | R26: =R25+1/12 -> 0.08333333333 | S26: =VLOOKUP($R26,Inf!$A$10:$AG$2410,4*($C$8-1)+3) -> 0.39009 | T26: =VLOOKUP($R26,Inf!$A$10:$AG$2410,4*($C$8-1)+4) -> 0.48299 | U26: =VLOOKUP($R26,Inf!$A$10:$AG$2410,4*($C$8-1)+5) -> 0.58069 | V26: =VLOOKUP($R26,Inf!$A$10:$AG$2410,4*($C$8-1)+2) -> 0.48457
H27: 2 | I27: =SUM(OFFSET(Inf!$A$10,$H27*12,4*($C$8-1)+2,12,1)) -> 6.245794 | J27: =SUM(OFFSET(Inf!$A$10,$H27*12,4*($C$8-1)+3,12,1)) -> 8.89888 | K27: =SUM(OFFSET(Inf!$A$10,$H27*12,4*($C$8-1)+4,12,1)) -> 11.90635 | L27: =SUM(OFFSET(Inf!$A$10,$H27*12,4*($C$8-1)+1,12,1)) -> 9.04756 | R27: =R26+1/12 -> 0.1666666667 | S27: =VLOOKUP($R27,Inf!$A$10:$AG$2410,4*($C$8-1)+3) -> 0.39009 | T27: =VLOOKUP($R27,Inf!$A$10:$AG$2410,4*($C$8-1)+4) -> 0.48299 | U27: =VLOOKUP($R27,Inf!$A$10:$AG$2410,4*($C$8-1)+5) -> 0.58069 | V27: =VLOOKUP($R27,Inf!$A$10:$AG$2410,4*($C$8-1)+2) -> 0.48457
H28: 3 | I28: =SUM(OFFSET(Inf!$A$10,$H28*12,4*($C$8-1)+2,12,1)) -> 6.563547 | J28: =SUM(OFFSET(Inf!$A$10,$H28*12,4*($C$8-1)+3,12,1)) -> 9.12988 | K28: =SUM(OFFSET(Inf!$A$10,$H28*12,4*($C$8-1)+4,12,1)) -> 12.20069 | L28: =SUM(OFFSET(Inf!$A$10,$H28*12,4*($C$8-1)+1,12,1)) -> 9.29883 | R28: 0.25 | S28: =VLOOKUP($R28,Inf!$A$10:$AG$2410,4*($C$8-1)+3) -> 0.026351 | T28: =VLOOKUP($R28,Inf!$A$10:$AG$2410,4*($C$8-1)+4) -> 0.19971 | U28: =VLOOKUP($R28,Inf!$A$10:$AG$2410,4*($C$8-1)+5) -> 0.37653 | V28: =VLOOKUP($R28,Inf!$A$10:$AG$2410,4*($C$8-1)+2) -> 0.20315
H29: 4 | I29: =SUM(OFFSET(Inf!$A$10,$H29*12,4*($C$8-1)+2,12,1)) -> 6.464829 | J29: =SUM(OFFSET(Inf!$A$10,$H29*12,4*($C$8-1)+3,12,1)) -> 9.02133 | K29: =SUM(OFFSET(Inf!$A$10,$H29*12,4*($C$8-1)+4,12,1)) -> 12.04939 | L29: =SUM(OFFSET(Inf!$A$10,$H29*12,4*($C$8-1)+1,12,1)) -> 9.14988 | R29: 0.3333333333 | S29: =VLOOKUP($R29,Inf!$A$10:$AG$2410,4*($C$8-1)+3) -> 0.45008 | T29: =VLOOKUP($R29,Inf!$A$10:$AG$2410,4*($C$8-1)+4) -> 0.73432 | U29: =VLOOKUP($R29,Inf!$A$10:$AG$2410,4*($C$8-1)+5) -> 1.0533 | V29: =VLOOKUP($R29,Inf!$A$10:$AG$2410,4*($C$8-1)+2) -> 0.74016
H30: 5 | I30: =SUM(OFFSET(Inf!$A$10,$H30*12,4*($C$8-1)+2,12,1)) -> 6.427001 | J30: =SUM(OFFSET(Inf!$A$10,$H30*12,4*($C$8-1)+3,12,1)) -> 9.04696 | K30: =SUM(OFFSET(Inf!$A$10,$H30*12,4*($C$8-1)+4,12,1)) -> 12.163 | L30: =SUM(OFFSET(Inf!$A$10,$H30*12,4*($C$8-1)+1,12,1)) -> 9.18469 | R30: 0.4166666667 | S30: =VLOOKUP($R30,Inf!$A$10:$AG$2410,4*($C$8-1)+3) -> 0.45008 | T30: =VLOOKUP($R30,Inf!$A$10:$AG$2410,4*($C$8-1)+4) -> 0.73432 | U30: =VLOOKUP($R30,Inf!$A$10:$AG$2410,4*($C$8-1)+5) -> 1.0533 | V30: =VLOOKUP($R30,Inf!$A$10:$AG$2410,4*($C$8-1)+2) -> 0.74016
H31: 6 | I31: =SUM(OFFSET(Inf!$A$10,$H31*12,4*($C$8-1)+2,12,1)) -> 6.48356 | J31: =SUM(OFFSET(Inf!$A$10,$H31*12,4*($C$8-1)+3,12,1)) -> 8.94805 | K31: =SUM(OFFSET(Inf!$A$10,$H31*12,4*($C$8-1)+4,12,1)) -> 11.84071 | L31: =SUM(OFFSET(Inf!$A$10,$H31*12,4*($C$8-1)+1,12,1)) -> 9.08317 | R31: 0.5 | S31: =VLOOKUP($R31,Inf!$A$10:$AG$2410,4*($C$8-1)+3) -> 0.96237 | T31: =VLOOKUP($R31,Inf!$A$10:$AG$2410,4*($C$8-1)+4) -> 1.3304 | U31: =VLOOKUP($R31,Inf!$A$10:$AG$2410,4*($C$8-1)+5) -> 1.7712 | V31: =VLOOKUP($R31,Inf!$A$10:$AG$2410,4*($C$8-1)+2) -> 1.3493
H32: 7 | I32: =SUM(OFFSET(Inf!$A$10,$H32*12,4*($C$8-1)+2,12,1)) -> 6.297166 | J32: =SUM(OFFSET(Inf!$A$10,$H32*12,4*($C$8-1)+3,12,1)) -> 9.07846 | K32: =SUM(OFFSET(Inf!$A$10,$H32*12,4*($C$8-1)+4,12,1)) -> 12.44993 | L32: =SUM(OFFSET(Inf!$A$10,$H32*12,4*($C$8-1)+1,12,1)) -> 9.23356 | R32: 0.5833333333 | S32: =VLOOKUP($R32,Inf!$A$10:$AG$2410,4*($C$8-1)+3) -> 0.52235 | T32: =VLOOKUP($R32,Inf!$A$10:$AG$2410,4*($C$8-1)+4) -> 0.86503 | U32: =VLOOKUP($R32,Inf!$A$10:$AG$2410,4*($C$8-1)+5) -> 1.2442 | V32: =VLOOKUP($R32,Inf!$A$10:$AG$2410,4*($C$8-1)+2) -> 0.87025
H33: 8 | I33: =SUM(OFFSET(Inf!$A$10,$H33*12,4*($C$8-1)+2,12,1)) -> 6.515179 | J33: =SUM(OFFSET(Inf!$A$10,$H33*12,4*($C$8-1)+3,12,1)) -> 9.18101 | K33: =SUM(OFFSET(Inf!$A$10,$H33*12,4*($C$8-1)+4,12,1)) -> 11.98708 | L33: =SUM(OFFSET(Inf!$A$10,$H33*12,4*($C$8-1)+1,12,1)) -> 9.23913 | R33: 0.6666666667 | S33: =VLOOKUP($R33,Inf!$A$10:$AG$2410,4*($C$8-1)+3) -> 0.52235 | T33: =VLOOKUP($R33,Inf!$A$10:$AG$2410,4*($C$8-1)+4) -> 0.86503 | U33: =VLOOKUP($R33,Inf!$A$10:$AG$2410,4*($C$8-1)+5) -> 1.2442 | V33: =VLOOKUP($R33,Inf!$A$10:$AG$2410,4*($C$8-1)+2) -> 0.87025
H34: 9 | I34: =SUM(OFFSET(Inf!$A$10,$H34*12,4*($C$8-1)+2,12,1)) -> 6.611413 | J34: =SUM(OFFSET(Inf!$A$10,$H34*12,4*($C$8-1)+3,12,1)) -> 9.04938 | K34: =SUM(OFFSET(Inf!$A$10,$H34*12,4*($C$8-1)+4,12,1)) -> 12.30269 | L34: =SUM(OFFSET(Inf!$A$10,$H34*12,4*($C$8-1)+1,12,1)) -> 9.24389 | R34: 0.75 | S34: =VLOOKUP($R34,Inf!$A$10:$AG$2410,4*($C$8-1)+3) -> 0.67728 | T34: =VLOOKUP($R34,Inf!$A$10:$AG$2410,4*($C$8-1)+4) -> 0.92268 | U34: =VLOOKUP($R34,Inf!$A$10:$AG$2410,4*($C$8-1)+5) -> 1.2186 | V34: =VLOOKUP($R34,Inf!$A$10:$AG$2410,4*($C$8-1)+2) -> 0.93619
H35: 10 | I35: =SUM(OFFSET(Inf!$A$10,$H35*12,4*($C$8-1)+2,12,1)) -> 6.379656 | J35: =SUM(OFFSET(Inf!$A$10,$H35*12,4*($C$8-1)+3,12,1)) -> 9.01358 | K35: =SUM(OFFSET(Inf!$A$10,$H35*12,4*($C$8-1)+4,12,1)) -> 11.89034 | L35: =SUM(OFFSET(Inf!$A$10,$H35*12,4*($C$8-1)+1,12,1)) -> 9.09715 | R35: 0.8333333333 | S35: =VLOOKUP($R35,Inf!$A$10:$AG$2410,4*($C$8-1)+3) -> 0.49886 | T35: =VLOOKUP($R35,Inf!$A$10:$AG$2410,4*($C$8-1)+4) -> 0.64964 | U35: =VLOOKUP($R35,Inf!$A$10:$AG$2410,4*($C$8-1)+5) -> 0.81267 | V35: =VLOOKUP($R35,Inf!$A$10:$AG$2410,4*($C$8-1)+2) -> 0.65496
H36: 11 | I36: =SUM(OFFSET(Inf!$A$10,$H36*12,4*($C$8-1)+2,12,1)) -> 6.534132 | J36: =SUM(OFFSET(Inf!$A$10,$H36*12,4*($C$8-1)+3,12,1)) -> 9.0745 | K36: =SUM(OFFSET(Inf!$A$10,$H36*12,4*($C$8-1)+4,12,1)) -> 12.20912 | L36: =SUM(OFFSET(Inf!$A$10,$H36*12,4*($C$8-1)+1,12,1)) -> 9.22148 | R36: 0.9166666667 | S36: =VLOOKUP($R36,Inf!$A$10:$AG$2410,4*($C$8-1)+3) -> 0.49886 | T36: =VLOOKUP($R36,Inf!$A$10:$AG$2410,4*($C$8-1)+4) -> 0.64964 | U36: =VLOOKUP($R36,Inf!$A$10:$AG$2410,4*($C$8-1)+5) -> 0.81267 | V36: =VLOOKUP($R36,Inf!$A$10:$AG$2410,4*($C$8-1)+2) -> 0.65496
H37: 12 | I37: =SUM(OFFSET(Inf!$A$10,$H37*12,4*($C$8-1)+2,12,1)) -> 6.440871 | J37: =SUM(OFFSET(Inf!$A$10,$H37*12,4*($C$8-1)+3,12,1)) -> 9.2288 | K37: =SUM(OFFSET(Inf!$A$10,$H37*12,4*($C$8-1)+4,12,1)) -> 12.05523 | L37: =SUM(OFFSET(Inf!$A$10,$H37*12,4*($C$8-1)+1,12,1)) -> 9.28008 | R37: 1 | S37: =VLOOKUP($R37,Inf!$A$10:$AG$2410,4*($C$8-1)+3) -> 0.47775 | T37: =VLOOKUP($R37,Inf!$A$10:$AG$2410,4*($C$8-1)+4) -> 0.59068 | U37: =VLOOKUP($R37,Inf!$A$10:$AG$2410,4*($C$8-1)+5) -> 0.72315 | V37: =VLOOKUP($R37,Inf!$A$10:$AG$2410,4*($C$8-1)+2) -> 0.59737
H38: 13 | I38: =SUM(OFFSET(Inf!$A$10,$H38*12,4*($C$8-1)+2,12,1)) -> 6.71496 | J38: =SUM(OFFSET(Inf!$A$10,$H38*12,4*($C$8-1)+3,12,1)) -> 9.21522 | K38: =SUM(OFFSET(Inf!$A$10,$H38*12,4*($C$8-1)+4,12,1)) -> 12.27842 | L38: =SUM(OFFSET(Inf!$A$10,$H38*12,4*($C$8-1)+1,12,1)) -> 9.35469 | R38: 1.083333333 | S38: =VLOOKUP($R38,Inf!$A$10:$AG$2410,4*($C$8-1)+3) -> 0.39244 | T38: =VLOOKUP($R38,Inf!$A$10:$AG$2410,4*($C$8-1)+4) -> 0.4852 | U38: =VLOOKUP($R38,Inf!$A$10:$AG$2410,4*($C$8-1)+5) -> 0.59401 | V38: =VLOOKUP($R38,Inf!$A$10:$AG$2410,4*($C$8-1)+2) -> 0.4907
H39: 14 | I39: =SUM(OFFSET(Inf!$A$10,$H39*12,4*($C$8-1)+2,12,1)) -> 6.494213 | J39: =SUM(OFFSET(Inf!$A$10,$H39*12,4*($C$8-1)+3,12,1)) -> 9.04841 | K39: =SUM(OFFSET(Inf!$A$10,$H39*12,4*($C$8-1)+4,12,1)) -> 12.38823 | L39: =SUM(OFFSET(Inf!$A$10,$H39*12,4*($C$8-1)+1,12,1)) -> 9.23044 | R39: 1.166666667 | S39: =VLOOKUP($R39,Inf!$A$10:$AG$2410,4*($C$8-1)+3) -> 0.39244 | T39: =VLOOKUP($R39,Inf!$A$10:$AG$2410,4*($C$8-1)+4) -> 0.4852 | U39: =VLOOKUP($R39,Inf!$A$10:$AG$2410,4*($C$8-1)+5) -> 0.59401 | V39: =VLOOKUP($R39,Inf!$A$10:$AG$2410,4*($C$8-1)+2) -> 0.4907
H40: 15 | I40: =SUM(OFFSET(Inf!$A$10,$H40*12,4*($C$8-1)+2,12,1)) -> 6.392425 | J40: =SUM(OFFSET(Inf!$A$10,$H40*12,4*($C$8-1)+3,12,1)) -> 9.06549 | K40: =SUM(OFFSET(Inf!$A$10,$H40*12,4*($C$8-1)+4,12,1)) -> 12.11584 | L40: =SUM(OFFSET(Inf!$A$10,$H40*12,4*($C$8-1)+1,12,1)) -> 9.13203 | R40: 1.25 | S40: =VLOOKUP($R40,Inf!$A$10:$AG$2410,4*($C$8-1)+3) -> 0.23515 | T40: =VLOOKUP($R40,Inf!$A$10:$AG$2410,4*($C$8-1)+4) -> 0.32235 | U40: =VLOOKUP($R40,Inf!$A$10:$AG$2410,4*($C$8-1)+5) -> 0.4264 | V40: =VLOOKUP($R40,Inf!$A$10:$AG$2410,4*($C$8-1)+2) -> 0.32724
H41: 16 | I41: =SUM(OFFSET(Inf!$A$10,$H41*12,4*($C$8-1)+2,12,1)) -> 6.499284 | J41: =SUM(OFFSET(Inf!$A$10,$H41*12,4*($C$8-1)+3,12,1)) -> 9.10833 | K41: =SUM(OFFSET(Inf!$A$10,$H41*12,4*($C$8-1)+4,12,1)) -> 12.04742 | L41: =SUM(OFFSET(Inf!$A$10,$H41*12,4*($C$8-1)+1,12,1)) -> 9.17588 | R41: 1.333333333 | S41: =VLOOKUP($R41,Inf!$A$10:$AG$2410,4*($C$8-1)+3) -> 0.45439 | T41: =VLOOKUP($R41,Inf!$A$10:$AG$2410,4*($C$8-1)+4) -> 0.73117 | U41: =VLOOKUP($R41,Inf!$A$10:$AG$2410,4*($C$8-1)+5) -> 1.0652 | V41: =VLOOKUP($R41,Inf!$A$10:$AG$2410,4*($C$8-1)+2) -> 0.74866
H42: 17 | I42: =SUM(OFFSET(Inf!$A$10,$H42*12,4*($C$8-1)+2,12,1)) -> 6.296038 | J42: =SUM(OFFSET(Inf!$A$10,$H42*12,4*($C$8-1)+3,12,1)) -> 8.95189 | K42: =SUM(OFFSET(Inf!$A$10,$H42*12,4*($C$8-1)+4,12,1)) -> 11.75479 | L42: =SUM(OFFSET(Inf!$A$10,$H42*12,4*($C$8-1)+1,12,1)) -> 9.02182 | R42: 1.416666667 | S42: =VLOOKUP($R42,Inf!$A$10:$AG$2410,4*($C$8-1)+3) -> 0.45439 | T42: =VLOOKUP($R42,Inf!$A$10:$AG$2410,4*($C$8-1)+4) -> 0.73117 | U42: =VLOOKUP($R42,Inf!$A$10:$AG$2410,4*($C$8-1)+5) -> 1.0652 | V42: =VLOOKUP($R42,Inf!$A$10:$AG$2410,4*($C$8-1)+2) -> 0.74866
H43: 18 | I43: =SUM(OFFSET(Inf!$A$10,$H43*12,4*($C$8-1)+2,12,1)) -> 6.482915 | J43: =SUM(OFFSET(Inf!$A$10,$H43*12,4*($C$8-1)+3,12,1)) -> 9.13213 | K43: =SUM(OFFSET(Inf!$A$10,$H43*12,4*($C$8-1)+4,12,1)) -> 12.31754 | L43: =SUM(OFFSET(Inf!$A$10,$H43*12,4*($C$8-1)+1,12,1)) -> 9.27822 | R43: 1.5 | S43: =VLOOKUP($R43,Inf!$A$10:$AG$2410,4*($C$8-1)+3) -> 0.97046 | T43: =VLOOKUP($R43,Inf!$A$10:$AG$2410,4*($C$8-1)+4) -> 1.3413 | U43: =VLOOKUP($R43,Inf!$A$10:$AG$2410,4*($C$8-1)+5) -> 1.7884 | V43: =VLOOKUP($R43,Inf!$A$10:$AG$2410,4*($C$8-1)+2) -> 1.3654
H44: 19 | I44: =SUM(OFFSET(Inf!$A$10,$H44*12,4*($C$8-1)+2,12,1)) -> 6.390078 | J44: =SUM(OFFSET(Inf!$A$10,$H44*12,4*($C$8-1)+3,12,1)) -> 9.04552 | K44: =SUM(OFFSET(Inf!$A$10,$H44*12,4*($C$8-1)+4,12,1)) -> 12.09168 | L44: =SUM(OFFSET(Inf!$A$10,$H44*12,4*($C$8-1)+1,12,1)) -> 9.13962 | R44: 1.583333333 | S44: =VLOOKUP($R44,Inf!$A$10:$AG$2410,4*($C$8-1)+3) -> 0.53174 | T44: =VLOOKUP($R44,Inf!$A$10:$AG$2410,4*($C$8-1)+4) -> 0.86111 | U44: =VLOOKUP($R44,Inf!$A$10:$AG$2410,4*($C$8-1)+5) -> 1.2597 | V44: =VLOOKUP($R44,Inf!$A$10:$AG$2410,4*($C$8-1)+2) -> 0.88021
H45: 20 | I45: =SUM(OFFSET(Inf!$A$10,$H45*12,4*($C$8-1)+2,12,1)) -> 6.55429 | J45: =SUM(OFFSET(Inf!$A$10,$H45*12,4*($C$8-1)+3,12,1)) -> 8.95555 | K45: =SUM(OFFSET(Inf!$A$10,$H45*12,4*($C$8-1)+4,12,1)) -> 11.95618 | L45: =SUM(OFFSET(Inf!$A$10,$H45*12,4*($C$8-1)+1,12,1)) -> 9.13099 | R45: 1.666666667 | S45: =VLOOKUP($R45,Inf!$A$10:$AG$2410,4*($C$8-1)+3) -> 0.53174 | T45: =VLOOKUP($R45,Inf!$A$10:$AG$2410,4*($C$8-1)+4) -> 0.86111 | U45: =VLOOKUP($R45,Inf!$A$10:$AG$2410,4*($C$8-1)+5) -> 1.2597 | V45: =VLOOKUP($R45,Inf!$A$10:$AG$2410,4*($C$8-1)+2) -> 0.88021
H46: 21 | I46: =SUM(OFFSET(Inf!$A$10,$H46*12,4*($C$8-1)+2,12,1)) -> 6.559511 | J46: =SUM(OFFSET(Inf!$A$10,$H46*12,4*($C$8-1)+3,12,1)) -> 9.23125 | K46: =SUM(OFFSET(Inf!$A$10,$H46*12,4*($C$8-1)+4,12,1)) -> 11.90809 | L46: =SUM(OFFSET(Inf!$A$10,$H46*12,4*($C$8-1)+1,12,1)) -> 9.24966 | R46: 1.75 | S46: =VLOOKUP($R46,Inf!$A$10:$AG$2410,4*($C$8-1)+3) -> 0.97223 | T46: =VLOOKUP($R46,Inf!$A$10:$AG$2410,4*($C$8-1)+4) -> 1.3287 | U46: =VLOOKUP($R46,Inf!$A$10:$AG$2410,4*($C$8-1)+5) -> 1.7551 | V46: =VLOOKUP($R46,Inf!$A$10:$AG$2410,4*($C$8-1)+2) -> 1.3488
H47: 22 | I47: =SUM(OFFSET(Inf!$A$10,$H47*12,4*($C$8-1)+2,12,1)) -> 6.429758 | J47: =SUM(OFFSET(Inf!$A$10,$H47*12,4*($C$8-1)+3,12,1)) -> 8.92027 | K47: =SUM(OFFSET(Inf!$A$10,$H47*12,4*($C$8-1)+4,12,1)) -> 12.21683 | L47: =SUM(OFFSET(Inf!$A$10,$H47*12,4*($C$8-1)+1,12,1)) -> 9.17717 | R47: 1.833333333 | S47: =VLOOKUP($R47,Inf!$A$10:$AG$2410,4*($C$8-1)+3) -> 0.50492 | T47: =VLOOKUP($R47,Inf!$A$10:$AG$2410,4*($C$8-1)+4) -> 0.65102 | U47: =VLOOKUP($R47,Inf!$A$10:$AG$2410,4*($C$8-1)+5) -> 0.83319 | V47: =VLOOKUP($R47,Inf!$A$10:$AG$2410,4*($C$8-1)+2) -> 0.66299
H48: 23 | I48: =SUM(OFFSET(Inf!$A$10,$H48*12,4*($C$8-1)+2,12,1)) -> 6.346274 | J48: =SUM(OFFSET(Inf!$A$10,$H48*12,4*($C$8-1)+3,12,1)) -> 9.06596 | K48: =SUM(OFFSET(Inf!$A$10,$H48*12,4*($C$8-1)+4,12,1)) -> 12.05147 | L48: =SUM(OFFSET(Inf!$A$10,$H48*12,4*($C$8-1)+1,12,1)) -> 9.19236 | R48: 1.916666667 | S48: =VLOOKUP($R48,Inf!$A$10:$AG$2410,4*($C$8-1)+3) -> 0.50492 | T48: =VLOOKUP($R48,Inf!$A$10:$AG$2410,4*($C$8-1)+4) -> 0.65102 | U48: =VLOOKUP($R48,Inf!$A$10:$AG$2410,4*($C$8-1)+5) -> 0.83319 | V48: =VLOOKUP($R48,Inf!$A$10:$AG$2410,4*($C$8-1)+2) -> 0.66299
H49: 24 | I49: =SUM(OFFSET(Inf!$A$10,$H49*12,4*($C$8-1)+2,12,1)) -> 6.236829 | J49: =SUM(OFFSET(Inf!$A$10,$H49*12,4*($C$8-1)+3,12,1)) -> 8.9255 | K49: =SUM(OFFSET(Inf!$A$10,$H49*12,4*($C$8-1)+4,12,1)) -> 11.84222 | L49: =SUM(OFFSET(Inf!$A$10,$H49*12,4*($C$8-1)+1,12,1)) -> 9.00322 | R49: 2 | S49: =VLOOKUP($R49,Inf!$A$10:$AG$2410,4*($C$8-1)+3) -> 0.58013 | T49: =VLOOKUP($R49,Inf!$A$10:$AG$2410,4*($C$8-1)+4) -> 0.71726 | U49: =VLOOKUP($R49,Inf!$A$10:$AG$2410,4*($C$8-1)+5) -> 0.87811 | V49: =VLOOKUP($R49,Inf!$A$10:$AG$2410,4*($C$8-1)+2) -> 0.72538
H50: 25 | I50: =SUM(OFFSET(Inf!$A$10,$H50*12,4*($C$8-1)+2,12,1)) -> 6.725888 | J50: =SUM(OFFSET(Inf!$A$10,$H50*12,4*($C$8-1)+3,12,1)) -> 9.10579 | K50: =SUM(OFFSET(Inf!$A$10,$H50*12,4*($C$8-1)+4,12,1)) -> 12.19107 | L50: =SUM(OFFSET(Inf!$A$10,$H50*12,4*($C$8-1)+1,12,1)) -> 9.28049 | R50: 2.083333333 | S50: =VLOOKUP($R50,Inf!$A$10:$AG$2410,4*($C$8-1)+3) -> 0.39102 | T50: =VLOOKUP($R50,Inf!$A$10:$AG$2410,4*($C$8-1)+4) -> 0.47547 | U50: =VLOOKUP($R50,Inf!$A$10:$AG$2410,4*($C$8-1)+5) -> 0.57381 | V50: =VLOOKUP($R50,Inf!$A$10:$AG$2410,4*($C$8-1)+2) -> 0.47907
H51: 26 | I51: =SUM(OFFSET(Inf!$A$10,$H51*12,4*($C$8-1)+2,12,1)) -> 6.313857 | J51: =SUM(OFFSET(Inf!$A$10,$H51*12,4*($C$8-1)+3,12,1)) -> 8.93485 | K51: =SUM(OFFSET(Inf!$A$10,$H51*12,4*($C$8-1)+4,12,1)) -> 11.90731 | L51: =SUM(OFFSET(Inf!$A$10,$H51*12,4*($C$8-1)+1,12,1)) -> 9.07343 | R51: 2.166666667 | S51: =VLOOKUP($R51,Inf!$A$10:$AG$2410,4*($C$8-1)+3) -> 0.39102 | T51: =VLOOKUP($R51,Inf!$A$10:$AG$2410,4*($C$8-1)+4) -> 0.47547 | U51: =VLOOKUP($R51,Inf!$A$10:$AG$2410,4*($C$8-1)+5) -> 0.57381 | V51: =VLOOKUP($R51,Inf!$A$10:$AG$2410,4*($C$8-1)+2) -> 0.47907
H52: 27 | I52: =SUM(OFFSET(Inf!$A$10,$H52*12,4*($C$8-1)+2,12,1)) -> 6.585568 | J52: =SUM(OFFSET(Inf!$A$10,$H52*12,4*($C$8-1)+3,12,1)) -> 9.03214 | K52: =SUM(OFFSET(Inf!$A$10,$H52*12,4*($C$8-1)+4,12,1)) -> 11.88821 | L52: =SUM(OFFSET(Inf!$A$10,$H52*12,4*($C$8-1)+1,12,1)) -> 9.1672 | R52: 2.25 | S52: =VLOOKUP($R52,Inf!$A$10:$AG$2410,4*($C$8-1)+3) -> 0.22625 | T52: =VLOOKUP($R52,Inf!$A$10:$AG$2410,4*($C$8-1)+4) -> 0.31222 | U52: =VLOOKUP($R52,Inf!$A$10:$AG$2410,4*($C$8-1)+5) -> 0.41574 | V52: =VLOOKUP($R52,Inf!$A$10:$AG$2410,4*($C$8-1)+2) -> 0.31922
H53: 28 | I53: =SUM(OFFSET(Inf!$A$10,$H53*12,4*($C$8-1)+2,12,1)) -> 6.338947 | J53: =SUM(OFFSET(Inf!$A$10,$H53*12,4*($C$8-1)+3,12,1)) -> 8.80494 | K53: =SUM(OFFSET(Inf!$A$10,$H53*12,4*($C$8-1)+4,12,1)) -> 11.81161 | L53: =SUM(OFFSET(Inf!$A$10,$H53*12,4*($C$8-1)+1,12,1)) -> 8.98757 | R53: 2.333333333 | S53: =VLOOKUP($R53,Inf!$A$10:$AG$2410,4*($C$8-1)+3) -> 0.43454 | T53: =VLOOKUP($R53,Inf!$A$10:$AG$2410,4*($C$8-1)+4) -> 0.7215 | U53: =VLOOKUP($R53,Inf!$A$10:$AG$2410,4*($C$8-1)+5) -> 1.0196 | V53: =VLOOKUP($R53,Inf!$A$10:$AG$2410,4*($C$8-1)+2) -> 0.72985
H54: 29 | I54: =SUM(OFFSET(Inf!$A$10,$H54*12,4*($C$8-1)+2,12,1)) -> 6.309404 | J54: =SUM(OFFSET(Inf!$A$10,$H54*12,4*($C$8-1)+3,12,1)) -> 9.08245 | K54: =SUM(OFFSET(Inf!$A$10,$H54*12,4*($C$8-1)+4,12,1)) -> 12.12649 | L54: =SUM(OFFSET(Inf!$A$10,$H54*12,4*($C$8-1)+1,12,1)) -> 9.1871 | R54: 2.416666667 | S54: =VLOOKUP($R54,Inf!$A$10:$AG$2410,4*($C$8-1)+3) -> 0.43454 | T54: =VLOOKUP($R54,Inf!$A$10:$AG$2410,4*($C$8-1)+4) -> 0.7215 | U54: =VLOOKUP($R54,Inf!$A$10:$AG$2410,4*($C$8-1)+5) -> 1.0196 | V54: =VLOOKUP($R54,Inf!$A$10:$AG$2410,4*($C$8-1)+2) -> 0.72985
H55: 30 | I55: =SUM(OFFSET(Inf!$A$10,$H55*12,4*($C$8-1)+2,12,1)) -> 6.405609 | J55: =SUM(OFFSET(Inf!$A$10,$H55*12,4*($C$8-1)+3,12,1)) -> 8.76977 | K55: =SUM(OFFSET(Inf!$A$10,$H55*12,4*($C$8-1)+4,12,1)) -> 12.12068 | L55: =SUM(OFFSET(Inf!$A$10,$H55*12,4*($C$8-1)+1,12,1)) -> 9.12624 | R55: 2.5 | S55: =VLOOKUP($R55,Inf!$A$10:$AG$2410,4*($C$8-1)+3) -> 0.58525 | T55: =VLOOKUP($R55,Inf!$A$10:$AG$2410,4*($C$8-1)+4) -> 0.93841 | U55: =VLOOKUP($R55,Inf!$A$10:$AG$2410,4*($C$8-1)+5) -> 1.3128 | V55: =VLOOKUP($R55,Inf!$A$10:$AG$2410,4*($C$8-1)+2) -> 0.95042
H56: 31 | I56: =SUM(OFFSET(Inf!$A$10,$H56*12,4*($C$8-1)+2,12,1)) -> 6.479694 | J56: =SUM(OFFSET(Inf!$A$10,$H56*12,4*($C$8-1)+3,12,1)) -> 8.97184 | K56: =SUM(OFFSET(Inf!$A$10,$H56*12,4*($C$8-1)+4,12,1)) -> 12.36858 | L56: =SUM(OFFSET(Inf!$A$10,$H56*12,4*($C$8-1)+1,12,1)) -> 9.17046 | R56: 2.583333333 | S56: =VLOOKUP($R56,Inf!$A$10:$AG$2410,4*($C$8-1)+3) -> 0.5056 | T56: =VLOOKUP($R56,Inf!$A$10:$AG$2410,4*($C$8-1)+4) -> 0.84757 | U56: =VLOOKUP($R56,Inf!$A$10:$AG$2410,4*($C$8-1)+5) -> 1.2061 | V56: =VLOOKUP($R56,Inf!$A$10:$AG$2410,4*($C$8-1)+2) -> 0.85806
H57: 32 | I57: =SUM(OFFSET(Inf!$A$10,$H57*12,4*($C$8-1)+2,12,1)) -> 6.391415 | J57: =SUM(OFFSET(Inf!$A$10,$H57*12,4*($C$8-1)+3,12,1)) -> 9.15861 | K57: =SUM(OFFSET(Inf!$A$10,$H57*12,4*($C$8-1)+4,12,1)) -> 12.1153 | L57: =SUM(OFFSET(Inf!$A$10,$H57*12,4*($C$8-1)+1,12,1)) -> 9.24925 | R57: 2.666666667 | S57: =VLOOKUP($R57,Inf!$A$10:$AG$2410,4*($C$8-1)+3) -> 0.5056 | T57: =VLOOKUP($R57,Inf!$A$10:$AG$2410,4*($C$8-1)+4) -> 0.84757 | U57: =VLOOKUP($R57,Inf!$A$10:$AG$2410,4*($C$8-1)+5) -> 1.2061 | V57: =VLOOKUP($R57,Inf!$A$10:$AG$2410,4*($C$8-1)+2) -> 0.85806
H58: 33 | I58: =SUM(OFFSET(Inf!$A$10,$H58*12,4*($C$8-1)+2,12,1)) -> 6.269395 | J58: =SUM(OFFSET(Inf!$A$10,$H58*12,4*($C$8-1)+3,12,1)) -> 9.04817 | K58: =SUM(OFFSET(Inf!$A$10,$H58*12,4*($C$8-1)+4,12,1)) -> 11.88035 | L58: =SUM(OFFSET(Inf!$A$10,$H58*12,4*($C$8-1)+1,12,1)) -> 9.08721 | R58: 2.75 | S58: =VLOOKUP($R58,Inf!$A$10:$AG$2410,4*($C$8-1)+3) -> 0.65708 | T58: =VLOOKUP($R58,Inf!$A$10:$AG$2410,4*($C$8-1)+4) -> 0.90273 | U58: =VLOOKUP($R58,Inf!$A$10:$AG$2410,4*($C$8-1)+5) -> 1.201 | V58: =VLOOKUP($R58,Inf!$A$10:$AG$2410,4*($C$8-1)+2) -> 0.92423
H59: 34 | I59: =SUM(OFFSET(Inf!$A$10,$H59*12,4*($C$8-1)+2,12,1)) -> 6.434045 | J59: =SUM(OFFSET(Inf!$A$10,$H59*12,4*($C$8-1)+3,12,1)) -> 8.97328 | K59: =SUM(OFFSET(Inf!$A$10,$H59*12,4*($C$8-1)+4,12,1)) -> 12.00069 | L59: =SUM(OFFSET(Inf!$A$10,$H59*12,4*($C$8-1)+1,12,1)) -> 9.11321 | R59: 2.833333333 | S59: =VLOOKUP($R59,Inf!$A$10:$AG$2410,4*($C$8-1)+3) -> 0.50084 | T59: =VLOOKUP($R59,Inf!$A$10:$AG$2410,4*($C$8-1)+4) -> 0.63944 | U59: =VLOOKUP($R59,Inf!$A$10:$AG$2410,4*($C$8-1)+5) -> 0.80369 | V59: =VLOOKUP($R59,Inf!$A$10:$AG$2410,4*($C$8-1)+2) -> 0.64698
H60: 35 | I60: =SUM(OFFSET(Inf!$A$10,$H60*12,4*($C$8-1)+2,12,1)) -> 6.524493 | J60: =SUM(OFFSET(Inf!$A$10,$H60*12,4*($C$8-1)+3,12,1)) -> 8.99624 | K60: =SUM(OFFSET(Inf!$A$10,$H60*12,4*($C$8-1)+4,12,1)) -> 12.06353 | L60: =SUM(OFFSET(Inf!$A$10,$H60*12,4*($C$8-1)+1,12,1)) -> 9.18161 | R60: 2.916666667 | S60: =VLOOKUP($R60,Inf!$A$10:$AG$2410,4*($C$8-1)+3) -> 0.50084 | T60: =VLOOKUP($R60,Inf!$A$10:$AG$2410,4*($C$8-1)+4) -> 0.63944 | U60: =VLOOKUP($R60,Inf!$A$10:$AG$2410,4*($C$8-1)+5) -> 0.80369 | V60: =VLOOKUP($R60,Inf!$A$10:$AG$2410,4*($C$8-1)+2) -> 0.64698
H61: 36 | I61: =SUM(OFFSET(Inf!$A$10,$H61*12,4*($C$8-1)+2,12,1)) -> 6.265508 | J61: =SUM(OFFSET(Inf!$A$10,$H61*12,4*($C$8-1)+3,12,1)) -> 8.84718 | K61: =SUM(OFFSET(Inf!$A$10,$H61*12,4*($C$8-1)+4,12,1)) -> 11.91654 | L61: =SUM(OFFSET(Inf!$A$10,$H61*12,4*($C$8-1)+1,12,1)) -> 9.058 | R61: 3 | S61: =VLOOKUP($R61,Inf!$A$10:$AG$2410,4*($C$8-1)+3) -> 0.47691 | T61: =VLOOKUP($R61,Inf!$A$10:$AG$2410,4*($C$8-1)+4) -> 0.5886 | U61: =VLOOKUP($R61,Inf!$A$10:$AG$2410,4*($C$8-1)+5) -> 0.72173 | V61: =VLOOKUP($R61,Inf!$A$10:$AG$2410,4*($C$8-1)+2) -> 0.59322
H62: 37 | I62: =SUM(OFFSET(Inf!$A$10,$H62*12,4*($C$8-1)+2,12,1)) -> 6.610082 | J62: =SUM(OFFSET(Inf!$A$10,$H62*12,4*($C$8-1)+3,12,1)) -> 9.08007 | K62: =SUM(OFFSET(Inf!$A$10,$H62*12,4*($C$8-1)+4,12,1)) -> 12.21864 | L62: =SUM(OFFSET(Inf!$A$10,$H62*12,4*($C$8-1)+1,12,1)) -> 9.2865 | R62: 3.083333333 | S62: =VLOOKUP($R62,Inf!$A$10:$AG$2410,4*($C$8-1)+3) -> 0.39175 | T62: =VLOOKUP($R62,Inf!$A$10:$AG$2410,4*($C$8-1)+4) -> 0.4835 | U62: =VLOOKUP($R62,Inf!$A$10:$AG$2410,4*($C$8-1)+5) -> 0.59285 | V62: =VLOOKUP($R62,Inf!$A$10:$AG$2410,4*($C$8-1)+2) -> 0.48729
H63: 38 | I63: =SUM(OFFSET(Inf!$A$10,$H63*12,4*($C$8-1)+2,12,1)) -> 6.53011 | J63: =SUM(OFFSET(Inf!$A$10,$H63*12,4*($C$8-1)+3,12,1)) -> 9.08417 | K63: =SUM(OFFSET(Inf!$A$10,$H63*12,4*($C$8-1)+4,12,1)) -> 11.80037 | L63: =SUM(OFFSET(Inf!$A$10,$H63*12,4*($C$8-1)+1,12,1)) -> 9.13189 | R63: 3.166666667 | S63: =VLOOKUP($R63,Inf!$A$10:$AG$2410,4*($C$8-1)+3) -> 0.39175 | T63: =VLOOKUP($R63,Inf!$A$10:$AG$2410,4*($C$8-1)+4) -> 0.4835 | U63: =VLOOKUP($R63,Inf!$A$10:$AG$2410,4*($C$8-1)+5) -> 0.59285 | V63: =VLOOKUP($R63,Inf!$A$10:$AG$2410,4*($C$8-1)+2) -> 0.48729
H64: 39 | I64: =SUM(OFFSET(Inf!$A$10,$H64*12,4*($C$8-1)+2,12,1)) -> 6.374034 | J64: =SUM(OFFSET(Inf!$A$10,$H64*12,4*($C$8-1)+3,12,1)) -> 8.95313 | K64: =SUM(OFFSET(Inf!$A$10,$H64*12,4*($C$8-1)+4,12,1)) -> 11.75761 | L64: =SUM(OFFSET(Inf!$A$10,$H64*12,4*($C$8-1)+1,12,1)) -> 9.02529 | R64: 3.25 | S64: =VLOOKUP($R64,Inf!$A$10:$AG$2410,4*($C$8-1)+3) -> 0.050707 | T64: =VLOOKUP($R64,Inf!$A$10:$AG$2410,4*($C$8-1)+4) -> 0.19468 | U64: =VLOOKUP($R64,Inf!$A$10:$AG$2410,4*($C$8-1)+5) -> 0.38184 | V64: =VLOOKUP($R64,Inf!$A$10:$AG$2410,4*($C$8-1)+2) -> 0.21127
H65: 40 | I65: =SUM(OFFSET(Inf!$A$10,$H65*12,4*($C$8-1)+2,12,1)) -> 6.424287 | J65: =SUM(OFFSET(Inf!$A$10,$H65*12,4*($C$8-1)+3,12,1)) -> 9.10995 | K65: =SUM(OFFSET(Inf!$A$10,$H65*12,4*($C$8-1)+4,12,1)) -> 12.26637 | L65: =SUM(OFFSET(Inf!$A$10,$H65*12,4*($C$8-1)+1,12,1)) -> 9.22686 | R65: 3.333333333 | S65: =VLOOKUP($R65,Inf!$A$10:$AG$2410,4*($C$8-1)+3) -> 0.47843 | T65: =VLOOKUP($R65,Inf!$A$10:$AG$2410,4*($C$8-1)+4) -> 0.7369 | U65: =VLOOKUP($R65,Inf!$A$10:$AG$2410,4*($C$8-1)+5) -> 1.0627 | V65: =VLOOKUP($R65,Inf!$A$10:$AG$2410,4*($C$8-1)+2) -> 0.75567
H66: 41 | I66: =SUM(OFFSET(Inf!$A$10,$H66*12,4*($C$8-1)+2,12,1)) -> 6.298007 | J66: =SUM(OFFSET(Inf!$A$10,$H66*12,4*($C$8-1)+3,12,1)) -> 8.93507 | K66: =SUM(OFFSET(Inf!$A$10,$H66*12,4*($C$8-1)+4,12,1)) -> 11.63965 | L66: =SUM(OFFSET(Inf!$A$10,$H66*12,4*($C$8-1)+1,12,1)) -> 8.96717 | R66: 3.416666667 | S66: =VLOOKUP($R66,Inf!$A$10:$AG$2410,4*($C$8-1)+3) -> 0.47843 | T66: =VLOOKUP($R66,Inf!$A$10:$AG$2410,4*($C$8-1)+4) -> 0.7369 | U66: =VLOOKUP($R66,Inf!$A$10:$AG$2410,4*($C$8-1)+5) -> 1.0627 | V66: =VLOOKUP($R66,Inf!$A$10:$AG$2410,4*($C$8-1)+2) -> 0.75567
H67: 42 | I67: =SUM(OFFSET(Inf!$A$10,$H67*12,4*($C$8-1)+2,12,1)) -> 6.547156 | J67: =SUM(OFFSET(Inf!$A$10,$H67*12,4*($C$8-1)+3,12,1)) -> 9.07293 | K67: =SUM(OFFSET(Inf!$A$10,$H67*12,4*($C$8-1)+4,12,1)) -> 11.98823 | L67: =SUM(OFFSET(Inf!$A$10,$H67*12,4*($C$8-1)+1,12,1)) -> 9.18272 | R67: 3.5 | S67: =VLOOKUP($R67,Inf!$A$10:$AG$2410,4*($C$8-1)+3) -> 0.63963 | T67: =VLOOKUP($R67,Inf!$A$10:$AG$2410,4*($C$8-1)+4) -> 0.96322 | U67: =VLOOKUP($R67,Inf!$A$10:$AG$2410,4*($C$8-1)+5) -> 1.3635 | V67: =VLOOKUP($R67,Inf!$A$10:$AG$2410,4*($C$8-1)+2) -> 0.98286
H68: 43 | I68: =SUM(OFFSET(Inf!$A$10,$H68*12,4*($C$8-1)+2,12,1)) -> 6.50868 | J68: =SUM(OFFSET(Inf!$A$10,$H68*12,4*($C$8-1)+3,12,1)) -> 9.13144 | K68: =SUM(OFFSET(Inf!$A$10,$H68*12,4*($C$8-1)+4,12,1)) -> 11.99848 | L68: =SUM(OFFSET(Inf!$A$10,$H68*12,4*($C$8-1)+1,12,1)) -> 9.20132 | R68: 3.583333333 | S68: =VLOOKUP($R68,Inf!$A$10:$AG$2410,4*($C$8-1)+3) -> 0.55915 | T68: =VLOOKUP($R68,Inf!$A$10:$AG$2410,4*($C$8-1)+4) -> 0.86419 | U68: =VLOOKUP($R68,Inf!$A$10:$AG$2410,4*($C$8-1)+5) -> 1.2563 | V68: =VLOOKUP($R68,Inf!$A$10:$AG$2410,4*($C$8-1)+2) -> 0.88882
H69: 44 | I69: =SUM(OFFSET(Inf!$A$10,$H69*12,4*($C$8-1)+2,12,1)) -> 6.356068 | J69: =SUM(OFFSET(Inf!$A$10,$H69*12,4*($C$8-1)+3,12,1)) -> 9.03887 | K69: =SUM(OFFSET(Inf!$A$10,$H69*12,4*($C$8-1)+4,12,1)) -> 12.35031 | L69: =SUM(OFFSET(Inf!$A$10,$H69*12,4*($C$8-1)+1,12,1)) -> 9.14794 | R69: 3.666666667 | S69: =VLOOKUP($R69,Inf!$A$10:$AG$2410,4*($C$8-1)+3) -> 0.55915 | T69: =VLOOKUP($R69,Inf!$A$10:$AG$2410,4*($C$8-1)+4) -> 0.86419 | U69: =VLOOKUP($R69,Inf!$A$10:$AG$2410,4*($C$8-1)+5) -> 1.2563 | V69: =VLOOKUP($R69,Inf!$A$10:$AG$2410,4*($C$8-1)+2) -> 0.88882
H70: 45 | I70: =SUM(OFFSET(Inf!$A$10,$H70*12,4*($C$8-1)+2,12,1)) -> 6.322951 | J70: =SUM(OFFSET(Inf!$A$10,$H70*12,4*($C$8-1)+3,12,1)) -> 8.95433 | K70: =SUM(OFFSET(Inf!$A$10,$H70*12,4*($C$8-1)+4,12,1)) -> 11.87122 | L70: =SUM(OFFSET(Inf!$A$10,$H70*12,4*($C$8-1)+1,12,1)) -> 9.02839 | R70: 3.75 | S70: =VLOOKUP($R70,Inf!$A$10:$AG$2410,4*($C$8-1)+3) -> 0.68889 | T70: =VLOOKUP($R70,Inf!$A$10:$AG$2410,4*($C$8-1)+4) -> 0.93393 | U70: =VLOOKUP($R70,Inf!$A$10:$AG$2410,4*($C$8-1)+5) -> 1.2118 | V70: =VLOOKUP($R70,Inf!$A$10:$AG$2410,4*($C$8-1)+2) -> 0.9492
H71: 46 | I71: =SUM(OFFSET(Inf!$A$10,$H71*12,4*($C$8-1)+2,12,1)) -> 6.430339 | J71: =SUM(OFFSET(Inf!$A$10,$H71*12,4*($C$8-1)+3,12,1)) -> 9.11502 | K71: =SUM(OFFSET(Inf!$A$10,$H71*12,4*($C$8-1)+4,12,1)) -> 11.82851 | L71: =SUM(OFFSET(Inf!$A$10,$H71*12,4*($C$8-1)+1,12,1)) -> 9.12703 | R71: 3.833333333 | S71: =VLOOKUP($R71,Inf!$A$10:$AG$2410,4*($C$8-1)+3) -> 0.50895 | T71: =VLOOKUP($R71,Inf!$A$10:$AG$2410,4*($C$8-1)+4) -> 0.64932 | U71: =VLOOKUP($R71,Inf!$A$10:$AG$2410,4*($C$8-1)+5) -> 0.82034 | V71: =VLOOKUP($R71,Inf!$A$10:$AG$2410,4*($C$8-1)+2) -> 0.66173
H72: 47 | I72: =SUM(OFFSET(Inf!$A$10,$H72*12,4*($C$8-1)+2,12,1)) -> 6.316829 | J72: =SUM(OFFSET(Inf!$A$10,$H72*12,4*($C$8-1)+3,12,1)) -> 9.12179 | K72: =SUM(OFFSET(Inf!$A$10,$H72*12,4*($C$8-1)+4,12,1)) -> 12.12724 | L72: =SUM(OFFSET(Inf!$A$10,$H72*12,4*($C$8-1)+1,12,1)) -> 9.23261 | R72: 3.916666667 | S72: =VLOOKUP($R72,Inf!$A$10:$AG$2410,4*($C$8-1)+3) -> 0.50895 | T72: =VLOOKUP($R72,Inf!$A$10:$AG$2410,4*($C$8-1)+4) -> 0.64932 | U72: =VLOOKUP($R72,Inf!$A$10:$AG$2410,4*($C$8-1)+5) -> 0.82034 | V72: =VLOOKUP($R72,Inf!$A$10:$AG$2410,4*($C$8-1)+2) -> 0.66173
H73: 48 | I73: =SUM(OFFSET(Inf!$A$10,$H73*12,4*($C$8-1)+2,12,1)) -> 6.427364 | J73: =SUM(OFFSET(Inf!$A$10,$H73*12,4*($C$8-1)+3,12,1)) -> 8.97061 | K73: =SUM(OFFSET(Inf!$A$10,$H73*12,4*($C$8-1)+4,12,1)) -> 11.85225 | L73: =SUM(OFFSET(Inf!$A$10,$H73*12,4*($C$8-1)+1,12,1)) -> 9.05577 | R73: 4 | S73: =VLOOKUP($R73,Inf!$A$10:$AG$2410,4*($C$8-1)+3) -> 0.47363 | T73: =VLOOKUP($R73,Inf!$A$10:$AG$2410,4*($C$8-1)+4) -> 0.58746 | U73: =VLOOKUP($R73,Inf!$A$10:$AG$2410,4*($C$8-1)+5) -> 0.70461 | V73: =VLOOKUP($R73,Inf!$A$10:$AG$2410,4*($C$8-1)+2) -> 0.58892
H74: 49 | I74: =SUM(OFFSET(Inf!$A$10,$H74*12,4*($C$8-1)+2,12,1)) -> 6.503423 | J74: =SUM(OFFSET(Inf!$A$10,$H74*12,4*($C$8-1)+3,12,1)) -> 9.17363 | K74: =SUM(OFFSET(Inf!$A$10,$H74*12,4*($C$8-1)+4,12,1)) -> 12.1179 | L74: =SUM(OFFSET(Inf!$A$10,$H74*12,4*($C$8-1)+1,12,1)) -> 9.23097 | R74: 4.083333333 | S74: =VLOOKUP($R74,Inf!$A$10:$AG$2410,4*($C$8-1)+3) -> 0.38905 | T74: =VLOOKUP($R74,Inf!$A$10:$AG$2410,4*($C$8-1)+4) -> 0.48256 | U74: =VLOOKUP($R74,Inf!$A$10:$AG$2410,4*($C$8-1)+5) -> 0.57878 | V74: =VLOOKUP($R74,Inf!$A$10:$AG$2410,4*($C$8-1)+2) -> 0.48375
H75: 50 | I75: =SUM(OFFSET(Inf!$A$10,$H75*12,4*($C$8-1)+2,12,1)) -> 6.419431 | J75: =SUM(OFFSET(Inf!$A$10,$H75*12,4*($C$8-1)+3,12,1)) -> 9.02129 | K75: =SUM(OFFSET(Inf!$A$10,$H75*12,4*($C$8-1)+4,12,1)) -> 12.12874 | L75: =SUM(OFFSET(Inf!$A$10,$H75*12,4*($C$8-1)+1,12,1)) -> 9.18842 | R75: 4.166666667 | S75: =VLOOKUP($R75,Inf!$A$10:$AG$2410,4*($C$8-1)+3) -> 0.38905 | T75: =VLOOKUP($R75,Inf!$A$10:$AG$2410,4*($C$8-1)+4) -> 0.48256 | U75: =VLOOKUP($R75,Inf!$A$10:$AG$2410,4*($C$8-1)+5) -> 0.57878 | V75: =VLOOKUP($R75,Inf!$A$10:$AG$2410,4*($C$8-1)+2) -> 0.48375
H76: 51 | I76: =SUM(OFFSET(Inf!$A$10,$H76*12,4*($C$8-1)+2,12,1)) -> 6.277933 | J76: =SUM(OFFSET(Inf!$A$10,$H76*12,4*($C$8-1)+3,12,1)) -> 8.90757 | K76: =SUM(OFFSET(Inf!$A$10,$H76*12,4*($C$8-1)+4,12,1)) -> 11.86327 | L76: =SUM(OFFSET(Inf!$A$10,$H76*12,4*($C$8-1)+1,12,1)) -> 8.98074 | R76: 4.25 | S76: =VLOOKUP($R76,Inf!$A$10:$AG$2410,4*($C$8-1)+3) -> 0.025859 | T76: =VLOOKUP($R76,Inf!$A$10:$AG$2410,4*($C$8-1)+4) -> 0.19288 | U76: =VLOOKUP($R76,Inf!$A$10:$AG$2410,4*($C$8-1)+5) -> 0.38345 | V76: =VLOOKUP($R76,Inf!$A$10:$AG$2410,4*($C$8-1)+2) -> 0.20275
H77: 52 | I77: =SUM(OFFSET(Inf!$A$10,$H77*12,4*($C$8-1)+2,12,1)) -> 6.452341 | J77: =SUM(OFFSET(Inf!$A$10,$H77*12,4*($C$8-1)+3,12,1)) -> 9.06512 | K77: =SUM(OFFSET(Inf!$A$10,$H77*12,4*($C$8-1)+4,12,1)) -> 12.35338 | L77: =SUM(OFFSET(Inf!$A$10,$H77*12,4*($C$8-1)+1,12,1)) -> 9.23689 | R77: 4.333333333 | S77: =VLOOKUP($R77,Inf!$A$10:$AG$2410,4*($C$8-1)+3) -> 0.45176 | T77: =VLOOKUP($R77,Inf!$A$10:$AG$2410,4*($C$8-1)+4) -> 0.72466 | U77: =VLOOKUP($R77,Inf!$A$10:$AG$2410,4*($C$8-1)+5) -> 1.0563 | V77: =VLOOKUP($R77,Inf!$A$10:$AG$2410,4*($C$8-1)+2) -> 0.739
H78: 53 | I78: =SUM(OFFSET(Inf!$A$10,$H78*12,4*($C$8-1)+2,12,1)) -> 6.378258 | J78: =SUM(OFFSET(Inf!$A$10,$H78*12,4*($C$8-1)+3,12,1)) -> 8.91815 | K78: =SUM(OFFSET(Inf!$A$10,$H78*12,4*($C$8-1)+4,12,1)) -> 11.96416 | L78: =SUM(OFFSET(Inf!$A$10,$H78*12,4*($C$8-1)+1,12,1)) -> 9.10573 | R78: 4.416666667 | S78: =VLOOKUP($R78,Inf!$A$10:$AG$2410,4*($C$8-1)+3) -> 0.45176 | T78: =VLOOKUP($R78,Inf!$A$10:$AG$2410,4*($C$8-1)+4) -> 0.72466 | U78: =VLOOKUP($R78,Inf!$A$10:$AG$2410,4*($C$8-1)+5) -> 1.0563 | V78: =VLOOKUP($R78,Inf!$A$10:$AG$2410,4*($C$8-1)+2) -> 0.739
H79: 54 | I79: =SUM(OFFSET(Inf!$A$10,$H79*12,4*($C$8-1)+2,12,1)) -> 6.612767 | J79: =SUM(OFFSET(Inf!$A$10,$H79*12,4*($C$8-1)+3,12,1)) -> 8.94923 | K79: =SUM(OFFSET(Inf!$A$10,$H79*12,4*($C$8-1)+4,12,1)) -> 11.75775 | L79: =SUM(OFFSET(Inf!$A$10,$H79*12,4*($C$8-1)+1,12,1)) -> 9.1262 | R79: 4.5 | S79: =VLOOKUP($R79,Inf!$A$10:$AG$2410,4*($C$8-1)+3) -> 0.60921 | T79: =VLOOKUP($R79,Inf!$A$10:$AG$2410,4*($C$8-1)+4) -> 0.94346 | U79: =VLOOKUP($R79,Inf!$A$10:$AG$2410,4*($C$8-1)+5) -> 1.3497 | V79: =VLOOKUP($R79,Inf!$A$10:$AG$2410,4*($C$8-1)+2) -> 0.96216
H80: 55 | I80: =SUM(OFFSET(Inf!$A$10,$H80*12,4*($C$8-1)+2,12,1)) -> 6.386402 | J80: =SUM(OFFSET(Inf!$A$10,$H80*12,4*($C$8-1)+3,12,1)) -> 8.99423 | K80: =SUM(OFFSET(Inf!$A$10,$H80*12,4*($C$8-1)+4,12,1)) -> 12.06585 | L80: =SUM(OFFSET(Inf!$A$10,$H80*12,4*($C$8-1)+1,12,1)) -> 9.13434 | R80: 4.583333333 | S80: =VLOOKUP($R80,Inf!$A$10:$AG$2410,4*($C$8-1)+3) -> 0.52353 | T80: =VLOOKUP($R80,Inf!$A$10:$AG$2410,4*($C$8-1)+4) -> 0.85317 | U80: =VLOOKUP($R80,Inf!$A$10:$AG$2410,4*($C$8-1)+5) -> 1.2506 | V80: =VLOOKUP($R80,Inf!$A$10:$AG$2410,4*($C$8-1)+2) -> 0.86888
H81: 56 | I81: =SUM(OFFSET(Inf!$A$10,$H81*12,4*($C$8-1)+2,12,1)) -> 6.318425 | J81: =SUM(OFFSET(Inf!$A$10,$H81*12,4*($C$8-1)+3,12,1)) -> 8.95588 | K81: =SUM(OFFSET(Inf!$A$10,$H81*12,4*($C$8-1)+4,12,1)) -> 12.07617 | L81: =SUM(OFFSET(Inf!$A$10,$H81*12,4*($C$8-1)+1,12,1)) -> 9.13444 | R81: 4.666666667 | S81: =VLOOKUP($R81,Inf!$A$10:$AG$2410,4*($C$8-1)+3) -> 0.52353 | T81: =VLOOKUP($R81,Inf!$A$10:$AG$2410,4*($C$8-1)+4) -> 0.85317 | U81: =VLOOKUP($R81,Inf!$A$10:$AG$2410,4*($C$8-1)+5) -> 1.2506 | V81: =VLOOKUP($R81,Inf!$A$10:$AG$2410,4*($C$8-1)+2) -> 0.86888
H82: 57 | I82: =SUM(OFFSET(Inf!$A$10,$H82*12,4*($C$8-1)+2,12,1)) -> 6.438496 | J82: =SUM(OFFSET(Inf!$A$10,$H82*12,4*($C$8-1)+3,12,1)) -> 9.12632 | K82: =SUM(OFFSET(Inf!$A$10,$H82*12,4*($C$8-1)+4,12,1)) -> 12.05364 | L82: =SUM(OFFSET(Inf!$A$10,$H82*12,4*($C$8-1)+1,12,1)) -> 9.21037 | R82: 4.75 | S82: =VLOOKUP($R82,Inf!$A$10:$AG$2410,4*($C$8-1)+3) -> 0.69627 | T82: =VLOOKUP($R82,Inf!$A$10:$AG$2410,4*($C$8-1)+4) -> 0.92048 | U82: =VLOOKUP($R82,Inf!$A$10:$AG$2410,4*($C$8-1)+5) -> 1.2005 | V82: =VLOOKUP($R82,Inf!$A$10:$AG$2410,4*($C$8-1)+2) -> 0.93468
H83: 58 | I83: =SUM(OFFSET(Inf!$A$10,$H83*12,4*($C$8-1)+2,12,1)) -> 6.44669 | J83: =SUM(OFFSET(Inf!$A$10,$H83*12,4*($C$8-1)+3,12,1)) -> 8.99192 | K83: =SUM(OFFSET(Inf!$A$10,$H83*12,4*($C$8-1)+4,12,1)) -> 11.94946 | L83: =SUM(OFFSET(Inf!$A$10,$H83*12,4*($C$8-1)+1,12,1)) -> 9.08523 | R83: 4.833333333 | S83: =VLOOKUP($R83,Inf!$A$10:$AG$2410,4*($C$8-1)+3) -> 0.50591 | T83: =VLOOKUP($R83,Inf!$A$10:$AG$2410,4*($C$8-1)+4) -> 0.64709 | U83: =VLOOKUP($R83,Inf!$A$10:$AG$2410,4*($C$8-1)+5) -> 0.79867 | V83: =VLOOKUP($R83,Inf!$A$10:$AG$2410,4*($C$8-1)+2) -> 0.65389
H84: 59 | I84: =SUM(OFFSET(Inf!$A$10,$H84*12,4*($C$8-1)+2,12,1)) -> 6.454941 | J84: =SUM(OFFSET(Inf!$A$10,$H84*12,4*($C$8-1)+3,12,1)) -> 8.99669 | K84: =SUM(OFFSET(Inf!$A$10,$H84*12,4*($C$8-1)+4,12,1)) -> 12.29809 | L84: =SUM(OFFSET(Inf!$A$10,$H84*12,4*($C$8-1)+1,12,1)) -> 9.22263 | R84: 4.916666667 | S84: =VLOOKUP($R84,Inf!$A$10:$AG$2410,4*($C$8-1)+3) -> 0.50591 | T84: =VLOOKUP($R84,Inf!$A$10:$AG$2410,4*($C$8-1)+4) -> 0.64709 | U84: =VLOOKUP($R84,Inf!$A$10:$AG$2410,4*($C$8-1)+5) -> 0.79867 | V84: =VLOOKUP($R84,Inf!$A$10:$AG$2410,4*($C$8-1)+2) -> 0.65389
H85: 60 | I85: =SUM(OFFSET(Inf!$A$10,$H85*12,4*($C$8-1)+2,12,1)) -> 6.571252 | J85: =SUM(OFFSET(Inf!$A$10,$H85*12,4*($C$8-1)+3,12,1)) -> 9.05063 | K85: =SUM(OFFSET(Inf!$A$10,$H85*12,4*($C$8-1)+4,12,1)) -> 12.09165 | L85: =SUM(OFFSET(Inf!$A$10,$H85*12,4*($C$8-1)+1,12,1)) -> 9.17048 | R85: 5 | S85: =VLOOKUP($R85,Inf!$A$10:$AG$2410,4*($C$8-1)+3) -> 0.57512 | T85: =VLOOKUP($R85,Inf!$A$10:$AG$2410,4*($C$8-1)+4) -> 0.71334 | U85: =VLOOKUP($R85,Inf!$A$10:$AG$2410,4*($C$8-1)+5) -> 0.85559 | V85: =VLOOKUP($R85,Inf!$A$10:$AG$2410,4*($C$8-1)+2) -> 0.71511
H86: 61 | I86: =SUM(OFFSET(Inf!$A$10,$H86*12,4*($C$8-1)+2,12,1)) -> 6.485026 | J86: =SUM(OFFSET(Inf!$A$10,$H86*12,4*($C$8-1)+3,12,1)) -> 9.04078 | K86: =SUM(OFFSET(Inf!$A$10,$H86*12,4*($C$8-1)+4,12,1)) -> 12.09285 | L86: =SUM(OFFSET(Inf!$A$10,$H86*12,4*($C$8-1)+1,12,1)) -> 9.20796 | R86: 5.083333333 | S86: =VLOOKUP($R86,Inf!$A$10:$AG$2410,4*($C$8-1)+3) -> 0.38861 | T86: =VLOOKUP($R86,Inf!$A$10:$AG$2410,4*($C$8-1)+4) -> 0.47903 | U86: =VLOOKUP($R86,Inf!$A$10:$AG$2410,4*($C$8-1)+5) -> 0.58091 | V86: =VLOOKUP($R86,Inf!$A$10:$AG$2410,4*($C$8-1)+2) -> 0.48098
H87: 62 | I87: =SUM(OFFSET(Inf!$A$10,$H87*12,4*($C$8-1)+2,12,1)) -> 6.401383 | J87: =SUM(OFFSET(Inf!$A$10,$H87*12,4*($C$8-1)+3,12,1)) -> 9.11134 | K87: =SUM(OFFSET(Inf!$A$10,$H87*12,4*($C$8-1)+4,12,1)) -> 12.12017 | L87: =SUM(OFFSET(Inf!$A$10,$H87*12,4*($C$8-1)+1,12,1)) -> 9.19918 | R87: 5.166666667 | S87: =VLOOKUP($R87,Inf!$A$10:$AG$2410,4*($C$8-1)+3) -> 0.38861 | T87: =VLOOKUP($R87,Inf!$A$10:$AG$2410,4*($C$8-1)+4) -> 0.47903 | U87: =VLOOKUP($R87,Inf!$A$10:$AG$2410,4*($C$8-1)+5) -> 0.58091 | V87: =VLOOKUP($R87,Inf!$A$10:$AG$2410,4*($C$8-1)+2) -> 0.48098
H88: 63 | I88: =SUM(OFFSET(Inf!$A$10,$H88*12,4*($C$8-1)+2,12,1)) -> 6.288716 | J88: =SUM(OFFSET(Inf!$A$10,$H88*12,4*($C$8-1)+3,12,1)) -> 8.89677 | K88: =SUM(OFFSET(Inf!$A$10,$H88*12,4*($C$8-1)+4,12,1)) -> 12.23128 | L88: =SUM(OFFSET(Inf!$A$10,$H88*12,4*($C$8-1)+1,12,1)) -> 9.10897 | R88: 5.25 | S88: =VLOOKUP($R88,Inf!$A$10:$AG$2410,4*($C$8-1)+3) -> 0.2325 | T88: =VLOOKUP($R88,Inf!$A$10:$AG$2410,4*($C$8-1)+4) -> 0.31857 | U88: =VLOOKUP($R88,Inf!$A$10:$AG$2410,4*($C$8-1)+5) -> 0.42364 | V88: =VLOOKUP($R88,Inf!$A$10:$AG$2410,4*($C$8-1)+2) -> 0.32384
H89: 64 | I89: =SUM(OFFSET(Inf!$A$10,$H89*12,4*($C$8-1)+2,12,1)) -> 6.386404 | J89: =SUM(OFFSET(Inf!$A$10,$H89*12,4*($C$8-1)+3,12,1)) -> 8.86106 | K89: =SUM(OFFSET(Inf!$A$10,$H89*12,4*($C$8-1)+4,12,1)) -> 11.964 | L89: =SUM(OFFSET(Inf!$A$10,$H89*12,4*($C$8-1)+1,12,1)) -> 9.11521 | R89: 5.333333333 | S89: =VLOOKUP($R89,Inf!$A$10:$AG$2410,4*($C$8-1)+3) -> 0.46016 | T89: =VLOOKUP($R89,Inf!$A$10:$AG$2410,4*($C$8-1)+4) -> 0.73195 | U89: =VLOOKUP($R89,Inf!$A$10:$AG$2410,4*($C$8-1)+5) -> 1.0488 | V89: =VLOOKUP($R89,Inf!$A$10:$AG$2410,4*($C$8-1)+2) -> 0.74659
H90: 65 | I90: =SUM(OFFSET(Inf!$A$10,$H90*12,4*($C$8-1)+2,12,1)) -> 6.520677 | J90: =SUM(OFFSET(Inf!$A$10,$H90*12,4*($C$8-1)+3,12,1)) -> 9.1244 | K90: =SUM(OFFSET(Inf!$A$10,$H90*12,4*($C$8-1)+4,12,1)) -> 11.9139 | L90: =SUM(OFFSET(Inf!$A$10,$H90*12,4*($C$8-1)+1,12,1)) -> 9.20911 | R90: 5.416666667 | S90: =VLOOKUP($R90,Inf!$A$10:$AG$2410,4*($C$8-1)+3) -> 0.46016 | T90: =VLOOKUP($R90,Inf!$A$10:$AG$2410,4*($C$8-1)+4) -> 0.73195 | U90: =VLOOKUP($R90,Inf!$A$10:$AG$2410,4*($C$8-1)+5) -> 1.0488 | V90: =VLOOKUP($R90,Inf!$A$10:$AG$2410,4*($C$8-1)+2) -> 0.74659
H91: 66 | I91: =SUM(OFFSET(Inf!$A$10,$H91*12,4*($C$8-1)+2,12,1)) -> 6.370105 | J91: =SUM(OFFSET(Inf!$A$10,$H91*12,4*($C$8-1)+3,12,1)) -> 8.87301 | K91: =SUM(OFFSET(Inf!$A$10,$H91*12,4*($C$8-1)+4,12,1)) -> 11.61939 | L91: =SUM(OFFSET(Inf!$A$10,$H91*12,4*($C$8-1)+1,12,1)) -> 8.95317 | R91: =R90+1/12 -> 5.5 | S91: =VLOOKUP($R91,Inf!$A$10:$AG$2410,4*($C$8-1)+3) -> 0.95861 | T91: =VLOOKUP($R91,Inf!$A$10:$AG$2410,4*($C$8-1)+4) -> 1.3306 | U91: =VLOOKUP($R91,Inf!$A$10:$AG$2410,4*($C$8-1)+5) -> 1.7731 | V91: =VLOOKUP($R91,Inf!$A$10:$AG$2410,4*($C$8-1)+2) -> 1.352
H92: 67 | I92: =SUM(OFFSET(Inf!$A$10,$H92*12,4*($C$8-1)+2,12,1)) -> 6.260162 | J92: =SUM(OFFSET(Inf!$A$10,$H92*12,4*($C$8-1)+3,12,1)) -> 8.91325 | K92: =SUM(OFFSET(Inf!$A$10,$H92*12,4*($C$8-1)+4,12,1)) -> 11.66398 | L92: =SUM(OFFSET(Inf!$A$10,$H92*12,4*($C$8-1)+1,12,1)) -> 8.9394 | R92: 5.583333333 | S92: =VLOOKUP($R92,Inf!$A$10:$AG$2410,4*($C$8-1)+3) -> 0.53568 | T92: =VLOOKUP($R92,Inf!$A$10:$AG$2410,4*($C$8-1)+4) -> 0.85996 | U92: =VLOOKUP($R92,Inf!$A$10:$AG$2410,4*($C$8-1)+5) -> 1.2354 | V92: =VLOOKUP($R92,Inf!$A$10:$AG$2410,4*($C$8-1)+2) -> 0.87819
H93: 68 | I93: =SUM(OFFSET(Inf!$A$10,$H93*12,4*($C$8-1)+2,12,1)) -> 6.424268 | J93: =SUM(OFFSET(Inf!$A$10,$H93*12,4*($C$8-1)+3,12,1)) -> 8.74941 | K93: =SUM(OFFSET(Inf!$A$10,$H93*12,4*($C$8-1)+4,12,1)) -> 11.67762 | L93: =SUM(OFFSET(Inf!$A$10,$H93*12,4*($C$8-1)+1,12,1)) -> 8.94011 | R93: 5.666666667 | S93: =VLOOKUP($R93,Inf!$A$10:$AG$2410,4*($C$8-1)+3) -> 0.53568 | T93: =VLOOKUP($R93,Inf!$A$10:$AG$2410,4*($C$8-1)+4) -> 0.85996 | U93: =VLOOKUP($R93,Inf!$A$10:$AG$2410,4*($C$8-1)+5) -> 1.2354 | V93: =VLOOKUP($R93,Inf!$A$10:$AG$2410,4*($C$8-1)+2) -> 0.87819
H94: 69 | I94: =SUM(OFFSET(Inf!$A$10,$H94*12,4*($C$8-1)+2,12,1)) -> 6.465386 | J94: =SUM(OFFSET(Inf!$A$10,$H94*12,4*($C$8-1)+3,12,1)) -> 9.05513 | K94: =SUM(OFFSET(Inf!$A$10,$H94*12,4*($C$8-1)+4,12,1)) -> 12.26184 | L94: =SUM(OFFSET(Inf!$A$10,$H94*12,4*($C$8-1)+1,12,1)) -> 9.20376 | R94: 5.75 | S94: =VLOOKUP($R94,Inf!$A$10:$AG$2410,4*($C$8-1)+3) -> 0.96347 | T94: =VLOOKUP($R94,Inf!$A$10:$AG$2410,4*($C$8-1)+4) -> 1.3122 | U94: =VLOOKUP($R94,Inf!$A$10:$AG$2410,4*($C$8-1)+5) -> 1.745 | V94: =VLOOKUP($R94,Inf!$A$10:$AG$2410,4*($C$8-1)+2) -> 1.3346
H95: 70 | I95: =SUM(OFFSET(Inf!$A$10,$H95*12,4*($C$8-1)+2,12,1)) -> 6.234744 | J95: =SUM(OFFSET(Inf!$A$10,$H95*12,4*($C$8-1)+3,12,1)) -> 8.92049 | K95: =SUM(OFFSET(Inf!$A$10,$H95*12,4*($C$8-1)+4,12,1)) -> 12.20495 | L95: =SUM(OFFSET(Inf!$A$10,$H95*12,4*($C$8-1)+1,12,1)) -> 9.09942 | R95: 5.833333333 | S95: =VLOOKUP($R95,Inf!$A$10:$AG$2410,4*($C$8-1)+3) -> 0.50422 | T95: =VLOOKUP($R95,Inf!$A$10:$AG$2410,4*($C$8-1)+4) -> 0.64551 | U95: =VLOOKUP($R95,Inf!$A$10:$AG$2410,4*($C$8-1)+5) -> 0.81817 | V95: =VLOOKUP($R95,Inf!$A$10:$AG$2410,4*($C$8-1)+2) -> 0.65331
H96: 71 | I96: =SUM(OFFSET(Inf!$A$10,$H96*12,4*($C$8-1)+2,12,1)) -> 6.506879 | J96: =SUM(OFFSET(Inf!$A$10,$H96*12,4*($C$8-1)+3,12,1)) -> 9.1011 | K96: =SUM(OFFSET(Inf!$A$10,$H96*12,4*($C$8-1)+4,12,1)) -> 12.44688 | L96: =SUM(OFFSET(Inf!$A$10,$H96*12,4*($C$8-1)+1,12,1)) -> 9.34083 | R96: 5.916666667 | S96: =VLOOKUP($R96,Inf!$A$10:$AG$2410,4*($C$8-1)+3) -> 0.50422 | T96: =VLOOKUP($R96,Inf!$A$10:$AG$2410,4*($C$8-1)+4) -> 0.64551 | U96: =VLOOKUP($R96,Inf!$A$10:$AG$2410,4*($C$8-1)+5) -> 0.81817 | V96: =VLOOKUP($R96,Inf!$A$10:$AG$2410,4*($C$8-1)+2) -> 0.65331
H97: 72 | I97: =SUM(OFFSET(Inf!$A$10,$H97*12,4*($C$8-1)+2,12,1)) -> 6.324998 | J97: =SUM(OFFSET(Inf!$A$10,$H97*12,4*($C$8-1)+3,12,1)) -> 8.91781 | K97: =SUM(OFFSET(Inf!$A$10,$H97*12,4*($C$8-1)+4,12,1)) -> 12.58971 | L97: =SUM(OFFSET(Inf!$A$10,$H97*12,4*($C$8-1)+1,12,1)) -> 9.21726 | R97: 6 | S97: =VLOOKUP($R97,Inf!$A$10:$AG$2410,4*($C$8-1)+3) -> 0.57446 | T97: =VLOOKUP($R97,Inf!$A$10:$AG$2410,4*($C$8-1)+4) -> 0.70813 | U97: =VLOOKUP($R97,Inf!$A$10:$AG$2410,4*($C$8-1)+5) -> 0.85874 | V97: =VLOOKUP($R97,Inf!$A$10:$AG$2410,4*($C$8-1)+2) -> 0.71101
H98: 73 | I98: =SUM(OFFSET(Inf!$A$10,$H98*12,4*($C$8-1)+2,12,1)) -> 6.381492 | J98: =SUM(OFFSET(Inf!$A$10,$H98*12,4*($C$8-1)+3,12,1)) -> 9.19724 | K98: =SUM(OFFSET(Inf!$A$10,$H98*12,4*($C$8-1)+4,12,1)) -> 12.1428 | L98: =SUM(OFFSET(Inf!$A$10,$H98*12,4*($C$8-1)+1,12,1)) -> 9.28949 | R98: 6.083333333 | S98: =VLOOKUP($R98,Inf!$A$10:$AG$2410,4*($C$8-1)+3) -> 0.38745 | T98: =VLOOKUP($R98,Inf!$A$10:$AG$2410,4*($C$8-1)+4) -> 0.47395 | U98: =VLOOKUP($R98,Inf!$A$10:$AG$2410,4*($C$8-1)+5) -> 0.58019 | V98: =VLOOKUP($R98,Inf!$A$10:$AG$2410,4*($C$8-1)+2) -> 0.47886
H99: 74 | I99: =SUM(OFFSET(Inf!$A$10,$H99*12,4*($C$8-1)+2,12,1)) -> 6.552586 | J99: =SUM(OFFSET(Inf!$A$10,$H99*12,4*($C$8-1)+3,12,1)) -> 9.10856 | K99: =SUM(OFFSET(Inf!$A$10,$H99*12,4*($C$8-1)+4,12,1)) -> 11.99424 | L99: =SUM(OFFSET(Inf!$A$10,$H99*12,4*($C$8-1)+1,12,1)) -> 9.19769 | R99: 6.166666667 | S99: =VLOOKUP($R99,Inf!$A$10:$AG$2410,4*($C$8-1)+3) -> 0.38745 | T99: =VLOOKUP($R99,Inf!$A$10:$AG$2410,4*($C$8-1)+4) -> 0.47395 | U99: =VLOOKUP($R99,Inf!$A$10:$AG$2410,4*($C$8-1)+5) -> 0.58019 | V99: =VLOOKUP($R99,Inf!$A$10:$AG$2410,4*($C$8-1)+2) -> 0.47886
H100: 75 | I100: =SUM(OFFSET(Inf!$A$10,$H100*12,4*($C$8-1)+2,12,1)) -> 6.576544 | J100: =SUM(OFFSET(Inf!$A$10,$H100*12,4*($C$8-1)+3,12,1)) -> 8.9533 | K100: =SUM(OFFSET(Inf!$A$10,$H100*12,4*($C$8-1)+4,12,1)) -> 11.93964 | L100: =SUM(OFFSET(Inf!$A$10,$H100*12,4*($C$8-1)+1,12,1)) -> 9.12601 | R100: 6.25 | S100: =VLOOKUP($R100,Inf!$A$10:$AG$2410,4*($C$8-1)+3) -> 0.23625 | T100: =VLOOKUP($R100,Inf!$A$10:$AG$2410,4*($C$8-1)+4) -> 0.31568 | U100: =VLOOKUP($R100,Inf!$A$10:$AG$2410,4*($C$8-1)+5) -> 0.41208 | V100: =VLOOKUP($R100,Inf!$A$10:$AG$2410,4*($C$8-1)+2) -> 0.32046
H101: 76 | I101: =SUM(OFFSET(Inf!$A$10,$H101*12,4*($C$8-1)+2,12,1)) -> 6.1023733 | J101: =SUM(OFFSET(Inf!$A$10,$H101*12,4*($C$8-1)+3,12,1)) -> 8.91469 | K101: =SUM(OFFSET(Inf!$A$10,$H101*12,4*($C$8-1)+4,12,1)) -> 12.07874 | L101: =SUM(OFFSET(Inf!$A$10,$H101*12,4*($C$8-1)+1,12,1)) -> 9.08589 | R101: 6.333333333 | S101: =VLOOKUP($R101,Inf!$A$10:$AG$2410,4*($C$8-1)+3) -> 0.46598 | T101: =VLOOKUP($R101,Inf!$A$10:$AG$2410,4*($C$8-1)+4) -> 0.72115 | U101: =VLOOKUP($R101,Inf!$A$10:$AG$2410,4*($C$8-1)+5) -> 1.0129 | V101: =VLOOKUP($R101,Inf!$A$10:$AG$2410,4*($C$8-1)+2) -> 0.7352
H102: 77 | I102: =SUM(OFFSET(Inf!$A$10,$H102*12,4*($C$8-1)+2,12,1)) -> 6.478529 | J102: =SUM(OFFSET(Inf!$A$10,$H102*12,4*($C$8-1)+3,12,1)) -> 8.99062 | K102: =SUM(OFFSET(Inf!$A$10,$H102*12,4*($C$8-1)+4,12,1)) -> 12.06373 | L102: =SUM(OFFSET(Inf!$A$10,$H102*12,4*($C$8-1)+1,12,1)) -> 9.15145 | R102: 6.416666667 | S102: =VLOOKUP($R102,Inf!$A$10:$AG$2410,4*($C$8-1)+3) -> 0.46598 | T102: =VLOOKUP($R102,Inf!$A$10:$AG$2410,4*($C$8-1)+4) -> 0.72115 | U102: =VLOOKUP($R102,Inf!$A$10:$AG$2410,4*($C$8-1)+5) -> 1.0129 | V102: =VLOOKUP($R102,Inf!$A$10:$AG$2410,4*($C$8-1)+2) -> 0.7352
H103: 78 | I103: =SUM(OFFSET(Inf!$A$10,$H103*12,4*($C$8-1)+2,12,1)) -> 6.399047 | J103: =SUM(OFFSET(Inf!$A$10,$H103*12,4*($C$8-1)+3,12,1)) -> 8.93046 | K103: =SUM(OFFSET(Inf!$A$10,$H103*12,4*($C$8-1)+4,12,1)) -> 11.87304 | L103: =SUM(OFFSET(Inf!$A$10,$H103*12,4*($C$8-1)+1,12,1)) -> 9.04156 | R103: 6.5 | S103: =VLOOKUP($R103,Inf!$A$10:$AG$2410,4*($C$8-1)+3) -> 0.97712 | T103: =VLOOKUP($R103,Inf!$A$10:$AG$2410,4*($C$8-1)+4) -> 1.3188 | U103: =VLOOKUP($R103,Inf!$A$10:$AG$2410,4*($C$8-1)+5) -> 1.7199 | V103: =VLOOKUP($R103,Inf!$A$10:$AG$2410,4*($C$8-1)+2) -> 1.3374
H104: 79 | I104: =SUM(OFFSET(Inf!$A$10,$H104*12,4*($C$8-1)+2,12,1)) -> 6.40806 | J104: =SUM(OFFSET(Inf!$A$10,$H104*12,4*($C$8-1)+3,12,1)) -> 9.10118 | K104: =SUM(OFFSET(Inf!$A$10,$H104*12,4*($C$8-1)+4,12,1)) -> 12.48211 | L104: =SUM(OFFSET(Inf!$A$10,$H104*12,4*($C$8-1)+1,12,1)) -> 9.298 | R104: 6.583333333 | S104: =VLOOKUP($R104,Inf!$A$10:$AG$2410,4*($C$8-1)+3) -> 0.54334 | T104: =VLOOKUP($R104,Inf!$A$10:$AG$2410,4*($C$8-1)+4) -> 0.84824 | U104: =VLOOKUP($R104,Inf!$A$10:$AG$2410,4*($C$8-1)+5) -> 1.1965 | V104: =VLOOKUP($R104,Inf!$A$10:$AG$2410,4*($C$8-1)+2) -> 0.86452
H105: 80 | I105: =SUM(OFFSET(Inf!$A$10,$H105*12,4*($C$8-1)+2,12,1)) -> 6.587345 | J105: =SUM(OFFSET(Inf!$A$10,$H105*12,4*($C$8-1)+3,12,1)) -> 9.09658 | K105: =SUM(OFFSET(Inf!$A$10,$H105*12,4*($C$8-1)+4,12,1)) -> 12.21761 | L105: =SUM(OFFSET(Inf!$A$10,$H105*12,4*($C$8-1)+1,12,1)) -> 9.27669 | R105: 6.666666667 | S105: =VLOOKUP($R105,Inf!$A$10:$AG$2410,4*($C$8-1)+3) -> 0.54334 | T105: =VLOOKUP($R105,Inf!$A$10:$AG$2410,4*($C$8-1)+4) -> 0.84824 | U105: =VLOOKUP($R105,Inf!$A$10:$AG$2410,4*($C$8-1)+5) -> 1.1965 | V105: =VLOOKUP($R105,Inf!$A$10:$AG$2410,4*($C$8-1)+2) -> 0.86452
H106: 81 | I106: =SUM(OFFSET(Inf!$A$10,$H106*12,4*($C$8-1)+2,12,1)) -> 6.605468 | J106: =SUM(OFFSET(Inf!$A$10,$H106*12,4*($C$8-1)+3,12,1)) -> 9.02669 | K106: =SUM(OFFSET(Inf!$A$10,$H106*12,4*($C$8-1)+4,12,1)) -> 11.89127 | L106: =SUM(OFFSET(Inf!$A$10,$H106*12,4*($C$8-1)+1,12,1)) -> 9.15687 | R106: 6.75 | S106: =VLOOKUP($R106,Inf!$A$10:$AG$2410,4*($C$8-1)+3) -> 0.97658 | T106: =VLOOKUP($R106,Inf!$A$10:$AG$2410,4*($C$8-1)+4) -> 1.301 | U106: =VLOOKUP($R106,Inf!$A$10:$AG$2410,4*($C$8-1)+5) -> 1.6968 | V106: =VLOOKUP($R106,Inf!$A$10:$AG$2410,4*($C$8-1)+2) -> 1.3208
H107: 82 | I107: =SUM(OFFSET(Inf!$A$10,$H107*12,4*($C$8-1)+2,12,1)) -> 6.364429 | J107: =SUM(OFFSET(Inf!$A$10,$H107*12,4*($C$8-1)+3,12,1)) -> 9.20526 | K107: =SUM(OFFSET(Inf!$A$10,$H107*12,4*($C$8-1)+4,12,1)) -> 11.98757 | L107: =SUM(OFFSET(Inf!$A$10,$H107*12,4*($C$8-1)+1,12,1)) -> 9.19654 | R107: 6.833333333 | S107: =VLOOKUP($R107,Inf!$A$10:$AG$2410,4*($C$8-1)+3) -> 0.50811 | T107: =VLOOKUP($R107,Inf!$A$10:$AG$2410,4*($C$8-1)+4) -> 0.64181 | U107: =VLOOKUP($R107,Inf!$A$10:$AG$2410,4*($C$8-1)+5) -> 0.80199 | V107: =VLOOKUP($R107,Inf!$A$10:$AG$2410,4*($C$8-1)+2) -> 0.64826
H108: 83 | I108: =SUM(OFFSET(Inf!$A$10,$H108*12,4*($C$8-1)+2,12,1)) -> 6.365845 | J108: =SUM(OFFSET(Inf!$A$10,$H108*12,4*($C$8-1)+3,12,1)) -> 8.90905 | K108: =SUM(OFFSET(Inf!$A$10,$H108*12,4*($C$8-1)+4,12,1)) -> 11.88562 | L108: =SUM(OFFSET(Inf!$A$10,$H108*12,4*($C$8-1)+1,12,1)) -> 9.08351 | R108: 6.916666667 | S108: =VLOOKUP($R108,Inf!$A$10:$AG$2410,4*($C$8-1)+3) -> 0.50811 | T108: =VLOOKUP($R108,Inf!$A$10:$AG$2410,4*($C$8-1)+4) -> 0.64181 | U108: =VLOOKUP($R108,Inf!$A$10:$AG$2410,4*($C$8-1)+5) -> 0.80199 | V108: =VLOOKUP($R108,Inf!$A$10:$AG$2410,4*($C$8-1)+2) -> 0.64826
H109: 84 | I109: =SUM(OFFSET(Inf!$A$10,$H109*12,4*($C$8-1)+2,12,1)) -> 6.448764 | J109: =SUM(OFFSET(Inf!$A$10,$H109*12,4*($C$8-1)+3,12,1)) -> 9.12064 | K109: =SUM(OFFSET(Inf!$A$10,$H109*12,4*($C$8-1)+4,12,1)) -> 12.15448 | L109: =SUM(OFFSET(Inf!$A$10,$H109*12,4*($C$8-1)+1,12,1)) -> 9.23196 | R109: 7 | S109: =VLOOKUP($R109,Inf!$A$10:$AG$2410,4*($C$8-1)+3) -> 0.57276 | T109: =VLOOKUP($R109,Inf!$A$10:$AG$2410,4*($C$8-1)+4) -> 0.70062 | U109: =VLOOKUP($R109,Inf!$A$10:$AG$2410,4*($C$8-1)+5) -> 0.85768 | V109: =VLOOKUP($R109,Inf!$A$10:$AG$2410,4*($C$8-1)+2) -> 0.70788
H110: 85 | I110: =SUM(OFFSET(Inf!$A$10,$H110*12,4*($C$8-1)+2,12,1)) -> 6.750272 | J110: =SUM(OFFSET(Inf!$A$10,$H110*12,4*($C$8-1)+3,12,1)) -> 9.21811 | K110: =SUM(OFFSET(Inf!$A$10,$H110*12,4*($C$8-1)+4,12,1)) -> 12.21814 | L110: =SUM(OFFSET(Inf!$A$10,$H110*12,4*($C$8-1)+1,12,1)) -> 9.32211 | R110: 7.083333333 | S110: =VLOOKUP($R110,Inf!$A$10:$AG$2410,4*($C$8-1)+3) -> 0.38517 | T110: =VLOOKUP($R110,Inf!$A$10:$AG$2410,4*($C$8-1)+4) -> 0.48415 | U110: =VLOOKUP($R110,Inf!$A$10:$AG$2410,4*($C$8-1)+5) -> 0.58643 | V110: =VLOOKUP($R110,Inf!$A$10:$AG$2410,4*($C$8-1)+2) -> 0.48606
H111: 86 | I111: =SUM(OFFSET(Inf!$A$10,$H111*12,4*($C$8-1)+2,12,1)) -> 6.657968 | J111: =SUM(OFFSET(Inf!$A$10,$H111*12,4*($C$8-1)+3,12,1)) -> 9.1076 | K111: =SUM(OFFSET(Inf!$A$10,$H111*12,4*($C$8-1)+4,12,1)) -> 12.46533 | L111: =SUM(OFFSET(Inf!$A$10,$H111*12,4*($C$8-1)+1,12,1)) -> 9.35067 | R111: 7.166666667 | S111: =VLOOKUP($R111,Inf!$A$10:$AG$2410,4*($C$8-1)+3) -> 0.38517 | T111: =VLOOKUP($R111,Inf!$A$10:$AG$2410,4*($C$8-1)+4) -> 0.48415 | U111: =VLOOKUP($R111,Inf!$A$10:$AG$2410,4*($C$8-1)+5) -> 0.58643 | V111: =VLOOKUP($R111,Inf!$A$10:$AG$2410,4*($C$8-1)+2) -> 0.48606
H112: 87 | I112: =SUM(OFFSET(Inf!$A$10,$H112*12,4*($C$8-1)+2,12,1)) -> 6.381664 | J112: =SUM(OFFSET(Inf!$A$10,$H112*12,4*($C$8-1)+3,12,1)) -> 8.95872 | K112: =SUM(OFFSET(Inf!$A$10,$H112*12,4*($C$8-1)+4,12,1)) -> 12.0203 | L112: =SUM(OFFSET(Inf!$A$10,$H112*12,4*($C$8-1)+1,12,1)) -> 9.14424 | R112: 7.25 | S112: =VLOOKUP($R112,Inf!$A$10:$AG$2410,4*($C$8-1)+3) -> 0.22905 | T112: =VLOOKUP($R112,Inf!$A$10:$AG$2410,4*($C$8-1)+4) -> 0.3212 | U112: =VLOOKUP($R112,Inf!$A$10:$AG$2410,4*($C$8-1)+5) -> 0.43163 | V112: =VLOOKUP($R112,Inf!$A$10:$AG$2410,4*($C$8-1)+2) -> 0.3257
H113: 88 | I113: =SUM(OFFSET(Inf!$A$10,$H113*12,4*($C$8-1)+2,12,1)) -> 6.41441 | J113: =SUM(OFFSET(Inf!$A$10,$H113*12,4*($C$8-1)+3,12,1)) -> 9.21476 | K113: =SUM(OFFSET(Inf!$A$10,$H113*12,4*($C$8-1)+4,12,1)) -> 12.03899 | L113: =SUM(OFFSET(Inf!$A$10,$H113*12,4*($C$8-1)+1,12,1)) -> 9.22741 | R113: 7.333333333 | S113: =VLOOKUP($R113,Inf!$A$10:$AG$2410,4*($C$8-1)+3) -> 0.44548 | T113: =VLOOKUP($R113,Inf!$A$10:$AG$2410,4*($C$8-1)+4) -> 0.72838 | U113: =VLOOKUP($R113,Inf!$A$10:$AG$2410,4*($C$8-1)+5) -> 1.0921 | V113: =VLOOKUP($R113,Inf!$A$10:$AG$2410,4*($C$8-1)+2) -> 0.74798
H114: 89 | I114: =SUM(OFFSET(Inf!$A$10,$H114*12,4*($C$8-1)+2,12,1)) -> 6.624443 | J114: =SUM(OFFSET(Inf!$A$10,$H114*12,4*($C$8-1)+3,12,1)) -> 9.14543 | K114: =SUM(OFFSET(Inf!$A$10,$H114*12,4*($C$8-1)+4,12,1)) -> 11.84343 | L114: =SUM(OFFSET(Inf!$A$10,$H114*12,4*($C$8-1)+1,12,1)) -> 9.19341 | R114: 7.416666667 | S114: =VLOOKUP($R114,Inf!$A$10:$AG$2410,4*($C$8-1)+3) -> 0.44548 | T114: =VLOOKUP($R114,Inf!$A$10:$AG$2410,4*($C$8-1)+4) -> 0.72838 | U114: =VLOOKUP($R114,Inf!$A$10:$AG$2410,4*($C$8-1)+5) -> 1.0921 | V114: =VLOOKUP($R114,Inf!$A$10:$AG$2410,4*($C$8-1)+2) -> 0.74798
H115: 90 | I115: =SUM(OFFSET(Inf!$A$10,$H115*12,4*($C$8-1)+2,12,1)) -> 6.631073 | J115: =SUM(OFFSET(Inf!$A$10,$H115*12,4*($C$8-1)+3,12,1)) -> 8.93397 | K115: =SUM(OFFSET(Inf!$A$10,$H115*12,4*($C$8-1)+4,12,1)) -> 11.92553 | L115: =SUM(OFFSET(Inf!$A$10,$H115*12,4*($C$8-1)+1,12,1)) -> 9.15383 | R115: 7.5 | S115: =VLOOKUP($R115,Inf!$A$10:$AG$2410,4*($C$8-1)+3) -> 0.94484 | T115: =VLOOKUP($R115,Inf!$A$10:$AG$2410,4*($C$8-1)+4) -> 1.3418 | U115: =VLOOKUP($R115,Inf!$A$10:$AG$2410,4*($C$8-1)+5) -> 1.8084 | V115: =VLOOKUP($R115,Inf!$A$10:$AG$2410,4*($C$8-1)+2) -> 1.3594
H116: 91 | I116: =SUM(OFFSET(Inf!$A$10,$H116*12,4*($C$8-1)+2,12,1)) -> 6.498177 | J116: =SUM(OFFSET(Inf!$A$10,$H116*12,4*($C$8-1)+3,12,1)) -> 8.91477 | K116: =SUM(OFFSET(Inf!$A$10,$H116*12,4*($C$8-1)+4,12,1)) -> 12.15598 | L116: =SUM(OFFSET(Inf!$A$10,$H116*12,4*($C$8-1)+1,12,1)) -> 9.11767 | R116: 7.583333333 | S116: =VLOOKUP($R116,Inf!$A$10:$AG$2410,4*($C$8-1)+3) -> 0.51784 | T116: =VLOOKUP($R116,Inf!$A$10:$AG$2410,4*($C$8-1)+4) -> 0.85586 | U116: =VLOOKUP($R116,Inf!$A$10:$AG$2410,4*($C$8-1)+5) -> 1.2912 | V116: =VLOOKUP($R116,Inf!$A$10:$AG$2410,4*($C$8-1)+2) -> 0.8796
H117: 92 | I117: =SUM(OFFSET(Inf!$A$10,$H117*12,4*($C$8-1)+2,12,1)) -> 6.353761 | J117: =SUM(OFFSET(Inf!$A$10,$H117*12,4*($C$8-1)+3,12,1)) -> 8.78582 | K117: =SUM(OFFSET(Inf!$A$10,$H117*12,4*($C$8-1)+4,12,1)) -> 12.07153 | L117: =SUM(OFFSET(Inf!$A$10,$H117*12,4*($C$8-1)+1,12,1)) -> 9.02696 | R117: 7.666666667 | S117: =VLOOKUP($R117,Inf!$A$10:$AG$2410,4*($C$8-1)+3) -> 0.51784 | T117: =VLOOKUP($R117,Inf!$A$10:$AG$2410,4*($C$8-1)+4) -> 0.85586 | U117: =VLOOKUP($R117,Inf!$A$10:$AG$2410,4*($C$8-1)+5) -> 1.2912 | V117: =VLOOKUP($R117,Inf!$A$10:$AG$2410,4*($C$8-1)+2) -> 0.8796
H118: 93 | I118: =SUM(OFFSET(Inf!$A$10,$H118*12,4*($C$8-1)+2,12,1)) -> 6.390968 | J118: =SUM(OFFSET(Inf!$A$10,$H118*12,4*($C$8-1)+3,12,1)) -> 9.13358 | K118: =SUM(OFFSET(Inf!$A$10,$H118*12,4*($C$8-1)+4,12,1)) -> 12.1792 | L118: =SUM(OFFSET(Inf!$A$10,$H118*12,4*($C$8-1)+1,12,1)) -> 9.18853 | R118: 7.75 | S118: =VLOOKUP($R118,Inf!$A$10:$AG$2410,4*($C$8-1)+3) -> 0.94726 | T118: =VLOOKUP($R118,Inf!$A$10:$AG$2410,4*($C$8-1)+4) -> 1.3239 | U118: =VLOOKUP($R118,Inf!$A$10:$AG$2410,4*($C$8-1)+5) -> 1.778 | V118: =VLOOKUP($R118,Inf!$A$10:$AG$2410,4*($C$8-1)+2) -> 1.3424
H119: 94 | I119: =SUM(OFFSET(Inf!$A$10,$H119*12,4*($C$8-1)+2,12,1)) -> 6.404204 | J119: =SUM(OFFSET(Inf!$A$10,$H119*12,4*($C$8-1)+3,12,1)) -> 8.98364 | K119: =SUM(OFFSET(Inf!$A$10,$H119*12,4*($C$8-1)+4,12,1)) -> 12.02789 | L119: =SUM(OFFSET(Inf!$A$10,$H119*12,4*($C$8-1)+1,12,1)) -> 9.15775 | R119: 7.833333333 | S119: =VLOOKUP($R119,Inf!$A$10:$AG$2410,4*($C$8-1)+3) -> 0.49606 | T119: =VLOOKUP($R119,Inf!$A$10:$AG$2410,4*($C$8-1)+4) -> 0.64929 | U119: =VLOOKUP($R119,Inf!$A$10:$AG$2410,4*($C$8-1)+5) -> 0.83889 | V119: =VLOOKUP($R119,Inf!$A$10:$AG$2410,4*($C$8-1)+2) -> 0.65848
H120: 95 | I120: =SUM(OFFSET(Inf!$A$10,$H120*12,4*($C$8-1)+2,12,1)) -> 6.375225 | J120: =SUM(OFFSET(Inf!$A$10,$H120*12,4*($C$8-1)+3,12,1)) -> 8.9003 | K120: =SUM(OFFSET(Inf!$A$10,$H120*12,4*($C$8-1)+4,12,1)) -> 12.22311 | L120: =SUM(OFFSET(Inf!$A$10,$H120*12,4*($C$8-1)+1,12,1)) -> 9.11341 | R120: 7.916666667 | S120: =VLOOKUP($R120,Inf!$A$10:$AG$2410,4*($C$8-1)+3) -> 0.49606 | T120: =VLOOKUP($R120,Inf!$A$10:$AG$2410,4*($C$8-1)+4) -> 0.64929 | U120: =VLOOKUP($R120,Inf!$A$10:$AG$2410,4*($C$8-1)+5) -> 0.83889 | V120: =VLOOKUP($R120,Inf!$A$10:$AG$2410,4*($C$8-1)+2) -> 0.65848
H121: 96 | I121: =SUM(OFFSET(Inf!$A$10,$H121*12,4*($C$8-1)+2,12,1)) -> 6.491635 | J121: =SUM(OFFSET(Inf!$A$10,$H121*12,4*($C$8-1)+3,12,1)) -> 9.00912 | K121: =SUM(OFFSET(Inf!$A$10,$H121*12,4*($C$8-1)+4,12,1)) -> 12.39406 | L121: =SUM(OFFSET(Inf!$A$10,$H121*12,4*($C$8-1)+1,12,1)) -> 9.26466 | R121: 8 | S121: =VLOOKUP($R121,Inf!$A$10:$AG$2410,4*($C$8-1)+3) -> 0.56938 | T121: =VLOOKUP($R121,Inf!$A$10:$AG$2410,4*($C$8-1)+4) -> 0.71569 | U121: =VLOOKUP($R121,Inf!$A$10:$AG$2410,4*($C$8-1)+5) -> 0.8669 | V121: =VLOOKUP($R121,Inf!$A$10:$AG$2410,4*($C$8-1)+2) -> 0.71852
H122: 97 | I122: =SUM(OFFSET(Inf!$A$10,$H122*12,4*($C$8-1)+2,12,1)) -> 6.302606 | J122: =SUM(OFFSET(Inf!$A$10,$H122*12,4*($C$8-1)+3,12,1)) -> 8.81211 | K122: =SUM(OFFSET(Inf!$A$10,$H122*12,4*($C$8-1)+4,12,1)) -> 11.89166 | L122: =SUM(OFFSET(Inf!$A$10,$H122*12,4*($C$8-1)+1,12,1)) -> 8.97639 | R122: 8.083333333 | S122: =VLOOKUP($R122,Inf!$A$10:$AG$2410,4*($C$8-1)+3) -> 0.39023 | T122: =VLOOKUP($R122,Inf!$A$10:$AG$2410,4*($C$8-1)+4) -> 0.48418 | U122: =VLOOKUP($R122,Inf!$A$10:$AG$2410,4*($C$8-1)+5) -> 0.58258 | V122: =VLOOKUP($R122,Inf!$A$10:$AG$2410,4*($C$8-1)+2) -> 0.48612
H123: 98 | I123: =SUM(OFFSET(Inf!$A$10,$H123*12,4*($C$8-1)+2,12,1)) -> 6.514023 | J123: =SUM(OFFSET(Inf!$A$10,$H123*12,4*($C$8-1)+3,12,1)) -> 9.15339 | K123: =SUM(OFFSET(Inf!$A$10,$H123*12,4*($C$8-1)+4,12,1)) -> 12.02974 | L123: =SUM(OFFSET(Inf!$A$10,$H123*12,4*($C$8-1)+1,12,1)) -> 9.21933 | R123: 8.166666667 | S123: =VLOOKUP($R123,Inf!$A$10:$AG$2410,4*($C$8-1)+3) -> 0.39023 | T123: =VLOOKUP($R123,Inf!$A$10:$AG$2410,4*($C$8-1)+4) -> 0.48418 | U123: =VLOOKUP($R123,Inf!$A$10:$AG$2410,4*($C$8-1)+5) -> 0.58258 | V123: =VLOOKUP($R123,Inf!$A$10:$AG$2410,4*($C$8-1)+2) -> 0.48612
H124: 99 | I124: =SUM(OFFSET(Inf!$A$10,$H124*12,4*($C$8-1)+2,12,1)) -> 6.633187 | J124: =SUM(OFFSET(Inf!$A$10,$H124*12,4*($C$8-1)+3,12,1)) -> 9.02113 | K124: =SUM(OFFSET(Inf!$A$10,$H124*12,4*($C$8-1)+4,12,1)) -> 12.46962 | L124: =SUM(OFFSET(Inf!$A$10,$H124*12,4*($C$8-1)+1,12,1)) -> 9.36464 | R124: 8.25 | S124: =VLOOKUP($R124,Inf!$A$10:$AG$2410,4*($C$8-1)+3) -> 0.24009 | T124: =VLOOKUP($R124,Inf!$A$10:$AG$2410,4*($C$8-1)+4) -> 0.32556 | U124: =VLOOKUP($R124,Inf!$A$10:$AG$2410,4*($C$8-1)+5) -> 0.41306 | V124: =VLOOKUP($R124,Inf!$A$10:$AG$2410,4*($C$8-1)+2) -> 0.32589
H125: 100 | I125: =SUM(OFFSET(Inf!$A$10,$H125*12,4*($C$8-1)+2,12,1)) -> 6.494226 | J125: =SUM(OFFSET(Inf!$A$10,$H125*12,4*($C$8-1)+3,12,1)) -> 8.99344 | K125: =SUM(OFFSET(Inf!$A$10,$H125*12,4*($C$8-1)+4,12,1)) -> 12.13099 | L125: =SUM(OFFSET(Inf!$A$10,$H125*12,4*($C$8-1)+1,12,1)) -> 9.15842 | R125: 8.333333333 | S125: =VLOOKUP($R125,Inf!$A$10:$AG$2410,4*($C$8-1)+3) -> 0.45725 | T125: =VLOOKUP($R125,Inf!$A$10:$AG$2410,4*($C$8-1)+4) -> 0.74014 | U125: =VLOOKUP($R125,Inf!$A$10:$AG$2410,4*($C$8-1)+5) -> 1.0455 | V125: =VLOOKUP($R125,Inf!$A$10:$AG$2410,4*($C$8-1)+2) -> 0.74873
H126: 101 | I126: =SUM(OFFSET(Inf!$A$10,$H126*12,4*($C$8-1)+2,12,1)) -> 6.314043 | J126: =SUM(OFFSET(Inf!$A$10,$H126*12,4*($C$8-1)+3,12,1)) -> 9.00964 | K126: =SUM(OFFSET(Inf!$A$10,$H126*12,4*($C$8-1)+4,12,1)) -> 12.14955 | L126: =SUM(OFFSET(Inf!$A$10,$H126*12,4*($C$8-1)+1,12,1)) -> 9.174 | R126: 8.416666667 | S126: =VLOOKUP($R126,Inf!$A$10:$AG$2410,4*($C$8-1)+3) -> 0.45725 | T126: =VLOOKUP($R126,Inf!$A$10:$AG$2410,4*($C$8-1)+4) -> 0.74014 | U126: =VLOOKUP($R126,Inf!$A$10:$AG$2410,4*($C$8-1)+5) -> 1.0455 | V126: =VLOOKUP($R126,Inf!$A$10:$AG$2410,4*($C$8-1)+2) -> 0.74873
H127: 102 | I127: =SUM(OFFSET(Inf!$A$10,$H127*12,4*($C$8-1)+2,12,1)) -> 6.445898 | J127: =SUM(OFFSET(Inf!$A$10,$H127*12,4*($C$8-1)+3,12,1)) -> 8.79273 | K127: =SUM(OFFSET(Inf!$A$10,$H127*12,4*($C$8-1)+4,12,1)) -> 12.22727 | L127: =SUM(OFFSET(Inf!$A$10,$H127*12,4*($C$8-1)+1,12,1)) -> 9.10599 | R127: 8.5 | S127: =VLOOKUP($R127,Inf!$A$10:$AG$2410,4*($C$8-1)+3) -> 0.99303 | T127: =VLOOKUP($R127,Inf!$A$10:$AG$2410,4*($C$8-1)+4) -> 1.356 | U127: =VLOOKUP($R127,Inf!$A$10:$AG$2410,4*($C$8-1)+5) -> 1.7318 | V127: =VLOOKUP($R127,Inf!$A$10:$AG$2410,4*($C$8-1)+2) -> 1.3602
H128: 103 | I128: =SUM(OFFSET(Inf!$A$10,$H128*12,4*($C$8-1)+2,12,1)) -> 6.437209 | J128: =SUM(OFFSET(Inf!$A$10,$H128*12,4*($C$8-1)+3,12,1)) -> 8.99152 | K128: =SUM(OFFSET(Inf!$A$10,$H128*12,4*($C$8-1)+4,12,1)) -> 12.07034 | L128: =SUM(OFFSET(Inf!$A$10,$H128*12,4*($C$8-1)+1,12,1)) -> 9.10808 | R128: 8.583333333 | S128: =VLOOKUP($R128,Inf!$A$10:$AG$2410,4*($C$8-1)+3) -> 0.52826 | T128: =VLOOKUP($R128,Inf!$A$10:$AG$2410,4*($C$8-1)+4) -> 0.87019 | U128: =VLOOKUP($R128,Inf!$A$10:$AG$2410,4*($C$8-1)+5) -> 1.2368 | V128: =VLOOKUP($R128,Inf!$A$10:$AG$2410,4*($C$8-1)+2) -> 0.8805
H129: 104 | I129: =SUM(OFFSET(Inf!$A$10,$H129*12,4*($C$8-1)+2,12,1)) -> 6.416395 | J129: =SUM(OFFSET(Inf!$A$10,$H129*12,4*($C$8-1)+3,12,1)) -> 8.92369 | K129: =SUM(OFFSET(Inf!$A$10,$H129*12,4*($C$8-1)+4,12,1)) -> 12.04887 | L129: =SUM(OFFSET(Inf!$A$10,$H129*12,4*($C$8-1)+1,12,1)) -> 9.09782 | R129: 8.666666667 | S129: =VLOOKUP($R129,Inf!$A$10:$AG$2410,4*($C$8-1)+3) -> 0.52826 | T129: =VLOOKUP($R129,Inf!$A$10:$AG$2410,4*($C$8-1)+4) -> 0.87019 | U129: =VLOOKUP($R129,Inf!$A$10:$AG$2410,4*($C$8-1)+5) -> 1.2368 | V129: =VLOOKUP($R129,Inf!$A$10:$AG$2410,4*($C$8-1)+2) -> 0.8805
H130: 105 | I130: =SUM(OFFSET(Inf!$A$10,$H130*12,4*($C$8-1)+2,12,1)) -> 6.519713 | J130: =SUM(OFFSET(Inf!$A$10,$H130*12,4*($C$8-1)+3,12,1)) -> 9.05943 | K130: =SUM(OFFSET(Inf!$A$10,$H130*12,4*($C$8-1)+4,12,1)) -> 12.015 | L130: =SUM(OFFSET(Inf!$A$10,$H130*12,4*($C$8-1)+1,12,1)) -> 9.19509 | R130: 8.75 | S130: =VLOOKUP($R130,Inf!$A$10:$AG$2410,4*($C$8-1)+3) -> 0.99178 | T130: =VLOOKUP($R130,Inf!$A$10:$AG$2410,4*($C$8-1)+4) -> 1.3407 | U130: =VLOOKUP($R130,Inf!$A$10:$AG$2410,4*($C$8-1)+5) -> 1.6998 | V130: =VLOOKUP($R130,Inf!$A$10:$AG$2410,4*($C$8-1)+2) -> 1.3432
H131: 106 | I131: =SUM(OFFSET(Inf!$A$10,$H131*12,4*($C$8-1)+2,12,1)) -> 6.631958 | J131: =SUM(OFFSET(Inf!$A$10,$H131*12,4*($C$8-1)+3,12,1)) -> 9.03789 | K131: =SUM(OFFSET(Inf!$A$10,$H131*12,4*($C$8-1)+4,12,1)) -> 12.26503 | L131: =SUM(OFFSET(Inf!$A$10,$H131*12,4*($C$8-1)+1,12,1)) -> 9.24612 | R131: 8.833333333 | S131: =VLOOKUP($R131,Inf!$A$10:$AG$2410,4*($C$8-1)+3) -> 0.51261 | T131: =VLOOKUP($R131,Inf!$A$10:$AG$2410,4*($C$8-1)+4) -> 0.65477 | U131: =VLOOKUP($R131,Inf!$A$10:$AG$2410,4*($C$8-1)+5) -> 0.80423 | V131: =VLOOKUP($R131,Inf!$A$10:$AG$2410,4*($C$8-1)+2) -> 0.65874
H132: 107 | I132: =SUM(OFFSET(Inf!$A$10,$H132*12,4*($C$8-1)+2,12,1)) -> 6.403882 | J132: =SUM(OFFSET(Inf!$A$10,$H132*12,4*($C$8-1)+3,12,1)) -> 8.96762 | K132: =SUM(OFFSET(Inf!$A$10,$H132*12,4*($C$8-1)+4,12,1)) -> 11.95435 | L132: =SUM(OFFSET(Inf!$A$10,$H132*12,4*($C$8-1)+1,12,1)) -> 9.09725 | R132: 8.916666667 | S132: =VLOOKUP($R132,Inf!$A$10:$AG$2410,4*($C$8-1)+3) -> 0.51261 | T132: =VLOOKUP($R132,Inf!$A$10:$AG$2410,4*($C$8-1)+4) -> 0.65477 | U132: =VLOOKUP($R132,Inf!$A$10:$AG$2410,4*($C$8-1)+5) -> 0.80423 | V132: =VLOOKUP($R132,Inf!$A$10:$AG$2410,4*($C$8-1)+2) -> 0.65874
H133: 108 | I133: =SUM(OFFSET(Inf!$A$10,$H133*12,4*($C$8-1)+2,12,1)) -> 6.402348 | J133: =SUM(OFFSET(Inf!$A$10,$H133*12,4*($C$8-1)+3,12,1)) -> 8.80172 | K133: =SUM(OFFSET(Inf!$A$10,$H133*12,4*($C$8-1)+4,12,1)) -> 11.74881 | L133: =SUM(OFFSET(Inf!$A$10,$H133*12,4*($C$8-1)+1,12,1)) -> 9.01359 | R133: 9 | S133: =VLOOKUP($R133,Inf!$A$10:$AG$2410,4*($C$8-1)+3) -> 0.57687 | T133: =VLOOKUP($R133,Inf!$A$10:$AG$2410,4*($C$8-1)+4) -> 0.71574 | U133: =VLOOKUP($R133,Inf!$A$10:$AG$2410,4*($C$8-1)+5) -> 0.8612 | V133: =VLOOKUP($R133,Inf!$A$10:$AG$2410,4*($C$8-1)+2) -> 0.71862
H134: 109 | I134: =SUM(OFFSET(Inf!$A$10,$H134*12,4*($C$8-1)+2,12,1)) -> 6.353217 | J134: =SUM(OFFSET(Inf!$A$10,$H134*12,4*($C$8-1)+3,12,1)) -> 8.89697 | K134: =SUM(OFFSET(Inf!$A$10,$H134*12,4*($C$8-1)+4,12,1)) -> 12.18905 | L134: =SUM(OFFSET(Inf!$A$10,$H134*12,4*($C$8-1)+1,12,1)) -> 9.13818 | R134: 9.083333333 | S134: =VLOOKUP($R134,Inf!$A$10:$AG$2410,4*($C$8-1)+3) -> 0.39501 | T134: =VLOOKUP($R134,Inf!$A$10:$AG$2410,4*($C$8-1)+4) -> 0.479 | U134: =VLOOKUP($R134,Inf!$A$10:$AG$2410,4*($C$8-1)+5) -> 0.59092 | V134: =VLOOKUP($R134,Inf!$A$10:$AG$2410,4*($C$8-1)+2) -> 0.48671
H135: 110 | I135: =SUM(OFFSET(Inf!$A$10,$H135*12,4*($C$8-1)+2,12,1)) -> 6.482164 | J135: =SUM(OFFSET(Inf!$A$10,$H135*12,4*($C$8-1)+3,12,1)) -> 8.95199 | K135: =SUM(OFFSET(Inf!$A$10,$H135*12,4*($C$8-1)+4,12,1)) -> 12.01416 | L135: =SUM(OFFSET(Inf!$A$10,$H135*12,4*($C$8-1)+1,12,1)) -> 9.12691 | R135: 9.166666667 | S135: =VLOOKUP($R135,Inf!$A$10:$AG$2410,4*($C$8-1)+3) -> 0.39501 | T135: =VLOOKUP($R135,Inf!$A$10:$AG$2410,4*($C$8-1)+4) -> 0.479 | U135: =VLOOKUP($R135,Inf!$A$10:$AG$2410,4*($C$8-1)+5) -> 0.59092 | V135: =VLOOKUP($R135,Inf!$A$10:$AG$2410,4*($C$8-1)+2) -> 0.48671
H136: 111 | I136: =SUM(OFFSET(Inf!$A$10,$H136*12,4*($C$8-1)+2,12,1)) -> 6.491154 | J136: =SUM(OFFSET(Inf!$A$10,$H136*12,4*($C$8-1)+3,12,1)) -> 9.04545 | K136: =SUM(OFFSET(Inf!$A$10,$H136*12,4*($C$8-1)+4,12,1)) -> 12.11001 | L136: =SUM(OFFSET(Inf!$A$10,$H136*12,4*($C$8-1)+1,12,1)) -> 9.18095 | R136: 9.25 | S136: =VLOOKUP($R136,Inf!$A$10:$AG$2410,4*($C$8-1)+3) -> 0.2425 | T136: =VLOOKUP($R136,Inf!$A$10:$AG$2410,4*($C$8-1)+4) -> 0.32048 | U136: =VLOOKUP($R136,Inf!$A$10:$AG$2410,4*($C$8-1)+5) -> 0.4275 | V136: =VLOOKUP($R136,Inf!$A$10:$AG$2410,4*($C$8-1)+2) -> 0.32609
H137: 112 | I137: =SUM(OFFSET(Inf!$A$10,$H137*12,4*($C$8-1)+2,12,1)) -> 6.255047 | J137: =SUM(OFFSET(Inf!$A$10,$H137*12,4*($C$8-1)+3,12,1)) -> 8.82805 | K137: =SUM(OFFSET(Inf!$A$10,$H137*12,4*($C$8-1)+4,12,1)) -> 11.83955 | L137: =SUM(OFFSET(Inf!$A$10,$H137*12,4*($C$8-1)+1,12,1)) -> 8.96566 | R137: 9.333333333 | S137: =VLOOKUP($R137,Inf!$A$10:$AG$2410,4*($C$8-1)+3) -> 0.46942 | T137: =VLOOKUP($R137,Inf!$A$10:$AG$2410,4*($C$8-1)+4) -> 0.7296 | U137: =VLOOKUP($R137,Inf!$A$10:$AG$2410,4*($C$8-1)+5) -> 1.0654 | V137: =VLOOKUP($R137,Inf!$A$10:$AG$2410,4*($C$8-1)+2) -> 0.7488
H138: 113 | I138: =SUM(OFFSET(Inf!$A$10,$H138*12,4*($C$8-1)+2,12,1)) -> 6.604655 | J138: =SUM(OFFSET(Inf!$A$10,$H138*12,4*($C$8-1)+3,12,1)) -> 9.04435 | K138: =SUM(OFFSET(Inf!$A$10,$H138*12,4*($C$8-1)+4,12,1)) -> 12.27471 | L138: =SUM(OFFSET(Inf!$A$10,$H138*12,4*($C$8-1)+1,12,1)) -> 9.26342 | R138: 9.416666667 | S138: =VLOOKUP($R138,Inf!$A$10:$AG$2410,4*($C$8-1)+3) -> 0.46942 | T138: =VLOOKUP($R138,Inf!$A$10:$AG$2410,4*($C$8-1)+4) -> 0.7296 | U138: =VLOOKUP($R138,Inf!$A$10:$AG$2410,4*($C$8-1)+5) -> 1.0654 | V138: =VLOOKUP($R138,Inf!$A$10:$AG$2410,4*($C$8-1)+2) -> 0.7488
H139: 114 | I139: =SUM(OFFSET(Inf!$A$10,$H139*12,4*($C$8-1)+2,12,1)) -> 6.555926 | J139: =SUM(OFFSET(Inf!$A$10,$H139*12,4*($C$8-1)+3,12,1)) -> 9.15599 | K139: =SUM(OFFSET(Inf!$A$10,$H139*12,4*($C$8-1)+4,12,1)) -> 12.15024 | L139: =SUM(OFFSET(Inf!$A$10,$H139*12,4*($C$8-1)+1,12,1)) -> 9.26109 | R139: 9.5 | S139: =VLOOKUP($R139,Inf!$A$10:$AG$2410,4*($C$8-1)+3) -> 0.99759 | T139: =VLOOKUP($R139,Inf!$A$10:$AG$2410,4*($C$8-1)+4) -> 1.3371 | U139: =VLOOKUP($R139,Inf!$A$10:$AG$2410,4*($C$8-1)+5) -> 1.7927 | V139: =VLOOKUP($R139,Inf!$A$10:$AG$2410,4*($C$8-1)+2) -> 1.361
H140: 115 | I140: =SUM(OFFSET(Inf!$A$10,$H140*12,4*($C$8-1)+2,12,1)) -> 6.522273 | J140: =SUM(OFFSET(Inf!$A$10,$H140*12,4*($C$8-1)+3,12,1)) -> 9.13449 | K140: =SUM(OFFSET(Inf!$A$10,$H140*12,4*($C$8-1)+4,12,1)) -> 12.10788 | L140: =SUM(OFFSET(Inf!$A$10,$H140*12,4*($C$8-1)+1,12,1)) -> 9.28596 | R140: 9.583333333 | S140: =VLOOKUP($R140,Inf!$A$10:$AG$2410,4*($C$8-1)+3) -> 0.54555 | T140: =VLOOKUP($R140,Inf!$A$10:$AG$2410,4*($C$8-1)+4) -> 0.85805 | U140: =VLOOKUP($R140,Inf!$A$10:$AG$2410,4*($C$8-1)+5) -> 1.2562 | V140: =VLOOKUP($R140,Inf!$A$10:$AG$2410,4*($C$8-1)+2) -> 0.88056
H141: 116 | I141: =SUM(OFFSET(Inf!$A$10,$H141*12,4*($C$8-1)+2,12,1)) -> 6.494886 | J141: =SUM(OFFSET(Inf!$A$10,$H141*12,4*($C$8-1)+3,12,1)) -> 9.03677 | K141: =SUM(OFFSET(Inf!$A$10,$H141*12,4*($C$8-1)+4,12,1)) -> 12.34848 | L141: =SUM(OFFSET(Inf!$A$10,$H141*12,4*($C$8-1)+1,12,1)) -> 9.21195 | R141: 9.666666667 | S141: =VLOOKUP($R141,Inf!$A$10:$AG$2410,4*($C$8-1)+3) -> 0.54555 | T141: =VLOOKUP($R141,Inf!$A$10:$AG$2410,4*($C$8-1)+4) -> 0.85805 | U141: =VLOOKUP($R141,Inf!$A$10:$AG$2410,4*($C$8-1)+5) -> 1.2562 | V141: =VLOOKUP($R141,Inf!$A$10:$AG$2410,4*($C$8-1)+2) -> 0.88056
H142: 117 | I142: =SUM(OFFSET(Inf!$A$10,$H142*12,4*($C$8-1)+2,12,1)) -> 6.446182 | J142: =SUM(OFFSET(Inf!$A$10,$H142*12,4*($C$8-1)+3,12,1)) -> 9.1828 | K142: =SUM(OFFSET(Inf!$A$10,$H142*12,4*($C$8-1)+4,12,1)) -> 12.3879 | L142: =SUM(OFFSET(Inf!$A$10,$H142*12,4*($C$8-1)+1,12,1)) -> 9.36211 | R142: 9.75 | S142: =VLOOKUP($R142,Inf!$A$10:$AG$2410,4*($C$8-1)+3) -> 0.70619 | T142: =VLOOKUP($R142,Inf!$A$10:$AG$2410,4*($C$8-1)+4) -> 0.92654 | U142: =VLOOKUP($R142,Inf!$A$10:$AG$2410,4*($C$8-1)+5) -> 1.2319 | V142: =VLOOKUP($R142,Inf!$A$10:$AG$2410,4*($C$8-1)+2) -> 0.94398
H143: 118 | I143: =SUM(OFFSET(Inf!$A$10,$H143*12,4*($C$8-1)+2,12,1)) -> 6.426944 | J143: =SUM(OFFSET(Inf!$A$10,$H143*12,4*($C$8-1)+3,12,1)) -> 9.11262 | K143: =SUM(OFFSET(Inf!$A$10,$H143*12,4*($C$8-1)+4,12,1)) -> 12.09793 | L143: =SUM(OFFSET(Inf!$A$10,$H143*12,4*($C$8-1)+1,12,1)) -> 9.22796 | R143: 9.833333333 | S143: =VLOOKUP($R143,Inf!$A$10:$AG$2410,4*($C$8-1)+3) -> 0.51694 | T143: =VLOOKUP($R143,Inf!$A$10:$AG$2410,4*($C$8-1)+4) -> 0.6473 | U143: =VLOOKUP($R143,Inf!$A$10:$AG$2410,4*($C$8-1)+5) -> 0.83041 | V143: =VLOOKUP($R143,Inf!$A$10:$AG$2410,4*($C$8-1)+2) -> 0.6593
H144: 119 | I144: =SUM(OFFSET(Inf!$A$10,$H144*12,4*($C$8-1)+2,12,1)) -> 6.337619 | J144: =SUM(OFFSET(Inf!$A$10,$H144*12,4*($C$8-1)+3,12,1)) -> 8.85238 | K144: =SUM(OFFSET(Inf!$A$10,$H144*12,4*($C$8-1)+4,12,1)) -> 11.89774 | L144: =SUM(OFFSET(Inf!$A$10,$H144*12,4*($C$8-1)+1,12,1)) -> 9.00281 | R144: 9.916666667 | S144: =VLOOKUP($R144,Inf!$A$10:$AG$2410,4*($C$8-1)+3) -> 0.51694 | T144: =VLOOKUP($R144,Inf!$A$10:$AG$2410,4*($C$8-1)+4) -> 0.6473 | U144: =VLOOKUP($R144,Inf!$A$10:$AG$2410,4*($C$8-1)+5) -> 0.83041 | V144: =VLOOKUP($R144,Inf!$A$10:$AG$2410,4*($C$8-1)+2) -> 0.6593
H145: 120 | I145: =SUM(OFFSET(Inf!$A$10,$H145*12,4*($C$8-1)+2,12,1)) -> 6.449641 | J145: =SUM(OFFSET(Inf!$A$10,$H145*12,4*($C$8-1)+3,12,1)) -> 8.95085 | K145: =SUM(OFFSET(Inf!$A$10,$H145*12,4*($C$8-1)+4,12,1)) -> 11.97679 | L145: =SUM(OFFSET(Inf!$A$10,$H145*12,4*($C$8-1)+1,12,1)) -> 9.13527 | R145: 10 | S145: =VLOOKUP($R145,Inf!$A$10:$AG$2410,4*($C$8-1)+3) -> 0.47729 | T145: =VLOOKUP($R145,Inf!$A$10:$AG$2410,4*($C$8-1)+4) -> 0.57817 | U145: =VLOOKUP($R145,Inf!$A$10:$AG$2410,4*($C$8-1)+5) -> 0.70572 | V145: =VLOOKUP($R145,Inf!$A$10:$AG$2410,4*($C$8-1)+2) -> 0.58562
H146: 121 | I146: =SUM(OFFSET(Inf!$A$10,$H146*12,4*($C$8-1)+2,12,1)) -> 6.416445 | J146: =SUM(OFFSET(Inf!$A$10,$H146*12,4*($C$8-1)+3,12,1)) -> 8.88421 | K146: =SUM(OFFSET(Inf!$A$10,$H146*12,4*($C$8-1)+4,12,1)) -> 11.80052 | L146: =SUM(OFFSET(Inf!$A$10,$H146*12,4*($C$8-1)+1,12,1)) -> 9.03607 | R146: 10.08333333 | S146: =VLOOKUP($R146,Inf!$A$10:$AG$2410,4*($C$8-1)+3) -> 0.39206 | T146: =VLOOKUP($R146,Inf!$A$10:$AG$2410,4*($C$8-1)+4) -> 0.47493 | U146: =VLOOKUP($R146,Inf!$A$10:$AG$2410,4*($C$8-1)+5) -> 0.5797 | V146: =VLOOKUP($R146,Inf!$A$10:$AG$2410,4*($C$8-1)+2) -> 0.48105
H147: 122 | I147: =SUM(OFFSET(Inf!$A$10,$H147*12,4*($C$8-1)+2,12,1)) -> 6.677932 | J147: =SUM(OFFSET(Inf!$A$10,$H147*12,4*($C$8-1)+3,12,1)) -> 9.07496 | K147: =SUM(OFFSET(Inf!$A$10,$H147*12,4*($C$8-1)+4,12,1)) -> 12.30769 | L147: =SUM(OFFSET(Inf!$A$10,$H147*12,4*($C$8-1)+1,12,1)) -> 9.32035 | R147: 10.16666667 | S147: =VLOOKUP($R147,Inf!$A$10:$AG$2410,4*($C$8-1)+3) -> 0.39206 | T147: =VLOOKUP($R147,Inf!$A$10:$AG$2410,4*($C$8-1)+4) -> 0.47493 | U147: =VLOOKUP($R147,Inf!$A$10:$AG$2410,4*($C$8-1)+5) -> 0.5797 | V147: =VLOOKUP($R147,Inf!$A$10:$AG$2410,4*($C$8-1)+2) -> 0.48105
H148: 123 | I148: =SUM(OFFSET(Inf!$A$10,$H148*12,4*($C$8-1)+2,12,1)) -> 6.382082 | J148: =SUM(OFFSET(Inf!$A$10,$H148*12,4*($C$8-1)+3,12,1)) -> 9.21831 | K148: =SUM(OFFSET(Inf!$A$10,$H148*12,4*($C$8-1)+4,12,1)) -> 12.00772 | L148: =SUM(OFFSET(Inf!$A$10,$H148*12,4*($C$8-1)+1,12,1)) -> 9.24491 | R148: 10.25 | S148: =VLOOKUP($R148,Inf!$A$10:$AG$2410,4*($C$8-1)+3) -> 0.033076 | T148: =VLOOKUP($R148,Inf!$A$10:$AG$2410,4*($C$8-1)+4) -> 0.20131 | U148: =VLOOKUP($R148,Inf!$A$10:$AG$2410,4*($C$8-1)+5) -> 0.35827 | V148: =VLOOKUP($R148,Inf!$A$10:$AG$2410,4*($C$8-1)+2) -> 0.2013
H149: 124 | I149: =SUM(OFFSET(Inf!$A$10,$H149*12,4*($C$8-1)+2,12,1)) -> 6.351259 | J149: =SUM(OFFSET(Inf!$A$10,$H149*12,4*($C$8-1)+3,12,1)) -> 8.89894 | K149: =SUM(OFFSET(Inf!$A$10,$H149*12,4*($C$8-1)+4,12,1)) -> 11.94176 | L149: =SUM(OFFSET(Inf!$A$10,$H149*12,4*($C$8-1)+1,12,1)) -> 9.0676 | R149: 10.33333333 | S149: =VLOOKUP($R149,Inf!$A$10:$AG$2410,4*($C$8-1)+3) -> 0.44851 | T149: =VLOOKUP($R149,Inf!$A$10:$AG$2410,4*($C$8-1)+4) -> 0.72459 | U149: =VLOOKUP($R149,Inf!$A$10:$AG$2410,4*($C$8-1)+5) -> 1.0207 | V149: =VLOOKUP($R149,Inf!$A$10:$AG$2410,4*($C$8-1)+2) -> 0.7347
H150: 125 | I150: =SUM(OFFSET(Inf!$A$10,$H150*12,4*($C$8-1)+2,12,1)) -> 6.203241 | J150: =SUM(OFFSET(Inf!$A$10,$H150*12,4*($C$8-1)+3,12,1)) -> 9.15086 | K150: =SUM(OFFSET(Inf!$A$10,$H150*12,4*($C$8-1)+4,12,1)) -> 12.3425 | L150: =SUM(OFFSET(Inf!$A$10,$H150*12,4*($C$8-1)+1,12,1)) -> 9.23698 | R150: 10.41666667 | S150: =VLOOKUP($R150,Inf!$A$10:$AG$2410,4*($C$8-1)+3) -> 0.44851 | T150: =VLOOKUP($R150,Inf!$A$10:$AG$2410,4*($C$8-1)+4) -> 0.72459 | U150: =VLOOKUP($R150,Inf!$A$10:$AG$2410,4*($C$8-1)+5) -> 1.0207 | V150: =VLOOKUP($R150,Inf!$A$10:$AG$2410,4*($C$8-1)+2) -> 0.7347
H151: 126 | I151: =SUM(OFFSET(Inf!$A$10,$H151*12,4*($C$8-1)+2,12,1)) -> 6.381288 | J151: =SUM(OFFSET(Inf!$A$10,$H151*12,4*($C$8-1)+3,12,1)) -> 8.92239 | K151: =SUM(OFFSET(Inf!$A$10,$H151*12,4*($C$8-1)+4,12,1)) -> 12.0055 | L151: =SUM(OFFSET(Inf!$A$10,$H151*12,4*($C$8-1)+1,12,1)) -> 9.07972 | R151: 10.5 | S151: =VLOOKUP($R151,Inf!$A$10:$AG$2410,4*($C$8-1)+3) -> 0.59971 | T151: =VLOOKUP($R151,Inf!$A$10:$AG$2410,4*($C$8-1)+4) -> 0.94227 | U151: =VLOOKUP($R151,Inf!$A$10:$AG$2410,4*($C$8-1)+5) -> 1.3143 | V151: =VLOOKUP($R151,Inf!$A$10:$AG$2410,4*($C$8-1)+2) -> 0.95657
H152: 127 | I152: =SUM(OFFSET(Inf!$A$10,$H152*12,4*($C$8-1)+2,12,1)) -> 6.405386 | J152: =SUM(OFFSET(Inf!$A$10,$H152*12,4*($C$8-1)+3,12,1)) -> 9.03361 | K152: =SUM(OFFSET(Inf!$A$10,$H152*12,4*($C$8-1)+4,12,1)) -> 12.0038 | L152: =SUM(OFFSET(Inf!$A$10,$H152*12,4*($C$8-1)+1,12,1)) -> 9.13182 | R152: 10.58333333 | S152: =VLOOKUP($R152,Inf!$A$10:$AG$2410,4*($C$8-1)+3) -> 0.52156 | T152: =VLOOKUP($R152,Inf!$A$10:$AG$2410,4*($C$8-1)+4) -> 0.85304 | U152: =VLOOKUP($R152,Inf!$A$10:$AG$2410,4*($C$8-1)+5) -> 1.2068 | V152: =VLOOKUP($R152,Inf!$A$10:$AG$2410,4*($C$8-1)+2) -> 0.86381
H153: 128 | I153: =SUM(OFFSET(Inf!$A$10,$H153*12,4*($C$8-1)+2,12,1)) -> 6.469212 | J153: =SUM(OFFSET(Inf!$A$10,$H153*12,4*($C$8-1)+3,12,1)) -> 8.76382 | K153: =SUM(OFFSET(Inf!$A$10,$H153*12,4*($C$8-1)+4,12,1)) -> 11.77689 | L153: =SUM(OFFSET(Inf!$A$10,$H153*12,4*($C$8-1)+1,12,1)) -> 8.98868 | R153: 10.66666667 | S153: =VLOOKUP($R153,Inf!$A$10:$AG$2410,4*($C$8-1)+3) -> 0.52156 | T153: =VLOOKUP($R153,Inf!$A$10:$AG$2410,4*($C$8-1)+4) -> 0.85304 | U153: =VLOOKUP($R153,Inf!$A$10:$AG$2410,4*($C$8-1)+5) -> 1.2068 | V153: =VLOOKUP($R153,Inf!$A$10:$AG$2410,4*($C$8-1)+2) -> 0.86381
H154: 129 | I154: =SUM(OFFSET(Inf!$A$10,$H154*12,4*($C$8-1)+2,12,1)) -> 6.405688 | J154: =SUM(OFFSET(Inf!$A$10,$H154*12,4*($C$8-1)+3,12,1)) -> 8.84491 | K154: =SUM(OFFSET(Inf!$A$10,$H154*12,4*($C$8-1)+4,12,1)) -> 11.81119 | L154: =SUM(OFFSET(Inf!$A$10,$H154*12,4*($C$8-1)+1,12,1)) -> 8.99953 | R154: 10.75 | S154: =VLOOKUP($R154,Inf!$A$10:$AG$2410,4*($C$8-1)+3) -> 0.67233 | T154: =VLOOKUP($R154,Inf!$A$10:$AG$2410,4*($C$8-1)+4) -> 0.92478 | U154: =VLOOKUP($R154,Inf!$A$10:$AG$2410,4*($C$8-1)+5) -> 1.1931 | V154: =VLOOKUP($R154,Inf!$A$10:$AG$2410,4*($C$8-1)+2) -> 0.92932
H155: 130 | I155: =SUM(OFFSET(Inf!$A$10,$H155*12,4*($C$8-1)+2,12,1)) -> 6.223079 | J155: =SUM(OFFSET(Inf!$A$10,$H155*12,4*($C$8-1)+3,12,1)) -> 9.01725 | K155: =SUM(OFFSET(Inf!$A$10,$H155*12,4*($C$8-1)+4,12,1)) -> 12.45072 | L155: =SUM(OFFSET(Inf!$A$10,$H155*12,4*($C$8-1)+1,12,1)) -> 9.13433 | R155: =R154+1/12 -> 10.83333333 | S155: =VLOOKUP($R155,Inf!$A$10:$AG$2410,4*($C$8-1)+3) -> 0.50568 | T155: =VLOOKUP($R155,Inf!$A$10:$AG$2410,4*($C$8-1)+4) -> 0.64344 | U155: =VLOOKUP($R155,Inf!$A$10:$AG$2410,4*($C$8-1)+5) -> 0.80721 | V155: =VLOOKUP($R155,Inf!$A$10:$AG$2410,4*($C$8-1)+2) -> 0.65017
H156: 131 | I156: =SUM(OFFSET(Inf!$A$10,$H156*12,4*($C$8-1)+2,12,1)) -> 6.409423 | J156: =SUM(OFFSET(Inf!$A$10,$H156*12,4*($C$8-1)+3,12,1)) -> 8.95386 | K156: =SUM(OFFSET(Inf!$A$10,$H156*12,4*($C$8-1)+4,12,1)) -> 11.93158 | L156: =SUM(OFFSET(Inf!$A$10,$H156*12,4*($C$8-1)+1,12,1)) -> 9.10301 | R156: 10.91666667 | S156: =VLOOKUP($R156,Inf!$A$10:$AG$2410,4*($C$8-1)+3) -> 0.50568 | T156: =VLOOKUP($R156,Inf!$A$10:$AG$2410,4*($C$8-1)+4) -> 0.64344 | U156: =VLOOKUP($R156,Inf!$A$10:$AG$2410,4*($C$8-1)+5) -> 0.80721 | V156: =VLOOKUP($R156,Inf!$A$10:$AG$2410,4*($C$8-1)+2) -> 0.65017
H157: 132 | I157: =SUM(OFFSET(Inf!$A$10,$H157*12,4*($C$8-1)+2,12,1)) -> 6.416378 | J157: =SUM(OFFSET(Inf!$A$10,$H157*12,4*($C$8-1)+3,12,1)) -> 9.05659 | K157: =SUM(OFFSET(Inf!$A$10,$H157*12,4*($C$8-1)+4,12,1)) -> 12.04646 | L157: =SUM(OFFSET(Inf!$A$10,$H157*12,4*($C$8-1)+1,12,1)) -> 9.16695 | R157: 11 | S157: =VLOOKUP($R157,Inf!$A$10:$AG$2410,4*($C$8-1)+3) -> 0.47468 | T157: =VLOOKUP($R157,Inf!$A$10:$AG$2410,4*($C$8-1)+4) -> 0.58801 | U157: =VLOOKUP($R157,Inf!$A$10:$AG$2410,4*($C$8-1)+5) -> 0.70362 | V157: =VLOOKUP($R157,Inf!$A$10:$AG$2410,4*($C$8-1)+2) -> 0.59044
H158: 133 | I158: =SUM(OFFSET(Inf!$A$10,$H158*12,4*($C$8-1)+2,12,1)) -> 6.524538 | J158: =SUM(OFFSET(Inf!$A$10,$H158*12,4*($C$8-1)+3,12,1)) -> 9.12419 | K158: =SUM(OFFSET(Inf!$A$10,$H158*12,4*($C$8-1)+4,12,1)) -> 11.88139 | L158: =SUM(OFFSET(Inf!$A$10,$H158*12,4*($C$8-1)+1,12,1)) -> 9.15982 | R158: 11.08333333 | S158: =VLOOKUP($R158,Inf!$A$10:$AG$2410,4*($C$8-1)+3) -> 0.38991 | T158: =VLOOKUP($R158,Inf!$A$10:$AG$2410,4*($C$8-1)+4) -> 0.48301 | U158: =VLOOKUP($R158,Inf!$A$10:$AG$2410,4*($C$8-1)+5) -> 0.57797 | V158: =VLOOKUP($R158,Inf!$A$10:$AG$2410,4*($C$8-1)+2) -> 0.485
H159: 134 | I159: =SUM(OFFSET(Inf!$A$10,$H159*12,4*($C$8-1)+2,12,1)) -> 6.511613 | J159: =SUM(OFFSET(Inf!$A$10,$H159*12,4*($C$8-1)+3,12,1)) -> 9.10569 | K159: =SUM(OFFSET(Inf!$A$10,$H159*12,4*($C$8-1)+4,12,1)) -> 12.2184 | L159: =SUM(OFFSET(Inf!$A$10,$H159*12,4*($C$8-1)+1,12,1)) -> 9.25077 | R159: 11.16666667 | S159: =VLOOKUP($R159,Inf!$A$10:$AG$2410,4*($C$8-1)+3) -> 0.38991 | T159: =VLOOKUP($R159,Inf!$A$10:$AG$2410,4*($C$8-1)+4) -> 0.48301 | U159: =VLOOKUP($R159,Inf!$A$10:$AG$2410,4*($C$8-1)+5) -> 0.57797 | V159: =VLOOKUP($R159,Inf!$A$10:$AG$2410,4*($C$8-1)+2) -> 0.485
H160: 135 | I160: =SUM(OFFSET(Inf!$A$10,$H160*12,4*($C$8-1)+2,12,1)) -> 6.27645 | J160: =SUM(OFFSET(Inf!$A$10,$H160*12,4*($C$8-1)+3,12,1)) -> 8.9935 | K160: =SUM(OFFSET(Inf!$A$10,$H160*12,4*($C$8-1)+4,12,1)) -> 12.04005 | L160: =SUM(OFFSET(Inf!$A$10,$H160*12,4*($C$8-1)+1,12,1)) -> 9.08861 | R160: 11.25 | S160: =VLOOKUP($R160,Inf!$A$10:$AG$2410,4*($C$8-1)+3) -> 0.028782 | T160: =VLOOKUP($R160,Inf!$A$10:$AG$2410,4*($C$8-1)+4) -> 0.19197 | U160: =VLOOKUP($R160,Inf!$A$10:$AG$2410,4*($C$8-1)+5) -> 0.38863 | V160: =VLOOKUP($R160,Inf!$A$10:$AG$2410,4*($C$8-1)+2) -> 0.20755
H161: 136 | I161: =SUM(OFFSET(Inf!$A$10,$H161*12,4*($C$8-1)+2,12,1)) -> 6.448069 | J161: =SUM(OFFSET(Inf!$A$10,$H161*12,4*($C$8-1)+3,12,1)) -> 8.92305 | K161: =SUM(OFFSET(Inf!$A$10,$H161*12,4*($C$8-1)+4,12,1)) -> 11.84116 | L161: =SUM(OFFSET(Inf!$A$10,$H161*12,4*($C$8-1)+1,12,1)) -> 9.09098 | R161: 11.33333333 | S161: =VLOOKUP($R161,Inf!$A$10:$AG$2410,4*($C$8-1)+3) -> 0.46797 | T161: =VLOOKUP($R161,Inf!$A$10:$AG$2410,4*($C$8-1)+4) -> 0.72725 | U161: =VLOOKUP($R161,Inf!$A$10:$AG$2410,4*($C$8-1)+5) -> 1.0745 | V161: =VLOOKUP($R161,Inf!$A$10:$AG$2410,4*($C$8-1)+2) -> 0.74749
H162: 137 | I162: =SUM(OFFSET(Inf!$A$10,$H162*12,4*($C$8-1)+2,12,1)) -> 6.605506 | J162: =SUM(OFFSET(Inf!$A$10,$H162*12,4*($C$8-1)+3,12,1)) -> 9.12662 | K162: =SUM(OFFSET(Inf!$A$10,$H162*12,4*($C$8-1)+4,12,1)) -> 12.2267 | L162: =SUM(OFFSET(Inf!$A$10,$H162*12,4*($C$8-1)+1,12,1)) -> 9.28343 | R162: 11.41666667 | S162: =VLOOKUP($R162,Inf!$A$10:$AG$2410,4*($C$8-1)+3) -> 0.46797 | T162: =VLOOKUP($R162,Inf!$A$10:$AG$2410,4*($C$8-1)+4) -> 0.72725 | U162: =VLOOKUP($R162,Inf!$A$10:$AG$2410,4*($C$8-1)+5) -> 1.0745 | V162: =VLOOKUP($R162,Inf!$A$10:$AG$2410,4*($C$8-1)+2) -> 0.74749
H163: 138 | I163: =SUM(OFFSET(Inf!$A$10,$H163*12,4*($C$8-1)+2,12,1)) -> 6.39588 | J163: =SUM(OFFSET(Inf!$A$10,$H163*12,4*($C$8-1)+3,12,1)) -> 8.95828 | K163: =SUM(OFFSET(Inf!$A$10,$H163*12,4*($C$8-1)+4,12,1)) -> 12.24597 | L163: =SUM(OFFSET(Inf!$A$10,$H163*12,4*($C$8-1)+1,12,1)) -> 9.16574 | R163: 11.5 | S163: =VLOOKUP($R163,Inf!$A$10:$AG$2410,4*($C$8-1)+3) -> 0.63471 | T163: =VLOOKUP($R163,Inf!$A$10:$AG$2410,4*($C$8-1)+4) -> 0.95177 | U163: =VLOOKUP($R163,Inf!$A$10:$AG$2410,4*($C$8-1)+5) -> 1.3757 | V163: =VLOOKUP($R163,Inf!$A$10:$AG$2410,4*($C$8-1)+2) -> 0.97262
H164: 139 | I164: =SUM(OFFSET(Inf!$A$10,$H164*12,4*($C$8-1)+2,12,1)) -> 6.066576 | J164: =SUM(OFFSET(Inf!$A$10,$H164*12,4*($C$8-1)+3,12,1)) -> 9.06011 | K164: =SUM(OFFSET(Inf!$A$10,$H164*12,4*($C$8-1)+4,12,1)) -> 12.17872 | L164: =SUM(OFFSET(Inf!$A$10,$H164*12,4*($C$8-1)+1,12,1)) -> 9.14876 | R164: 11.58333333 | S164: =VLOOKUP($R164,Inf!$A$10:$AG$2410,4*($C$8-1)+3) -> 0.5438 | T164: =VLOOKUP($R164,Inf!$A$10:$AG$2410,4*($C$8-1)+4) -> 0.85422 | U164: =VLOOKUP($R164,Inf!$A$10:$AG$2410,4*($C$8-1)+5) -> 1.2689 | V164: =VLOOKUP($R164,Inf!$A$10:$AG$2410,4*($C$8-1)+2) -> 0.87905
H165: 140 | I165: =SUM(OFFSET(Inf!$A$10,$H165*12,4*($C$8-1)+2,12,1)) -> 6.586157 | J165: =SUM(OFFSET(Inf!$A$10,$H165*12,4*($C$8-1)+3,12,1)) -> 9.05999 | K165: =SUM(OFFSET(Inf!$A$10,$H165*12,4*($C$8-1)+4,12,1)) -> 12.09915 | L165: =SUM(OFFSET(Inf!$A$10,$H165*12,4*($C$8-1)+1,12,1)) -> 9.23484 | R165: 11.66666667 | S165: =VLOOKUP($R165,Inf!$A$10:$AG$2410,4*($C$8-1)+3) -> 0.5438 | T165: =VLOOKUP($R165,Inf!$A$10:$AG$2410,4*($C$8-1)+4) -> 0.85422 | U165: =VLOOKUP($R165,Inf!$A$10:$AG$2410,4*($C$8-1)+5) -> 1.2689 | V165: =VLOOKUP($R165,Inf!$A$10:$AG$2410,4*($C$8-1)+2) -> 0.87905
H166: 141 | I166: =SUM(OFFSET(Inf!$A$10,$H166*12,4*($C$8-1)+2,12,1)) -> 6.203027 | J166: =SUM(OFFSET(Inf!$A$10,$H166*12,4*($C$8-1)+3,12,1)) -> 8.99144 | K166: =SUM(OFFSET(Inf!$A$10,$H166*12,4*($C$8-1)+4,12,1)) -> 11.84087 | L166: =SUM(OFFSET(Inf!$A$10,$H166*12,4*($C$8-1)+1,12,1)) -> 9.04703 | R166: 11.75 | S166: =VLOOKUP($R166,Inf!$A$10:$AG$2410,4*($C$8-1)+3) -> 0.69386 | T166: =VLOOKUP($R166,Inf!$A$10:$AG$2410,4*($C$8-1)+4) -> 0.92901 | U166: =VLOOKUP($R166,Inf!$A$10:$AG$2410,4*($C$8-1)+5) -> 1.2193 | V166: =VLOOKUP($R166,Inf!$A$10:$AG$2410,4*($C$8-1)+2) -> 0.94156
H167: 142 | I167: =SUM(OFFSET(Inf!$A$10,$H167*12,4*($C$8-1)+2,12,1)) -> 6.430203 | J167: =SUM(OFFSET(Inf!$A$10,$H167*12,4*($C$8-1)+3,12,1)) -> 8.91862 | K167: =SUM(OFFSET(Inf!$A$10,$H167*12,4*($C$8-1)+4,12,1)) -> 11.92455 | L167: =SUM(OFFSET(Inf!$A$10,$H167*12,4*($C$8-1)+1,12,1)) -> 9.06909 | R167: 11.83333333 | S167: =VLOOKUP($R167,Inf!$A$10:$AG$2410,4*($C$8-1)+3) -> 0.50628 | T167: =VLOOKUP($R167,Inf!$A$10:$AG$2410,4*($C$8-1)+4) -> 0.65187 | U167: =VLOOKUP($R167,Inf!$A$10:$AG$2410,4*($C$8-1)+5) -> 0.80932 | V167: =VLOOKUP($R167,Inf!$A$10:$AG$2410,4*($C$8-1)+2) -> 0.65735
H168: 143 | I168: =SUM(OFFSET(Inf!$A$10,$H168*12,4*($C$8-1)+2,12,1)) -> 6.416376 | J168: =SUM(OFFSET(Inf!$A$10,$H168*12,4*($C$8-1)+3,12,1)) -> 9.10795 | K168: =SUM(OFFSET(Inf!$A$10,$H168*12,4*($C$8-1)+4,12,1)) -> 12.03762 | L168: =SUM(OFFSET(Inf!$A$10,$H168*12,4*($C$8-1)+1,12,1)) -> 9.18132 | R168: 11.91666667 | S168: =VLOOKUP($R168,Inf!$A$10:$AG$2410,4*($C$8-1)+3) -> 0.50628 | T168: =VLOOKUP($R168,Inf!$A$10:$AG$2410,4*($C$8-1)+4) -> 0.65187 | U168: =VLOOKUP($R168,Inf!$A$10:$AG$2410,4*($C$8-1)+5) -> 0.80932 | V168: =VLOOKUP($R168,Inf!$A$10:$AG$2410,4*($C$8-1)+2) -> 0.65735
H169: 144 | I169: =SUM(OFFSET(Inf!$A$10,$H169*12,4*($C$8-1)+2,12,1)) -> 6.33033 | J169: =SUM(OFFSET(Inf!$A$10,$H169*12,4*($C$8-1)+3,12,1)) -> 9.04263 | K169: =SUM(OFFSET(Inf!$A$10,$H169*12,4*($C$8-1)+4,12,1)) -> 11.99054 | L169: =SUM(OFFSET(Inf!$A$10,$H169*12,4*($C$8-1)+1,12,1)) -> 9.0988 | R169: 12 | S169: =VLOOKUP($R169,Inf!$A$10:$AG$2410,4*($C$8-1)+3) -> 0.47815 | T169: =VLOOKUP($R169,Inf!$A$10:$AG$2410,4*($C$8-1)+4) -> 0.59521 | U169: =VLOOKUP($R169,Inf!$A$10:$AG$2410,4*($C$8-1)+5) -> 0.71642 | V169: =VLOOKUP($R169,Inf!$A$10:$AG$2410,4*($C$8-1)+2) -> 0.59809
H170: 145 | I170: =SUM(OFFSET(Inf!$A$10,$H170*12,4*($C$8-1)+2,12,1)) -> 6.46816 | J170: =SUM(OFFSET(Inf!$A$10,$H170*12,4*($C$8-1)+3,12,1)) -> 9.01926 | K170: =SUM(OFFSET(Inf!$A$10,$H170*12,4*($C$8-1)+4,12,1)) -> 12.22431 | L170: =SUM(OFFSET(Inf!$A$10,$H170*12,4*($C$8-1)+1,12,1)) -> 9.13788 | R170: 12.08333333 | S170: =VLOOKUP($R170,Inf!$A$10:$AG$2410,4*($C$8-1)+3) -> 0.39277 | T170: =VLOOKUP($R170,Inf!$A$10:$AG$2410,4*($C$8-1)+4) -> 0.48893 | U170: =VLOOKUP($R170,Inf!$A$10:$AG$2410,4*($C$8-1)+5) -> 0.58849 | V170: =VLOOKUP($R170,Inf!$A$10:$AG$2410,4*($C$8-1)+2) -> 0.49129
H171: 146 | I171: =SUM(OFFSET(Inf!$A$10,$H171*12,4*($C$8-1)+2,12,1)) -> 6.629005 | J171: =SUM(OFFSET(Inf!$A$10,$H171*12,4*($C$8-1)+3,12,1)) -> 8.91857 | K171: =SUM(OFFSET(Inf!$A$10,$H171*12,4*($C$8-1)+4,12,1)) -> 11.82006 | L171: =SUM(OFFSET(Inf!$A$10,$H171*12,4*($C$8-1)+1,12,1)) -> 9.07678 | R171: 12.16666667 | S171: =VLOOKUP($R171,Inf!$A$10:$AG$2410,4*($C$8-1)+3) -> 0.39277 | T171: =VLOOKUP($R171,Inf!$A$10:$AG$2410,4*($C$8-1)+4) -> 0.48893 | U171: =VLOOKUP($R171,Inf!$A$10:$AG$2410,4*($C$8-1)+5) -> 0.58849 | V171: =VLOOKUP($R171,Inf!$A$10:$AG$2410,4*($C$8-1)+2) -> 0.49129
H172: 147 | I172: =SUM(OFFSET(Inf!$A$10,$H172*12,4*($C$8-1)+2,12,1)) -> 6.579618 | J172: =SUM(OFFSET(Inf!$A$10,$H172*12,4*($C$8-1)+3,12,1)) -> 9.1017 | K172: =SUM(OFFSET(Inf!$A$10,$H172*12,4*($C$8-1)+4,12,1)) -> 12.09994 | L172: =SUM(OFFSET(Inf!$A$10,$H172*12,4*($C$8-1)+1,12,1)) -> 9.26869 | R172: 12.25 | S172: =VLOOKUP($R172,Inf!$A$10:$AG$2410,4*($C$8-1)+3) -> 0.027331 | T172: =VLOOKUP($R172,Inf!$A$10:$AG$2410,4*($C$8-1)+4) -> 0.19824 | U172: =VLOOKUP($R172,Inf!$A$10:$AG$2410,4*($C$8-1)+5) -> 0.38026 | V172: =VLOOKUP($R172,Inf!$A$10:$AG$2410,4*($C$8-1)+2) -> 0.20467
H173: 148 | I173: =SUM(OFFSET(Inf!$A$10,$H173*12,4*($C$8-1)+2,12,1)) -> 6.466042 | J173: =SUM(OFFSET(Inf!$A$10,$H173*12,4*($C$8-1)+3,12,1)) -> 9.12219 | K173: =SUM(OFFSET(Inf!$A$10,$H173*12,4*($C$8-1)+4,12,1)) -> 11.95088 | L173: =SUM(OFFSET(Inf!$A$10,$H173*12,4*($C$8-1)+1,12,1)) -> 9.16705 | R173: 12.33333333 | S173: =VLOOKUP($R173,Inf!$A$10:$AG$2410,4*($C$8-1)+3) -> 0.45321 | T173: =VLOOKUP($R173,Inf!$A$10:$AG$2410,4*($C$8-1)+4) -> 0.73973 | U173: =VLOOKUP($R173,Inf!$A$10:$AG$2410,4*($C$8-1)+5) -> 1.0347 | V173: =VLOOKUP($R173,Inf!$A$10:$AG$2410,4*($C$8-1)+2) -> 0.74886
H174: 149 | I174: =SUM(OFFSET(Inf!$A$10,$H174*12,4*($C$8-1)+2,12,1)) -> 6.490539 | J174: =SUM(OFFSET(Inf!$A$10,$H174*12,4*($C$8-1)+3,12,1)) -> 9.20555 | K174: =SUM(OFFSET(Inf!$A$10,$H174*12,4*($C$8-1)+4,12,1)) -> 11.9016 | L174: =SUM(OFFSET(Inf!$A$10,$H174*12,4*($C$8-1)+1,12,1)) -> 9.25549 | R174: 12.41666667 | S174: =VLOOKUP($R174,Inf!$A$10:$AG$2410,4*($C$8-1)+3) -> 0.45321 | T174: =VLOOKUP($R174,Inf!$A$10:$AG$2410,4*($C$8-1)+4) -> 0.73973 | U174: =VLOOKUP($R174,Inf!$A$10:$AG$2410,4*($C$8-1)+5) -> 1.0347 | V174: =VLOOKUP($R174,Inf!$A$10:$AG$2410,4*($C$8-1)+2) -> 0.74886
H175: 150 | I175: =SUM(OFFSET(Inf!$A$10,$H175*12,4*($C$8-1)+2,12,1)) -> 6.378729 | J175: =SUM(OFFSET(Inf!$A$10,$H175*12,4*($C$8-1)+3,12,1)) -> 9.11556 | K175: =SUM(OFFSET(Inf!$A$10,$H175*12,4*($C$8-1)+4,12,1)) -> 12.30481 | L175: =SUM(OFFSET(Inf!$A$10,$H175*12,4*($C$8-1)+1,12,1)) -> 9.24166 | R175: 12.5 | S175: =VLOOKUP($R175,Inf!$A$10:$AG$2410,4*($C$8-1)+3) -> 0.60743 | T175: =VLOOKUP($R175,Inf!$A$10:$AG$2410,4*($C$8-1)+4) -> 0.97079 | U175: =VLOOKUP($R175,Inf!$A$10:$AG$2410,4*($C$8-1)+5) -> 1.3313 | V175: =VLOOKUP($R175,Inf!$A$10:$AG$2410,4*($C$8-1)+2) -> 0.97514
H176: 151 | I176: =SUM(OFFSET(Inf!$A$10,$H176*12,4*($C$8-1)+2,12,1)) -> 6.454021 | J176: =SUM(OFFSET(Inf!$A$10,$H176*12,4*($C$8-1)+3,12,1)) -> 8.99725 | K176: =SUM(OFFSET(Inf!$A$10,$H176*12,4*($C$8-1)+4,12,1)) -> 11.94032 | L176: =SUM(OFFSET(Inf!$A$10,$H176*12,4*($C$8-1)+1,12,1)) -> 9.13396 | R176: 12.58333333 | S176: =VLOOKUP($R176,Inf!$A$10:$AG$2410,4*($C$8-1)+3) -> 0.52682 | T176: =VLOOKUP($R176,Inf!$A$10:$AG$2410,4*($C$8-1)+4) -> 0.86944 | U176: =VLOOKUP($R176,Inf!$A$10:$AG$2410,4*($C$8-1)+5) -> 1.2234 | V176: =VLOOKUP($R176,Inf!$A$10:$AG$2410,4*($C$8-1)+2) -> 0.88042
H177: 152 | I177: =SUM(OFFSET(Inf!$A$10,$H177*12,4*($C$8-1)+2,12,1)) -> 6.443144 | J177: =SUM(OFFSET(Inf!$A$10,$H177*12,4*($C$8-1)+3,12,1)) -> 9.07151 | K177: =SUM(OFFSET(Inf!$A$10,$H177*12,4*($C$8-1)+4,12,1)) -> 12.09033 | L177: =SUM(OFFSET(Inf!$A$10,$H177*12,4*($C$8-1)+1,12,1)) -> 9.22439 | R177: 12.66666667 | S177: =VLOOKUP($R177,Inf!$A$10:$AG$2410,4*($C$8-1)+3) -> 0.52682 | T177: =VLOOKUP($R177,Inf!$A$10:$AG$2410,4*($C$8-1)+4) -> 0.86944 | U177: =VLOOKUP($R177,Inf!$A$10:$AG$2410,4*($C$8-1)+5) -> 1.2234 | V177: =VLOOKUP($R177,Inf!$A$10:$AG$2410,4*($C$8-1)+2) -> 0.88042
H178: 153 | I178: =SUM(OFFSET(Inf!$A$10,$H178*12,4*($C$8-1)+2,12,1)) -> 6.522731 | J178: =SUM(OFFSET(Inf!$A$10,$H178*12,4*($C$8-1)+3,12,1)) -> 9.09647 | K178: =SUM(OFFSET(Inf!$A$10,$H178*12,4*($C$8-1)+4,12,1)) -> 12.02038 | L178: =SUM(OFFSET(Inf!$A$10,$H178*12,4*($C$8-1)+1,12,1)) -> 9.21665 | R178: 12.75 | S178: =VLOOKUP($R178,Inf!$A$10:$AG$2410,4*($C$8-1)+3) -> 0.68478 | T178: =VLOOKUP($R178,Inf!$A$10:$AG$2410,4*($C$8-1)+4) -> 0.94482 | U178: =VLOOKUP($R178,Inf!$A$10:$AG$2410,4*($C$8-1)+5) -> 1.2068 | V178: =VLOOKUP($R178,Inf!$A$10:$AG$2410,4*($C$8-1)+2) -> 0.94809
H179: 154 | I179: =SUM(OFFSET(Inf!$A$10,$H179*12,4*($C$8-1)+2,12,1)) -> 6.61631 | J179: =SUM(OFFSET(Inf!$A$10,$H179*12,4*($C$8-1)+3,12,1)) -> 8.96526 | K179: =SUM(OFFSET(Inf!$A$10,$H179*12,4*($C$8-1)+4,12,1)) -> 11.9811 | L179: =SUM(OFFSET(Inf!$A$10,$H179*12,4*($C$8-1)+1,12,1)) -> 9.1837 | R179: 12.83333333 | S179: =VLOOKUP($R179,Inf!$A$10:$AG$2410,4*($C$8-1)+3) -> 0.50897 | T179: =VLOOKUP($R179,Inf!$A$10:$AG$2410,4*($C$8-1)+4) -> 0.66467 | U179: =VLOOKUP($R179,Inf!$A$10:$AG$2410,4*($C$8-1)+5) -> 0.81394 | V179: =VLOOKUP($R179,Inf!$A$10:$AG$2410,4*($C$8-1)+2) -> 0.66361
H180: 155 | I180: =SUM(OFFSET(Inf!$A$10,$H180*12,4*($C$8-1)+2,12,1)) -> 6.337675 | J180: =SUM(OFFSET(Inf!$A$10,$H180*12,4*($C$8-1)+3,12,1)) -> 9.07668 | K180: =SUM(OFFSET(Inf!$A$10,$H180*12,4*($C$8-1)+4,12,1)) -> 11.9966 | L180: =SUM(OFFSET(Inf!$A$10,$H180*12,4*($C$8-1)+1,12,1)) -> 9.10583 | R180: 12.91666667 | S180: =VLOOKUP($R180,Inf!$A$10:$AG$2410,4*($C$8-1)+3) -> 0.50897 | T180: =VLOOKUP($R180,Inf!$A$10:$AG$2410,4*($C$8-1)+4) -> 0.66467 | U180: =VLOOKUP($R180,Inf!$A$10:$AG$2410,4*($C$8-1)+5) -> 0.81394 | V180: =VLOOKUP($R180,Inf!$A$10:$AG$2410,4*($C$8-1)+2) -> 0.66361
H181: 156 | I181: =SUM(OFFSET(Inf!$A$10,$H181*12,4*($C$8-1)+2,12,1)) -> 6.377659 | J181: =SUM(OFFSET(Inf!$A$10,$H181*12,4*($C$8-1)+3,12,1)) -> 8.97215 | K181: =SUM(OFFSET(Inf!$A$10,$H181*12,4*($C$8-1)+4,12,1)) -> 11.7521 | L181: =SUM(OFFSET(Inf!$A$10,$H181*12,4*($C$8-1)+1,12,1)) -> 9.09098 | R181: 13 | S181: =VLOOKUP($R181,Inf!$A$10:$AG$2410,4*($C$8-1)+3) -> 0.48342 | T181: =VLOOKUP($R181,Inf!$A$10:$AG$2410,4*($C$8-1)+4) -> 0.59239 | U181: =VLOOKUP($R181,Inf!$A$10:$AG$2410,4*($C$8-1)+5) -> 0.71928 | V181: =VLOOKUP($R181,Inf!$A$10:$AG$2410,4*($C$8-1)+2) -> 0.59663
H182: 157 | I182: =SUM(OFFSET(Inf!$A$10,$H182*12,4*($C$8-1)+2,12,1)) -> 6.455744 | J182: =SUM(OFFSET(Inf!$A$10,$H182*12,4*($C$8-1)+3,12,1)) -> 9.0901 | K182: =SUM(OFFSET(Inf!$A$10,$H182*12,4*($C$8-1)+4,12,1)) -> 11.988 | L182: =SUM(OFFSET(Inf!$A$10,$H182*12,4*($C$8-1)+1,12,1)) -> 9.18572 | R182: 13.08333333 | S182: =VLOOKUP($R182,Inf!$A$10:$AG$2410,4*($C$8-1)+3) -> 0.3971 | T182: =VLOOKUP($R182,Inf!$A$10:$AG$2410,4*($C$8-1)+4) -> 0.48661 | U182: =VLOOKUP($R182,Inf!$A$10:$AG$2410,4*($C$8-1)+5) -> 0.59084 | V182: =VLOOKUP($R182,Inf!$A$10:$AG$2410,4*($C$8-1)+2) -> 0.49009
H183: 158 | I183: =SUM(OFFSET(Inf!$A$10,$H183*12,4*($C$8-1)+2,12,1)) -> 6.468011 | J183: =SUM(OFFSET(Inf!$A$10,$H183*12,4*($C$8-1)+3,12,1)) -> 9.1034 | K183: =SUM(OFFSET(Inf!$A$10,$H183*12,4*($C$8-1)+4,12,1)) -> 12.10523 | L183: =SUM(OFFSET(Inf!$A$10,$H183*12,4*($C$8-1)+1,12,1)) -> 9.20134 | R183: 13.16666667 | S183: =VLOOKUP($R183,Inf!$A$10:$AG$2410,4*($C$8-1)+3) -> 0.3971 | T183: =VLOOKUP($R183,Inf!$A$10:$AG$2410,4*($C$8-1)+4) -> 0.48661 | U183: =VLOOKUP($R183,Inf!$A$10:$AG$2410,4*($C$8-1)+5) -> 0.59084 | V183: =VLOOKUP($R183,Inf!$A$10:$AG$2410,4*($C$8-1)+2) -> 0.49009
H184: 159 | I184: =SUM(OFFSET(Inf!$A$10,$H184*12,4*($C$8-1)+2,12,1)) -> 6.59241 | J184: =SUM(OFFSET(Inf!$A$10,$H184*12,4*($C$8-1)+3,12,1)) -> 9.08213 | K184: =SUM(OFFSET(Inf!$A$10,$H184*12,4*($C$8-1)+4,12,1)) -> 12.31047 | L184: =SUM(OFFSET(Inf!$A$10,$H184*12,4*($C$8-1)+1,12,1)) -> 9.24776 | R184: 13.25 | S184: =VLOOKUP($R184,Inf!$A$10:$AG$2410,4*($C$8-1)+3) -> 0.04388 | T184: =VLOOKUP($R184,Inf!$A$10:$AG$2410,4*($C$8-1)+4) -> 0.20244 | U184: =VLOOKUP($R184,Inf!$A$10:$AG$2410,4*($C$8-1)+5) -> 0.36876 | V184: =VLOOKUP($R184,Inf!$A$10:$AG$2410,4*($C$8-1)+2) -> 0.21233
H185: 160 | I185: =SUM(OFFSET(Inf!$A$10,$H185*12,4*($C$8-1)+2,12,1)) -> 6.447299 | J185: =SUM(OFFSET(Inf!$A$10,$H185*12,4*($C$8-1)+3,12,1)) -> 9.00461 | K185: =SUM(OFFSET(Inf!$A$10,$H185*12,4*($C$8-1)+4,12,1)) -> 12.16559 | L185: =SUM(OFFSET(Inf!$A$10,$H185*12,4*($C$8-1)+1,12,1)) -> 9.20184 | R185: 13.33333333 | S185: =VLOOKUP($R185,Inf!$A$10:$AG$2410,4*($C$8-1)+3) -> 0.47752 | T185: =VLOOKUP($R185,Inf!$A$10:$AG$2410,4*($C$8-1)+4) -> 0.74239 | U185: =VLOOKUP($R185,Inf!$A$10:$AG$2410,4*($C$8-1)+5) -> 1.0499 | V185: =VLOOKUP($R185,Inf!$A$10:$AG$2410,4*($C$8-1)+2) -> 0.76042
H186: 161 | I186: =SUM(OFFSET(Inf!$A$10,$H186*12,4*($C$8-1)+2,12,1)) -> 6.368741 | J186: =SUM(OFFSET(Inf!$A$10,$H186*12,4*($C$8-1)+3,12,1)) -> 9.06911 | K186: =SUM(OFFSET(Inf!$A$10,$H186*12,4*($C$8-1)+4,12,1)) -> 12.0845 | L186: =SUM(OFFSET(Inf!$A$10,$H186*12,4*($C$8-1)+1,12,1)) -> 9.17209 | R186: 13.41666667 | S186: =VLOOKUP($R186,Inf!$A$10:$AG$2410,4*($C$8-1)+3) -> 0.47752 | T186: =VLOOKUP($R186,Inf!$A$10:$AG$2410,4*($C$8-1)+4) -> 0.74239 | U186: =VLOOKUP($R186,Inf!$A$10:$AG$2410,4*($C$8-1)+5) -> 1.0499 | V186: =VLOOKUP($R186,Inf!$A$10:$AG$2410,4*($C$8-1)+2) -> 0.76042
H187: 162 | I187: =SUM(OFFSET(Inf!$A$10,$H187*12,4*($C$8-1)+2,12,1)) -> 6.635983 | J187: =SUM(OFFSET(Inf!$A$10,$H187*12,4*($C$8-1)+3,12,1)) -> 9.13237 | K187: =SUM(OFFSET(Inf!$A$10,$H187*12,4*($C$8-1)+4,12,1)) -> 12.02815 | L187: =SUM(OFFSET(Inf!$A$10,$H187*12,4*($C$8-1)+1,12,1)) -> 9.25752 | R187: 13.5 | S187: =VLOOKUP($R187,Inf!$A$10:$AG$2410,4*($C$8-1)+3) -> 0.64352 | T187: =VLOOKUP($R187,Inf!$A$10:$AG$2410,4*($C$8-1)+4) -> 0.9684 | U187: =VLOOKUP($R187,Inf!$A$10:$AG$2410,4*($C$8-1)+5) -> 1.3631 | V187: =VLOOKUP($R187,Inf!$A$10:$AG$2410,4*($C$8-1)+2) -> 0.98899
H188: 163 | I188: =SUM(OFFSET(Inf!$A$10,$H188*12,4*($C$8-1)+2,12,1)) -> 6.408662 | J188: =SUM(OFFSET(Inf!$A$10,$H188*12,4*($C$8-1)+3,12,1)) -> 8.9096 | K188: =SUM(OFFSET(Inf!$A$10,$H188*12,4*($C$8-1)+4,12,1)) -> 12.32901 | L188: =SUM(OFFSET(Inf!$A$10,$H188*12,4*($C$8-1)+1,12,1)) -> 9.16766 | R188: 13.58333333 | S188: =VLOOKUP($R188,Inf!$A$10:$AG$2410,4*($C$8-1)+3) -> 0.55582 | T188: =VLOOKUP($R188,Inf!$A$10:$AG$2410,4*($C$8-1)+4) -> 0.87453 | U188: =VLOOKUP($R188,Inf!$A$10:$AG$2410,4*($C$8-1)+5) -> 1.2356 | V188: =VLOOKUP($R188,Inf!$A$10:$AG$2410,4*($C$8-1)+2) -> 0.89441
H189: 164 | I189: =SUM(OFFSET(Inf!$A$10,$H189*12,4*($C$8-1)+2,12,1)) -> 6.285463 | J189: =SUM(OFFSET(Inf!$A$10,$H189*12,4*($C$8-1)+3,12,1)) -> 8.94608 | K189: =SUM(OFFSET(Inf!$A$10,$H189*12,4*($C$8-1)+4,12,1)) -> 12.23176 | L189: =SUM(OFFSET(Inf!$A$10,$H189*12,4*($C$8-1)+1,12,1)) -> 9.10921 | R189: 13.66666667 | S189: =VLOOKUP($R189,Inf!$A$10:$AG$2410,4*($C$8-1)+3) -> 0.55582 | T189: =VLOOKUP($R189,Inf!$A$10:$AG$2410,4*($C$8-1)+4) -> 0.87453 | U189: =VLOOKUP($R189,Inf!$A$10:$AG$2410,4*($C$8-1)+5) -> 1.2356 | V189: =VLOOKUP($R189,Inf!$A$10:$AG$2410,4*($C$8-1)+2) -> 0.89441
H190: 165 | I190: =SUM(OFFSET(Inf!$A$10,$H190*12,4*($C$8-1)+2,12,1)) -> 6.369601 | J190: =SUM(OFFSET(Inf!$A$10,$H190*12,4*($C$8-1)+3,12,1)) -> 9.07057 | K190: =SUM(OFFSET(Inf!$A$10,$H190*12,4*($C$8-1)+4,12,1)) -> 12.18007 | L190: =SUM(OFFSET(Inf!$A$10,$H190*12,4*($C$8-1)+1,12,1)) -> 9.20753 | R190: 13.75 | S190: =VLOOKUP($R190,Inf!$A$10:$AG$2410,4*($C$8-1)+3) -> 0.71539 | T190: =VLOOKUP($R190,Inf!$A$10:$AG$2410,4*($C$8-1)+4) -> 0.94256 | U190: =VLOOKUP($R190,Inf!$A$10:$AG$2410,4*($C$8-1)+5) -> 1.2421 | V190: =VLOOKUP($R190,Inf!$A$10:$AG$2410,4*($C$8-1)+2) -> 0.95491
H191: 166 | I191: =SUM(OFFSET(Inf!$A$10,$H191*12,4*($C$8-1)+2,12,1)) -> 6.490152 | J191: =SUM(OFFSET(Inf!$A$10,$H191*12,4*($C$8-1)+3,12,1)) -> 9.10665 | K191: =SUM(OFFSET(Inf!$A$10,$H191*12,4*($C$8-1)+4,12,1)) -> 11.95775 | L191: =SUM(OFFSET(Inf!$A$10,$H191*12,4*($C$8-1)+1,12,1)) -> 9.17008 | R191: 13.83333333 | S191: =VLOOKUP($R191,Inf!$A$10:$AG$2410,4*($C$8-1)+3) -> 0.52717 | T191: =VLOOKUP($R191,Inf!$A$10:$AG$2410,4*($C$8-1)+4) -> 0.65982 | U191: =VLOOKUP($R191,Inf!$A$10:$AG$2410,4*($C$8-1)+5) -> 0.82555 | V191: =VLOOKUP($R191,Inf!$A$10:$AG$2410,4*($C$8-1)+2) -> 0.66563
H192: 167 | I192: =SUM(OFFSET(Inf!$A$10,$H192*12,4*($C$8-1)+2,12,1)) -> 6.697194 | J192: =SUM(OFFSET(Inf!$A$10,$H192*12,4*($C$8-1)+3,12,1)) -> 9.1192 | K192: =SUM(OFFSET(Inf!$A$10,$H192*12,4*($C$8-1)+4,12,1)) -> 12.06877 | L192: =SUM(OFFSET(Inf!$A$10,$H192*12,4*($C$8-1)+1,12,1)) -> 9.27328 | R192: 13.91666667 | S192: =VLOOKUP($R192,Inf!$A$10:$AG$2410,4*($C$8-1)+3) -> 0.52717 | T192: =VLOOKUP($R192,Inf!$A$10:$AG$2410,4*($C$8-1)+4) -> 0.65982 | U192: =VLOOKUP($R192,Inf!$A$10:$AG$2410,4*($C$8-1)+5) -> 0.82555 | V192: =VLOOKUP($R192,Inf!$A$10:$AG$2410,4*($C$8-1)+2) -> 0.66563
H193: 168 | I193: =SUM(OFFSET(Inf!$A$10,$H193*12,4*($C$8-1)+2,12,1)) -> 6.500676 | J193: =SUM(OFFSET(Inf!$A$10,$H193*12,4*($C$8-1)+3,12,1)) -> 9.0073 | K193: =SUM(OFFSET(Inf!$A$10,$H193*12,4*($C$8-1)+4,12,1)) -> 12.16876 | L193: =SUM(OFFSET(Inf!$A$10,$H193*12,4*($C$8-1)+1,12,1)) -> 9.23767 | R193: 14 | S193: =VLOOKUP($R193,Inf!$A$10:$AG$2410,4*($C$8-1)+3) -> 0.48108 | T193: =VLOOKUP($R193,Inf!$A$10:$AG$2410,4*($C$8-1)+4) -> 0.58576 | U193: =VLOOKUP($R193,Inf!$A$10:$AG$2410,4*($C$8-1)+5) -> 0.71391 | V193: =VLOOKUP($R193,Inf!$A$10:$AG$2410,4*($C$8-1)+2) -> 0.59081
H194: 169 | I194: =SUM(OFFSET(Inf!$A$10,$H194*12,4*($C$8-1)+2,12,1)) -> 6.424154 | J194: =SUM(OFFSET(Inf!$A$10,$H194*12,4*($C$8-1)+3,12,1)) -> 9.16714 | K194: =SUM(OFFSET(Inf!$A$10,$H194*12,4*($C$8-1)+4,12,1)) -> 12.09713 | L194: =SUM(OFFSET(Inf!$A$10,$H194*12,4*($C$8-1)+1,12,1)) -> 9.2692 | R194: 14.08333333 | S194: =VLOOKUP($R194,Inf!$A$10:$AG$2410,4*($C$8-1)+3) -> 0.39518 | T194: =VLOOKUP($R194,Inf!$A$10:$AG$2410,4*($C$8-1)+4) -> 0.48116 | U194: =VLOOKUP($R194,Inf!$A$10:$AG$2410,4*($C$8-1)+5) -> 0.58642 | V194: =VLOOKUP($R194,Inf!$A$10:$AG$2410,4*($C$8-1)+2) -> 0.48531
H195: 170 | I195: =SUM(OFFSET(Inf!$A$10,$H195*12,4*($C$8-1)+2,12,1)) -> 6.292111 | J195: =SUM(OFFSET(Inf!$A$10,$H195*12,4*($C$8-1)+3,12,1)) -> 9.00973 | K195: =SUM(OFFSET(Inf!$A$10,$H195*12,4*($C$8-1)+4,12,1)) -> 11.99846 | L195: =SUM(OFFSET(Inf!$A$10,$H195*12,4*($C$8-1)+1,12,1)) -> 9.10525 | R195: 14.16666667 | S195: =VLOOKUP($R195,Inf!$A$10:$AG$2410,4*($C$8-1)+3) -> 0.39518 | T195: =VLOOKUP($R195,Inf!$A$10:$AG$2410,4*($C$8-1)+4) -> 0.48116 | U195: =VLOOKUP($R195,Inf!$A$10:$AG$2410,4*($C$8-1)+5) -> 0.58642 | V195: =VLOOKUP($R195,Inf!$A$10:$AG$2410,4*($C$8-1)+2) -> 0.48531
H196: 171 | I196: =SUM(OFFSET(Inf!$A$10,$H196*12,4*($C$8-1)+2,12,1)) -> 6.290208 | J196: =SUM(OFFSET(Inf!$A$10,$H196*12,4*($C$8-1)+3,12,1)) -> 8.9699 | K196: =SUM(OFFSET(Inf!$A$10,$H196*12,4*($C$8-1)+4,12,1)) -> 12.05816 | L196: =SUM(OFFSET(Inf!$A$10,$H196*12,4*($C$8-1)+1,12,1)) -> 9.10703 | R196: 14.25 | S196: =VLOOKUP($R196,Inf!$A$10:$AG$2410,4*($C$8-1)+3) -> 0.035213 | T196: =VLOOKUP($R196,Inf!$A$10:$AG$2410,4*($C$8-1)+4) -> 0.20219 | U196: =VLOOKUP($R196,Inf!$A$10:$AG$2410,4*($C$8-1)+5) -> 0.39395 | V196: =VLOOKUP($R196,Inf!$A$10:$AG$2410,4*($C$8-1)+2) -> 0.20791
H197: 172 | I197: =SUM(OFFSET(Inf!$A$10,$H197*12,4*($C$8-1)+2,12,1)) -> 6.709182 | J197: =SUM(OFFSET(Inf!$A$10,$H197*12,4*($C$8-1)+3,12,1)) -> 9.14245 | K197: =SUM(OFFSET(Inf!$A$10,$H197*12,4*($C$8-1)+4,12,1)) -> 12.03766 | L197: =SUM(OFFSET(Inf!$A$10,$H197*12,4*($C$8-1)+1,12,1)) -> 9.29483 | R197: 14.33333333 | S197: =VLOOKUP($R197,Inf!$A$10:$AG$2410,4*($C$8-1)+3) -> 0.44962 | T197: =VLOOKUP($R197,Inf!$A$10:$AG$2410,4*($C$8-1)+4) -> 0.73234 | U197: =VLOOKUP($R197,Inf!$A$10:$AG$2410,4*($C$8-1)+5) -> 1.0948 | V197: =VLOOKUP($R197,Inf!$A$10:$AG$2410,4*($C$8-1)+2) -> 0.74839
H198: 173 | I198: =SUM(OFFSET(Inf!$A$10,$H198*12,4*($C$8-1)+2,12,1)) -> 6.501406 | J198: =SUM(OFFSET(Inf!$A$10,$H198*12,4*($C$8-1)+3,12,1)) -> 8.96608 | K198: =SUM(OFFSET(Inf!$A$10,$H198*12,4*($C$8-1)+4,12,1)) -> 12.05942 | L198: =SUM(OFFSET(Inf!$A$10,$H198*12,4*($C$8-1)+1,12,1)) -> 9.13153 | R198: 14.41666667 | S198: =VLOOKUP($R198,Inf!$A$10:$AG$2410,4*($C$8-1)+3) -> 0.44962 | T198: =VLOOKUP($R198,Inf!$A$10:$AG$2410,4*($C$8-1)+4) -> 0.73234 | U198: =VLOOKUP($R198,Inf!$A$10:$AG$2410,4*($C$8-1)+5) -> 1.0948 | V198: =VLOOKUP($R198,Inf!$A$10:$AG$2410,4*($C$8-1)+2) -> 0.74839
H199: 174 | I199: =SUM(OFFSET(Inf!$A$10,$H199*12,4*($C$8-1)+2,12,1)) -> 6.405621 | J199: =SUM(OFFSET(Inf!$A$10,$H199*12,4*($C$8-1)+3,12,1)) -> 8.94346 | K199: =SUM(OFFSET(Inf!$A$10,$H199*12,4*($C$8-1)+4,12,1)) -> 12.04255 | L199: =SUM(OFFSET(Inf!$A$10,$H199*12,4*($C$8-1)+1,12,1)) -> 9.10513 | R199: 14.5 | S199: =VLOOKUP($R199,Inf!$A$10:$AG$2410,4*($C$8-1)+3) -> 0.61162 | T199: =VLOOKUP($R199,Inf!$A$10:$AG$2410,4*($C$8-1)+4) -> 0.95385 | U199: =VLOOKUP($R199,Inf!$A$10:$AG$2410,4*($C$8-1)+5) -> 1.3993 | V199: =VLOOKUP($R199,Inf!$A$10:$AG$2410,4*($C$8-1)+2) -> 0.97376
H200: 175 | I200: =SUM(OFFSET(Inf!$A$10,$H200*12,4*($C$8-1)+2,12,1)) -> 6.37379 | J200: =SUM(OFFSET(Inf!$A$10,$H200*12,4*($C$8-1)+3,12,1)) -> 9.01815 | K200: =SUM(OFFSET(Inf!$A$10,$H200*12,4*($C$8-1)+4,12,1)) -> 12.04709 | L200: =SUM(OFFSET(Inf!$A$10,$H200*12,4*($C$8-1)+1,12,1)) -> 9.16868 | R200: 14.58333333 | S200: =VLOOKUP($R200,Inf!$A$10:$AG$2410,4*($C$8-1)+3) -> 0.52139 | T200: =VLOOKUP($R200,Inf!$A$10:$AG$2410,4*($C$8-1)+4) -> 0.86065 | U200: =VLOOKUP($R200,Inf!$A$10:$AG$2410,4*($C$8-1)+5) -> 1.2914 | V200: =VLOOKUP($R200,Inf!$A$10:$AG$2410,4*($C$8-1)+2) -> 0.88013
H201: 176 | I201: =SUM(OFFSET(Inf!$A$10,$H201*12,4*($C$8-1)+2,12,1)) -> 6.471329 | J201: =SUM(OFFSET(Inf!$A$10,$H201*12,4*($C$8-1)+3,12,1)) -> 8.91564 | K201: =SUM(OFFSET(Inf!$A$10,$H201*12,4*($C$8-1)+4,12,1)) -> 11.75447 | L201: =SUM(OFFSET(Inf!$A$10,$H201*12,4*($C$8-1)+1,12,1)) -> 9.0516 | R201: 14.66666667 | S201: =VLOOKUP($R201,Inf!$A$10:$AG$2410,4*($C$8-1)+3) -> 0.52139 | T201: =VLOOKUP($R201,Inf!$A$10:$AG$2410,4*($C$8-1)+4) -> 0.86065 | U201: =VLOOKUP($R201,Inf!$A$10:$AG$2410,4*($C$8-1)+5) -> 1.2914 | V201: =VLOOKUP($R201,Inf!$A$10:$AG$2410,4*($C$8-1)+2) -> 0.88013
H202: 177 | I202: =SUM(OFFSET(Inf!$A$10,$H202*12,4*($C$8-1)+2,12,1)) -> 6.474537 | J202: =SUM(OFFSET(Inf!$A$10,$H202*12,4*($C$8-1)+3,12,1)) -> 8.98755 | K202: =SUM(OFFSET(Inf!$A$10,$H202*12,4*($C$8-1)+4,12,1)) -> 12.11764 | L202: =SUM(OFFSET(Inf!$A$10,$H202*12,4*($C$8-1)+1,12,1)) -> 9.19093 | R202: 14.75 | S202: =VLOOKUP($R202,Inf!$A$10:$AG$2410,4*($C$8-1)+3) -> 0.69379 | T202: =VLOOKUP($R202,Inf!$A$10:$AG$2410,4*($C$8-1)+4) -> 0.92067 | U202: =VLOOKUP($R202,Inf!$A$10:$AG$2410,4*($C$8-1)+5) -> 1.2347 | V202: =VLOOKUP($R202,Inf!$A$10:$AG$2410,4*($C$8-1)+2) -> 0.94247
H203: 178 | I203: =SUM(OFFSET(Inf!$A$10,$H203*12,4*($C$8-1)+2,12,1)) -> 6.406484 | J203: =SUM(OFFSET(Inf!$A$10,$H203*12,4*($C$8-1)+3,12,1)) -> 9.07492 | K203: =SUM(OFFSET(Inf!$A$10,$H203*12,4*($C$8-1)+4,12,1)) -> 12.35934 | L203: =SUM(OFFSET(Inf!$A$10,$H203*12,4*($C$8-1)+1,12,1)) -> 9.20956 | R203: 14.83333333 | S203: =VLOOKUP($R203,Inf!$A$10:$AG$2410,4*($C$8-1)+3) -> 0.51257 | T203: =VLOOKUP($R203,Inf!$A$10:$AG$2410,4*($C$8-1)+4) -> 0.64635 | U203: =VLOOKUP($R203,Inf!$A$10:$AG$2410,4*($C$8-1)+5) -> 0.82785 | V203: =VLOOKUP($R203,Inf!$A$10:$AG$2410,4*($C$8-1)+2) -> 0.65788
H204: 179 | I204: =SUM(OFFSET(Inf!$A$10,$H204*12,4*($C$8-1)+2,12,1)) -> 6.1761701 | J204: =SUM(OFFSET(Inf!$A$10,$H204*12,4*($C$8-1)+3,12,1)) -> 8.85633 | K204: =SUM(OFFSET(Inf!$A$10,$H204*12,4*($C$8-1)+4,12,1)) -> 12.26534 | L204: =SUM(OFFSET(Inf!$A$10,$H204*12,4*($C$8-1)+1,12,1)) -> 9.07258 | R204: 14.91666667 | S204: =VLOOKUP($R204,Inf!$A$10:$AG$2410,4*($C$8-1)+3) -> 0.51257 | T204: =VLOOKUP($R204,Inf!$A$10:$AG$2410,4*($C$8-1)+4) -> 0.64635 | U204: =VLOOKUP($R204,Inf!$A$10:$AG$2410,4*($C$8-1)+5) -> 0.82785 | V204: =VLOOKUP($R204,Inf!$A$10:$AG$2410,4*($C$8-1)+2) -> 0.65788
H205: 180 | I205: =SUM(OFFSET(Inf!$A$10,$H205*12,4*($C$8-1)+2,12,1)) -> 6.516472 | J205: =SUM(OFFSET(Inf!$A$10,$H205*12,4*($C$8-1)+3,12,1)) -> 9.16015 | K205: =SUM(OFFSET(Inf!$A$10,$H205*12,4*($C$8-1)+4,12,1)) -> 12.16651 | L205: =SUM(OFFSET(Inf!$A$10,$H205*12,4*($C$8-1)+1,12,1)) -> 9.27598 | R205: 15 | S205: =VLOOKUP($R205,Inf!$A$10:$AG$2410,4*($C$8-1)+3) -> 0.4775 | T205: =VLOOKUP($R205,Inf!$A$10:$AG$2410,4*($C$8-1)+4) -> 0.58579 | U205: =VLOOKUP($R205,Inf!$A$10:$AG$2410,4*($C$8-1)+5) -> 0.70805 | V205: =VLOOKUP($R205,Inf!$A$10:$AG$2410,4*($C$8-1)+2) -> 0.58858
H206: 181 | I206: =SUM(OFFSET(Inf!$A$10,$H206*12,4*($C$8-1)+2,12,1)) -> 6.259886 | J206: =SUM(OFFSET(Inf!$A$10,$H206*12,4*($C$8-1)+3,12,1)) -> 9.03299 | K206: =SUM(OFFSET(Inf!$A$10,$H206*12,4*($C$8-1)+4,12,1)) -> 12.12813 | L206: =SUM(OFFSET(Inf!$A$10,$H206*12,4*($C$8-1)+1,12,1)) -> 9.11873 | R206: 15.08333333 | S206: =VLOOKUP($R206,Inf!$A$10:$AG$2410,4*($C$8-1)+3) -> 0.39224 | T206: =VLOOKUP($R206,Inf!$A$10:$AG$2410,4*($C$8-1)+4) -> 0.48119 | U206: =VLOOKUP($R206,Inf!$A$10:$AG$2410,4*($C$8-1)+5) -> 0.58161 | V206: =VLOOKUP($R206,Inf!$A$10:$AG$2410,4*($C$8-1)+2) -> 0.48348
... 59 more rows

Sheet Inf
A1: =A7 -> ! GoldSim Time History Results,GSVersion:10.50.300
A2: =C7 -> Element:\Results\PROJECT_results\Unsat_Zones\LTVSMC\LTVSMC_Infiltration
A3: =D7 -> Model:C:\Tailings Basin\Version 6.0\NorthMet_PlantSite_FEIS_BiggerWWTP.gsm
A4: =E7 -> Time:12/15/2014 16:12:17
A5: Copied | B5: 2014-12-16T08:42:20
B6: Cell 2W Fines | F6: Cell 2W Coarse | J6: Cell 2W Embankments | N6: Cell 2E Fines | R6: Cell 2E Coarse | V6: Cell 2E Embankments | Z6: Cell 1E Fines | AD6: Cell 1E Coarse
A7: ! GoldSim Time History Results,GSVersion:10.50.300 | B7: Result:Statistics | C7: Element:\Results\PROJECT_results\Unsat_Zones\LTVSMC\LTVSMC_Infiltration | D7: Model:C:\Tailings Basin\Version 6.0\NorthMet_PlantSite_FEIS_BiggerWWTP.gsm | E7: Time:12/15/2014 16:12:17
A8: !Statistics
A9: Time (yr) | B9: INF_Limited [in/mon],Mean | C9: INF_Limited [in/mon],10% | D9: INF_Limited [in/mon],Median | E9: INF_Limited [in/mon],90% | F9: INF_Limited [in/mon],Mean | G9: INF_Limited [in/mon],10% | H9: INF_Limited [in/mon],Median | I9: INF_Limited [in/mon],90% | J9: INF_Limited [in/mon],Mean | K9: INF_Limited [in/mon],10% | L9: INF_Limited [in/mon],Median | M9: INF_Limited [in/mon],90% | N9: INF_Limited [in/mon],Mean | O9: INF_Limited [in/mon],10% | P9: INF_Limited [in/mon],Median | Q9: INF_Limited [in/mon],90% | R9: INF_Limited [in/mon],Mean | S9: INF_Limited [in/mon],10% | T9: INF_Limited [in/mon],Median | U9: INF_Limited [in/mon],90% | V9: INF_Limited [in/mon],Mean | W9: INF_Limited [in/mon],10% | X9: INF_Limited [in/mon],Median | Y9: INF_Limited [in/mon],90% | Z9: INF_Limited [in/mon],Mean | AA9: INF_Limited [in/mon],10% | AB9: INF_Limited [in/mon],Median | AC9: INF_Limited [in/mon],90% | AD9: INF_Limited [in/mon],Mean | AE9: INF_Limited [in/mon],10% | AF9: INF_Limited [in/mon],Median | AG9: INF_Limited [in/mon],90%
A10: 0 | B10: 0.78532 | C10: 0.64039 | D10: 0.77939 | E10: 0.93755 | F10: 0.78227 | G10: 0.63805 | H10: 0.77684 | I10: 0.93417 | J10: 0.58991 | K10: 0.4749 | L10: 0.58799 | M10: 0.70693 | N10: 0.39379 | O10: 0.29286 | P10: 0.38863 | Q10: 0.49979 | R10: 0.45245 | S10: 0.34981 | T10: 0.44889 | U10: 0.55957 | V10: 0.58991 | W10: 0.4749 | X10: 0.58799 | Y10: 0.70693 | Z10: 0.41637 | AA10: 0.32024 | AB10: 0.40792 | AC10: 0.53116 | AD10: 0.40841 | AE10: 0.30044 | AF10: 0.40442 | AG10: 0.5205
A11: 0.0833333 | B11: 0.64509 | C11: 0.52603 | D11: 0.64021 | E11: 0.77013 | F11: 0.64258 | G11: 0.52411 | H11: 0.63812 | I11: 0.76735 | J11: 0.48457 | K11: 0.39009 | L11: 0.48299 | M11: 0.58069 | N11: 0.32347 | O11: 0.24057 | P11: 0.31924 | Q11: 0.41054 | R11: 0.37166 | S11: 0.28734 | T11: 0.36873 | U11: 0.45965 | V11: 0.48457 | W11: 0.39009 | X11: 0.48299 | Y11: 0.58069 | Z11: 0.34202 | AA11: 0.26306 | AB11: 0.33508 | AC11: 0.43631 | AD11: 0.33548 | AE11: 0.24679 | AF11: 0.33221 | AG11: 0.42756
A12: 0.166667 | B12: 0.61427 | C12: 0.4921 | D12: 0.61237 | E12: 0.74623 | F12: 0.61056 | G12: 0.48933 | H12: 0.60885 | I12: 0.74232 | J12: 0.32336 | K12: 0.23324 | L12: 0.31903 | M12: 0.42234 | N12: 0.14051 | O12: 0.036925 | P12: 0.1353 | Q12: 0.24681 | R12: 0.2101 | S12: 0.11542 | T12: 0.20716 | U12: 0.30779 | V12: 0.21858 | W12: 0.13058 | X12: 0.21497 | Y12: 0.31043 | Z12: 0.16687 | AA12: 0.061398 | AB12: 0.16556 | AC12: 0.26664 | AD12: 0.15726 | AE12: 0.048822 | AF12: 0.15574 | AG12: 0.25521
A13: 0.25 | B13: 0.78259 | C13: 0.59753 | D13: 0.77581 | E13: 0.98201 | F13: 0.77583 | G13: 0.5925 | H13: 0.76831 | I13: 0.97377 | J13: 0.20315 | K13: 0.026351 | L13: 0.19971 | M13: 0.37653 | N13: 0.03711 | O13: 0.0083333 | P13: 0.0083333 | Q13: 0.10609 | R13: 0.08772 | S13: 0.0083333 | T13: 0.051692 | U13: 0.23146 | V13: 0.031433 | W13: 0.0083333 | X13: 0.0083333 | Y13: 0.10125 | Z13: 0.052198 | AA13: 0.0083333 | AB13: 0.0083333 | AC13: 0.16251 | AD13: 0.043785 | AE13: 0.0083333 | AF13: 0.0083333 | AG13: 0.14505
A14: 0.333333 | B14: 1.7428 | C14: 1.3712 | D14: 1.7392 | E14: 2.1388 | F14: 1.7306 | G14: 1.3615 | H14: 1.7253 | I14: 2.1281 | J14: 0.74016 | K14: 0.45008 | L14: 0.73432 | M14: 1.0533 | N14: 0.2229 | O14: 0.0083333 | P14: 0.17694 | Q14: 0.52577 | R14: 0.41549 | S14: 0.093724 | T14: 0.41385 | U14: 0.72517 | V14: 0.32054 | W14: 0.0083333 | X14: 0.30337 | Y14: 0.61334 | Z14: 0.29292 | AA14: 0.0083333 | AB14: 0.26981 | AC14: 0.5944 | AD14: 0.26429 | AE14: 0.0083333 | AF14: 0.23197 | AG14: 0.58196
A15: 0.416667 | B15: 2.6039 | C15: 2.0844 | D15: 2.5985 | E15: 3.1649 | F15: 2.5879 | G15: 2.0716 | H15: 2.5816 | I15: 3.15 | J15: 1.3493 | K15: 0.96237 | L15: 1.3304 | M15: 1.7712 | N15: 0.56996 | O15: 0.12813 | P15: 0.54792 | Q15: 1.0257 | R15: 0.86833 | S15: 0.45728 | T15: 0.85996 | U15: 1.2844 | V15: 0.88892 | W15: 0.50659 | X15: 0.87532 | Y15: 1.2849 | Z15: 0.68288 | AA15: 0.22828 | AB15: 0.67481 | AC15: 1.1154 | AD15: 0.64161 | AE15: 0.17602 | AF15: 0.63505 | AG15: 1.0629
A16: 0.5 | B16: 2.2019 | C16: 1.7368 | D16: 2.191 | E16: 2.6909 | F16: 2.1867 | G16: 1.723 | H16: 2.1793 | I16: 2.6772 | J16: 0.96368 | K16: 0.60154 | L16: 0.95345 | M16: 1.3553 | N16: 0.30416 | O16: 0.0083333 | P16: 0.25713 | Q16: 0.69227 | R16: 0.55258 | S16: 0.15551 | T16: 0.55203 | U16: 0.9453 | V16: 0.44851 | W16: 0.049213 | X16: 0.43344 | Y16: 0.81668 | Z16: 0.39538 | AA16: 0.0083333 | AB16: 0.37165 | AC16: 0.78226 | AD16: 0.35951 | AE16: 0.0083333 | AF16: 0.32755 | AG16: 0.76296
A17: 0.583333 | B17: 2.0719 | C17: 1.63 | D17: 2.0659 | E17: 2.5473 | F17: 2.0573 | G17: 1.6183 | H17: 2.0496 | I17: 2.5331 | J17: 0.87025 | K17: 0.52235 | L17: 0.86503 | M17: 1.2442 | N17: 0.2571 | O17: 0.0083333 | P17: 0.1976 | Q17: 0.61435 | R17: 0.48455 | S17: 0.09891 | T17: 0.48267 | U17: 0.85236 | V17: 0.36664 | W17: 0.0083333 | X17: 0.34253 | Y17: 0.71643 | Z17: 0.33949 | AA17: 0.0083333 | AB17: 0.3091 | AC17: 0.69805 | AD17: 0.30523 | AE17: 0.0083333 | AF17: 0.26356 | AG17: 0.68154
A18: 0.666667 | B18: 2.5206 | C18: 2.0209 | D18: 2.5148 | E18: 3.0603 | F18: 2.5055 | G18: 2.0096 | H18: 2.4996 | I18: 3.0443 | J18: 1.3328 | K18: 0.96314 | L18: 1.3137 | M18: 1.7375 | N18: 0.58226 | O18: 0.16024 | P18: 0.56235 | Q18: 1.0166 | R18: 0.86824 | S18: 0.48034 | T18: 0.85635 | U18: 1.2702 | V18: 0.90736 | W18: 0.54974 | X18: 0.89113 | Y18: 1.2821 | Z18: 0.69107 | AA18: 0.25974 | AB18: 0.68683 | AC18: 1.1003 | AD18: 0.65158 | AE18: 0.21113 | AF18: 0.6451 | AG18: 1.0518
A19: 0.75 | B19: 1.7643 | C19: 1.4153 | D19: 1.7616 | E19: 2.141 | F19: 1.7537 | G19: 1.407 | H19: 1.751 | I19: 2.1298 | J19: 0.93619 | K19: 0.67728 | L19: 0.92268 | M19: 1.2186 | N19: 0.41146 | O19: 0.11702 | P19: 0.39746 | Q19: 0.71454 | R19: 0.61114 | S19: 0.33938 | T19: 0.60291 | U19: 0.89301 | V19: 0.6409 | W19: 0.39219 | X19: 0.62932 | Y19: 0.90194 | Z19: 0.48747 | AA19: 0.18615 | AB19: 0.48491 | AC19: 0.77366 | AD19: 0.45991 | AE19: 0.15346 | AF19: 0.45561 | AG19: 0.73907
A20: 0.833333 | B20: 1.078 | C20: 0.87803 | D20: 1.0761 | E20: 1.2926 | F20: 1.0723 | G20: 0.87254 | H20: 1.0703 | I20: 1.2856 | J20: 0.65496 | K20: 0.49886 | L20: 0.64964 | M20: 0.81267 | N20: 0.35089 | O20: 0.1965 | P20: 0.34059 | Q20: 0.52104 | R20: 0.45977 | S20: 0.30863 | T20: 0.45414 | U20: 0.62307 | V20: 0.53748 | W20: 0.40468 | X20: 0.52903 | Y20: 0.68765 | Z20: 0.39281 | AA20: 0.2363 | AB20: 0.39005 | AC20: 0.56142 | AD20: 0.37802 | AE20: 0.21087 | AF20: 0.37444 | AG20: 0.53785
A21: 0.916667 | B21: 0.95361 | C21: 0.77761 | D21: 0.9464 | E21: 1.1385 | F21: 0.9499 | G21: 0.77477 | H21: 0.94331 | I21: 1.1343 | J21: 0.71631 | K21: 0.57666 | L21: 0.71398 | M21: 0.85842 | N21: 0.47818 | O21: 0.35562 | P21: 0.47191 | Q21: 0.60689 | R21: 0.54941 | S21: 0.42477 | T21: 0.54508 | U21: 0.67948 | V21: 0.71631 | W21: 0.57666 | X21: 0.71398 | Y21: 0.85842 | Z21: 0.50559 | AA21: 0.38887 | AB21: 0.49533 | AC21: 0.64498 | AD21: 0.49592 | AE21: 0.36482 | AF21: 0.49109 | AG21: 0.63204
A22: 1 | B22: 0.79507 | C22: 0.65864 | D22: 0.78651 | E22: 0.9513 | F22: 0.79196 | G22: 0.65569 | H22: 0.78361 | I22: 0.9477 | J22: 0.59737 | K22: 0.47775 | L22: 0.59068 | M22: 0.72315 | N22: 0.40345 | O22: 0.30447 | P22: 0.39148 | Q22: 0.51968 | R22: 0.45941 | S22: 0.35842 | T22: 0.45286 | U22: 0.57116 | V22: 0.59737 | W22: 0.47775 | X22: 0.59068 | Y22: 0.72315 | Z22: 0.42136 | AA22: 0.31929 | AB22: 0.41175 | AC22: 0.53699 | AD22: 0.41451 | AE22: 0.3155 | AF22: 0.41074 | AG22: 0.5214
A23: 1.08333 | B23: 0.65309 | C23: 0.54102 | D23: 0.64606 | E23: 0.78142 | F23: 0.65054 | G23: 0.53861 | H23: 0.64368 | I23: 0.77847 | J23: 0.4907 | K23: 0.39244 | L23: 0.4852 | M23: 0.59401 | N23: 0.33141 | O23: 0.2501 | P23: 0.32157 | Q23: 0.42688 | R23: 0.37737 | S23: 0.29442 | T23: 0.37199 | U23: 0.46917 | V23: 0.4907 | W23: 0.39244 | X23: 0.4852 | Y23: 0.59401 | Z23: 0.34612 | AA23: 0.26228 | AB23: 0.33823 | AC23: 0.4411 | AD23: 0.34049 | AE23: 0.25916 | AF23: 0.3374 | AG23: 0.42829
A24: 1.16667 | B24: 0.62452 | C24: 0.50759 | D24: 0.6169 | E24: 0.75736 | F24: 0.62074 | G24: 0.50469 | H24: 0.61299 | I24: 0.75335 | J24: 0.32724 | K24: 0.23515 | L24: 0.32235 | M24: 0.4264 | N24: 0.1499 | O24: 0.042945 | P24: 0.14642 | Q24: 0.25946 | R24: 0.21691 | S24: 0.12182 | T24: 0.21314 | U24: 0.31688 | V24: 0.22366 | W24: 0.13314 | X24: 0.22097 | Y24: 0.32003 | Z24: 0.171 | AA24: 0.067058 | AB24: 0.16941 | AC24: 0.27326 | AD24: 0.16286 | AE24: 0.064614 | AF24: 0.15922 | AG24: 0.25991
A25: 1.25 | B25: 0.79971 | C25: 0.6207 | D25: 0.78801 | E25: 0.98888 | F25: 0.79282 | G25: 0.61484 | H25: 0.78165 | I25: 0.98092 | J25: 0.20634 | K25: 0.02716 | L25: 0.19662 | M25: 0.38528 | N25: 0.042694 | O25: 0.0083333 | P25: 0.0083333 | Q25: 0.14365 | R25: 0.093692 | S25: 0.0083333 | T25: 0.058987 | U25: 0.24641 | V25: 0.033295 | W25: 0.0083333 | X25: 0.0083333 | Y25: 0.10831 | Z25: 0.055984 | AA25: 0.0083333 | AB25: 0.0083333 | AC25: 0.18099 | AD25: 0.048276 | AE25: 0.0083333 | AF25: 0.0083333 | AG25: 0.15766
A26: 1.33333 | B26: 1.7753 | C26: 1.4231 | D26: 1.7472 | E26: 2.1498 | F26: 1.7628 | G26: 1.4118 | H26: 1.7354 | I26: 2.1352 | J26: 0.74866 | K26: 0.45439 | L26: 0.73117 | M26: 1.0652 | N26: 0.24776 | O26: 0.0083333 | P26: 0.20612 | Q26: 0.58071 | R26: 0.43535 | S26: 0.11323 | T26: 0.42824 | U26: 0.76 | V26: 0.33363 | W26: 0.0083333 | X26: 0.32069 | Y26: 0.6473 | Z26: 0.30336 | AA26: 0.0083333 | AB26: 0.28325 | AC26: 0.63808 | AD26: 0.27651 | AE26: 0.0083333 | AF26: 0.2371 | AG26: 0.58685
A27: 1.41667 | B27: 2.6477 | C27: 2.1509 | D27: 2.6124 | E27: 3.2106 | F27: 2.6315 | G27: 2.1392 | H27: 2.5952 | I27: 3.1934 | J27: 1.3654 | K27: 0.97046 | L27: 1.3413 | M27: 1.7884 | N27: 0.60996 | O27: 0.14917 | P27: 0.59867 | Q27: 1.0817 | R27: 0.8974 | S27: 0.4913 | T27: 0.88108 | U27: 1.3304 | V27: 0.91033 | W27: 0.52274 | X27: 0.89769 | Y27: 1.3172 | Z27: 0.70034 | AA27: 0.25273 | AB27: 0.69371 | AC27: 1.1427 | AD27: 0.66545 | AE27: 0.24109 | AF27: 0.65237 | AG27: 1.0835
A28: 1.5 | B28: 2.2423 | C28: 1.8057 | D28: 2.2103 | E28: 2.7152 | F28: 2.2269 | G28: 1.7905 | H28: 2.1924 | I28: 2.6956 | J28: 0.97481 | K28: 0.60747 | L28: 0.95262 | M28: 1.3633 | N28: 0.33655 | O28: 0.0083333 | P28: 0.29701 | Q28: 0.75965 | R28: 0.57785 | S28: 0.17797 | T28: 0.57128 | U28: 0.98988 | V28: 0.46554 | W28: 0.058428 | X28: 0.45023 | Y28: 0.86865 | Z28: 0.40897 | AA28: 0.0083333 | AB28: 0.38845 | AC28: 0.82261 | AD28: 0.37523 | AE28: 0.0083333 | AF28: 0.33537 | AG28: 0.76784
A29: 1.58333 | B29: 2.1107 | C29: 1.6893 | D29: 2.078 | E29: 2.5576 | F29: 2.0958 | G29: 1.6755 | H29: 2.061 | I29: 2.5399 | J29: 0.88021 | K29: 0.53174 | L29: 0.86111 | M29: 1.2597 | N29: 0.28632 | O29: 0.0083333 | P29: 0.23429 | Q29: 0.68228 | R29: 0.50819 | S29: 0.12007 | T29: 0.49782 | U29: 0.89444 | V29: 0.38194 | W29: 0.0083333 | X29: 0.36662 | Y29: 0.75468 | Z29: 0.35181 | AA29: 0.0083333 | AB29: 0.32368 | AC29: 0.74756 | AD29: 0.31977 | AE29: 0.0083333 | AF29: 0.26755 | AG29: 0.68924
A30: 1.66667 | B30: 2.5626 | C30: 2.0838 | D30: 2.5322 | E30: 3.1078 | F30: 2.5472 | G30: 2.071 | H30: 2.5152 | I30: 3.0914 | J30: 1.3488 | K30: 0.97223 | L30: 1.3287 | M30: 1.7551 | N30: 0.62128 | O30: 0.18625 | P30: 0.60824 | Q30: 1.0697 | R30: 0.89619 | S30: 0.50654 | T30: 0.88221 | U30: 1.3033 | V30: 0.92822 | W30: 0.55664 | X30: 0.91688 | Y30: 1.3252 | Z30: 0.70804 | AA30: 0.2848 | AB30: 0.70159 | AC30: 1.1249 | AD30: 0.67455 | AE30: 0.27287 | AF30: 0.6596 | AG30: 1.0717
A31: 1.75 | B31: 1.7936 | C31: 1.459 | D31: 1.7726 | E31: 2.1752 | F31: 1.7828 | G31: 1.45 | H31: 1.7604 | I31: 2.1638 | J31: 0.94742 | K31: 0.68456 | L31: 0.93366 | M31: 1.2314 | N31: 0.43876 | O31: 0.13628 | P31: 0.43032 | Q31: 0.75155 | R31: 0.63068 | S31: 0.35826 | T31: 0.62172 | U31: 0.91381 | V31: 0.65552 | W31: 0.39757 | X31: 0.64706 | Y31: 0.93421 | Z31: 0.49935 | AA31: 0.20471 | AB31: 0.4944 | AC31: 0.78958 | AD31: 0.47596 | AE31: 0.19572 | AF31: 0.46637 | AG31: 0.75255
A32: 1.83333 | B32: 1.0943 | C32: 0.89761 | D32: 1.0829 | E32: 1.3122 | F32: 1.0885 | G32: 0.89297 | H32: 1.0772 | I32: 1.3063 | J32: 0.66299 | K32: 0.50492 | L32: 0.65102 | M32: 0.83319 | N32: 0.36703 | O32: 0.20341 | P32: 0.35963 | Q32: 0.53009 | R32: 0.47092 | S32: 0.31955 | T32: 0.46344 | U32: 0.6342 | V32: 0.54688 | W32: 0.40546 | X32: 0.53554 | Y32: 0.70157 | Z32: 0.40025 | AA32: 0.24576 | AB32: 0.39165 | AC32: 0.56301 | AD32: 0.38752 | AE32: 0.23562 | AF32: 0.38327 | AG32: 0.53744
A33: 1.91667 | B33: 0.96544 | C33: 0.79977 | D33: 0.95505 | E33: 1.1551 | F33: 0.96166 | G33: 0.7962 | H33: 0.95152 | I33: 1.1508 | J33: 0.72538 | K33: 0.58013 | L33: 0.71726 | M33: 0.87811 | N33: 0.48991 | O33: 0.36971 | P33: 0.47537 | Q33: 0.63103 | R33: 0.55786 | S33: 0.43523 | T33: 0.5499 | U33: 0.69355 | V33: 0.72538 | W33: 0.58013 | X33: 0.71726 | Y33: 0.87811 | Z33: 0.51165 | AA33: 0.38771 | AB33: 0.49999 | AC33: 0.65206 | AD33: 0.50333 | AE33: 0.38311 | AF33: 0.49876 | AG33: 0.63313
A34: 2 | B34: 0.77958 | C34: 0.64588 | D34: 0.77471 | E34: 0.91765 | F34: 0.77656 | G34: 0.64307 | H34: 0.77146 | I34: 0.91361 | J34: 0.58321 | K34: 0.47603 | L34: 0.57883 | M34: 0.69856 | N34: 0.38997 | O34: 0.29841 | P34: 0.38462 | Q34: 0.4934 | R34: 0.45011 | S34: 0.34772 | T34: 0.44118 | U34: 0.56288 | V34: 0.58321 | W34: 0.47603 | X34: 0.57883 | Y34: 0.69856 | Z34: 0.40899 | AA34: 0.30972 | AB34: 0.40269 | AC34: 0.51952 | AD34: 0.40416 | AE34: 0.30456 | AF34: 0.39714 | AG34: 0.51215
A35: 2.08333 | B35: 0.64037 | C35: 0.53054 | D35: 0.63637 | E35: 0.75379 | F35: 0.63789 | G35: 0.52823 | H35: 0.6337 | I35: 0.75047 | J35: 0.47907 | K35: 0.39102 | L35: 0.47547 | M35: 0.57381 | N35: 0.32034 | O35: 0.24512 | P35: 0.31594 | Q35: 0.40529 | R35: 0.36973 | S35: 0.28562 | T35: 0.36239 | U35: 0.46236 | V35: 0.47907 | W35: 0.39102 | X35: 0.47547 | Y35: 0.57381 | Z35: 0.33595 | AA35: 0.25442 | AB35: 0.33078 | AC35: 0.42675 | AD35: 0.33199 | AE35: 0.25017 | AF35: 0.32622 | AG35: 0.4207
A36: 2.16667 | B36: 0.61175 | C36: 0.48997 | D36: 0.61004 | E36: 0.72837 | F36: 0.60808 | G36: 0.48692 | H36: 0.60639 | I36: 0.72402 | J36: 0.31922 | K36: 0.22625 | L36: 0.31222 | M36: 0.41574 | N36: 0.13992 | O36: 0.038755 | P36: 0.13646 | Q36: 0.24715 | R36: 0.21165 | S36: 0.1153 | T36: 0.20533 | U36: 0.32226 | V36: 0.21302 | W36: 0.12195 | X36: 0.20929 | Y36: 0.30201 | Z36: 0.16218 | AA36: 0.064316 | AB36: 0.15786 | AC36: 0.26751 | AD36: 0.15648 | AE36: 0.055628 | AF36: 0.15513 | AG36: 0.25214
A37: 2.25 | B37: 0.78244 | C37: 0.5959 | D37: 0.7738 | E37: 0.96488 | F37: 0.77575 | G37: 0.59061 | H37: 0.76715 | I37: 0.95782 | J37: 0.20063 | K37: 0.019474 | L37: 0.19084 | M37: 0.374 | N37: 0.038445 | O37: 0.0083333 | P37: 0.0083333 | Q37: 0.12695 | R37: 0.093721 | S37: 0.0083333 | T37: 0.044655 | U37: 0.26389 | V37: 0.031816 | W37: 0.0083333 | X37: 0.0083333 | Y37: 0.10411 | Z37: 0.048778 | AA37: 0.0083333 | AB37: 0.0083333 | AC37: 0.15318 | AD37: 0.045544 | AE37: 0.0083333 | AF37: 0.0083333 | AG37: 0.14302
A38: 2.33333 | B38: 1.7382 | C38: 1.366 | D38: 1.7324 | E38: 2.0906 | F38: 1.7261 | G38: 1.3531 | H38: 1.7185 | I38: 2.0765 | J38: 0.72985 | K38: 0.43454 | L38: 0.7215 | M38: 1.0196 | N38: 0.2231 | O38: 0.0083333 | P38: 0.17867 | Q38: 0.54239 | R38: 0.42691 | S38: 0.093293 | T38: 0.40344 | U38: 0.78942 | V38: 0.30723 | W38: 0.0083333 | X38: 0.28388 | Y38: 0.61579 | Z38: 0.27793 | AA38: 0.0083333 | AB38: 0.24299 | AC38: 0.59388 | AD38: 0.26467 | AE38: 0.0083333 | AF38: 0.24444 | AG38: 0.54852
A39: 2.41667 | B39: 2.5935 | C39: 2.0728 | D39: 2.5867 | E39: 3.0952 | F39: 2.5777 | G39: 2.0591 | H39: 2.5721 | I39: 3.0758 | J39: 1.3319 | K39: 0.93845 | L39: 1.3035 | M39: 1.7409 | N39: 0.5678 | O39: 0.1344 | P39: 0.55353 | Q39: 1.031 | R39: 0.87544 | S39: 0.46003 | T39: 0.85346 | U39: 1.3484 | V39: 0.86531 | W39: 0.47649 | X39: 0.85078 | Y39: 1.2456 | Z39: 0.66325 | AA39: 0.24436 | AB39: 0.6444 | AC39: 1.115 | AD39: 0.63872 | AE39: 0.20526 | AF39: 0.62845 | AG39: 1.048
A40: 2.5 | B40: 2.1956 | C40: 1.7323 | D40: 2.1863 | E40: 2.6401 | F40: 2.1806 | G40: 1.7167 | H40: 2.1706 | I40: 2.6234 | J40: 0.95042 | K40: 0.58525 | L40: 0.93841 | M40: 1.3128 | N40: 0.3045 | O40: 0.0083333 | P40: 0.25558 | Q40: 0.70461 | R40: 0.56591 | S40: 0.15621 | T40: 0.54198 | U40: 1.0153 | V40: 0.43021 | W40: 0.019682 | X40: 0.40977 | Y40: 0.81223 | Z40: 0.37693 | AA40: 0.0083333 | AB40: 0.34635 | AC40: 0.78025 | AD40: 0.35895 | AE40: 0.0083333 | AF40: 0.34625 | AG40: 0.71755
A41: 2.58333 | B41: 2.0666 | C41: 1.6209 | D41: 2.0602 | E41: 2.4852 | F41: 2.0521 | G41: 1.607 | H41: 2.0442 | I41: 2.4679 | J41: 0.85806 | K41: 0.5056 | L41: 0.84757 | M41: 1.2061 | N41: 0.25735 | O41: 0.0083333 | P41: 0.20181 | Q41: 0.63796 | R41: 0.49848 | S41: 0.09647 | T41: 0.46951 | U41: 0.93397 | V41: 0.3512 | W41: 0.0083333 | X41: 0.32347 | Y41: 0.71944 | Z41: 0.32159 | AA41: 0.0083333 | AB41: 0.27712 | AC41: 0.69676 | AD41: 0.30617 | AE41: 0.0083333 | AF41: 0.27707 | AG41: 0.64477
A42: 2.66667 | B42: 2.5102 | C42: 2.0109 | D42: 2.5042 | E42: 2.9866 | F42: 2.4952 | G42: 1.9992 | H42: 2.4897 | I42: 2.9687 | J42: 1.3158 | K42: 0.93323 | L42: 1.2855 | M42: 1.7119 | N42: 0.57989 | O42: 0.16753 | P42: 0.5674 | Q42: 1.0198 | R42: 0.87454 | S42: 0.47873 | T42: 0.85006 | U42: 1.3256 | V42: 0.88455 | W42: 0.5151 | X42: 0.871 | Y42: 1.2483 | Z42: 0.67163 | AA42: 0.27069 | AB42: 0.65381 | AC42: 1.1026 | AD42: 0.64843 | AE42: 0.23694 | AF42: 0.64446 | AG42: 1.0391
A43: 2.75 | B43: 1.7569 | C43: 1.408 | D43: 1.754 | E43: 2.0892 | F43: 1.7465 | G43: 1.3997 | H43: 1.7429 | I43: 2.0767 | J43: 0.92423 | K43: 0.65708 | L43: 0.90273 | M43: 1.201 | N43: 0.40975 | O43: 0.12237 | P43: 0.40107 | Q43: 0.71701 | R43: 0.61548 | S43: 0.33821 | T43: 0.59916 | U43: 0.92956 | V43: 0.62494 | W43: 0.36874 | X43: 0.61656 | Y43: 0.8788 | Z43: 0.47383 | AA43: 0.19289 | AB43: 0.4613 | AC43: 0.77447 | AD43: 0.45766 | AE43: 0.17068 | AF43: 0.45515 | AG43: 0.72941
A44: 2.83333 | B44: 1.0723 | C44: 0.87399 | D44: 1.0688 | E44: 1.2709 | F44: 1.0667 | G44: 0.86908 | H44: 1.0634 | I44: 1.2646 | J44: 0.64698 | K44: 0.50084 | L44: 0.63944 | M44: 0.80369 | N44: 0.34875 | O44: 0.19649 | P44: 0.34033 | Q44: 0.50615 | R44: 0.46042 | S44: 0.301 | T44: 0.44871 | U44: 0.63191 | V44: 0.52792 | W44: 0.38676 | X44: 0.52603 | Y44: 0.662 | Z44: 0.38404 | AA44: 0.2283 | AB44: 0.37944 | AC44: 0.54237 | AD44: 0.37522 | AE44: 0.22099 | AF44: 0.37069 | AG44: 0.52519
A45: 2.91667 | B45: 0.94663 | C45: 0.78428 | D45: 0.94072 | E45: 1.1143 | F45: 0.94297 | G45: 0.78087 | H45: 0.93677 | I45: 1.1094 | J45: 0.70819 | K45: 0.57803 | L45: 0.70287 | M45: 0.84825 | N45: 0.47354 | O45: 0.36236 | P45: 0.46704 | Q45: 0.59913 | R45: 0.54656 | S45: 0.42223 | T45: 0.53571 | U45: 0.68349 | V45: 0.70819 | W45: 0.57803 | X45: 0.70287 | Y45: 0.84825 | Z45: 0.49663 | AA45: 0.37609 | AB45: 0.48898 | AC45: 0.63084 | AD45: 0.49077 | AE45: 0.36982 | AF45: 0.48225 | AG45: 0.6219
A46: 3 | B46: 0.78699 | C46: 0.63488 | D46: 0.781 | E46: 0.94522 | F46: 0.78399 | G46: 0.63271 | H46: 0.77764 | I46: 0.94207 | J46: 0.59322 | K46: 0.47691 | L46: 0.5886 | M46: 0.72173 | N46: 0.39941 | O46: 0.29875 | P46: 0.39509 | Q46: 0.5126 | R46: 0.4507 | S46: 0.34673 | T46: 0.44818 | U46: 0.56121 | V46: 0.59322 | W46: 0.47691 | X46: 0.5886 | Y46: 0.72173 | Z46: 0.4222 | AA46: 0.31819 | AB46: 0.41383 | AC46: 0.53525 | AD46: 0.41009 | AE46: 0.29693 | AF46: 0.4099 | AG46: 0.52851
A47: 3.08333 | B47: 0.64646 | C47: 0.52151 | D47: 0.64154 | E47: 0.77643 | F47: 0.64399 | G47: 0.51973 | H47: 0.63878 | I47: 0.77385 | J47: 0.48729 | K47: 0.39175 | L47: 0.4835 | M47: 0.59285 | N47: 0.32809 | O47: 0.2454 | P47: 0.32453 | Q47: 0.42107 | R47: 0.37021 | S47: 0.28482 | T47: 0.36814 | U47: 0.46099 | V47: 0.48729 | W47: 0.39175 | X47: 0.4835 | Y47: 0.59285 | Z47: 0.34681 | AA47: 0.26137 | AB47: 0.33993 | AC47: 0.43967 | AD47: 0.33686 | AE47: 0.24391 | AF47: 0.33671 | AG47: 0.43413
A48: 3.16667 | B48: 0.61545 | C48: 0.48589 | D48: 0.61101 | E48: 0.74426 | F48: 0.6118 | G48: 0.48285 | H48: 0.60791 | I48: 0.7394 | J48: 0.32793 | K48: 0.23659 | L48: 0.32301 | M48: 0.42004 | N48: 0.14627 | O48: 0.03951 | P48: 0.14368 | Q48: 0.25001 | R48: 0.20741 | S48: 0.11178 | T48: 0.20851 | U48: 0.30368 | V48: 0.22375 | W48: 0.13589 | X48: 0.21903 | Y48: 0.31556 | Z48: 0.17292 | AA48: 0.075175 | AB48: 0.16814 | AC48: 0.28449 | AD48: 0.15862 | AE48: 0.053339 | AF48: 0.15486 | AG48: 0.26513
A49: 3.25 | B49: 0.78392 | C49: 0.58888 | D49: 0.77985 | E49: 0.97933 | F49: 0.77726 | G49: 0.58168 | H49: 0.77329 | I49: 0.97128 | J49: 0.21127 | K49: 0.050707 | L49: 0.19468 | M49: 0.38184 | N49: 0.039036 | O49: 0.0083333 | P49: 0.0083333 | Q49: 0.12525 | R49: 0.084232 | S49: 0.0083333 | T49: 0.039025 | U49: 0.22231 | V49: 0.034974 | W49: 0.0083333 | X49: 0.0083333 | Y49: 0.11335 | Z49: 0.056976 | AA49: 0.0083333 | AB49: 0.0083333 | AC49: 0.19334 | AD49: 0.049284 | AE49: 0.0083333 | AF49: 0.0083333 | AG49: 0.15544
A50: 3.33333 | B50: 1.746 | C50: 1.3709 | D50: 1.7362 | E50: 2.1321 | F50: 1.734 | G50: 1.359 | H50: 1.7243 | I50: 2.1173 | J50: 0.75567 | K50: 0.47843 | L50: 0.7369 | M50: 1.0627 | N50: 0.23564 | O50: 0.0083333 | P50: 0.1963 | Q50: 0.54017 | R50: 0.40845 | S50: 0.08865 | T50: 0.41001 | U50: 0.72363 | V50: 0.3366 | W50: 0.032992 | X50: 0.31988 | Y50: 0.64477 | Z50: 0.30465 | AA50: 0.0083333 | AB50: 0.27096 | AC50: 0.66532 | AD50: 0.27096 | AE50: 0.0083333 | AF50: 0.22939 | AG50: 0.58254
A51: 3.41667 | B51: 2.6089 | C51: 2.052 | D51: 2.5944 | E51: 3.1532 | F51: 2.5932 | G51: 2.0389 | H51: 2.5767 | I51: 3.1322 | J51: 1.369 | K51: 0.97525 | L51: 1.3466 | M51: 1.7653 | N51: 0.59457 | O51: 0.13969 | P51: 0.57851 | Q51: 1.0419 | R51: 0.85679 | S51: 0.44219 | T51: 0.86421 | U51: 1.2692 | V51: 0.91122 | W51: 0.53302 | X51: 0.89346 | Y51: 1.3021 | Z51: 0.70883 | AA51: 0.28838 | AB51: 0.68998 | AC51: 1.1879 | AD51: 0.64747 | AE51: 0.1908 | AF51: 0.63803 | AG51: 1.1017
A52: 3.5 | B52: 2.2059 | C52: 1.7364 | D52: 2.1933 | E52: 2.6894 | F52: 2.191 | G52: 1.7234 | H52: 2.1788 | I52: 2.6727 | J52: 0.98286 | K52: 0.63963 | L52: 0.96322 | M52: 1.3635 | N52: 0.32141 | O52: 0.0083333 | P52: 0.2808 | Q52: 0.71549 | R52: 0.54394 | S52: 0.14984 | T52: 0.54723 | U52: 0.93749 | V52: 0.46912 | W52: 0.097845 | X52: 0.4575 | Y52: 0.85383 | Z52: 0.41161 | AA52: 0.0083333 | AB52: 0.37365 | AC52: 0.86365 | AD52: 0.36661 | AE52: 0.0083333 | AF52: 0.32228 | AG52: 0.76674
A53: 3.58333 | B53: 2.0757 | C53: 1.6282 | D53: 2.0611 | E53: 2.5348 | F53: 2.0613 | G53: 1.6154 | H53: 2.0468 | I53: 2.517 | J53: 0.88882 | K53: 0.55915 | L53: 0.86419 | M53: 1.2563 | N53: 0.2718 | O53: 0.0083333 | P53: 0.22091 | Q53: 0.63685 | R53: 0.47618 | S53: 0.092789 | T53: 0.47754 | U53: 0.85238 | V53: 0.38538 | W53: 0.016145 | X53: 0.36649 | Y53: 0.75237 | Z53: 0.35304 | AA53: 0.0083333 | AB53: 0.30751 | AC53: 0.78066 | AD53: 0.3137 | AE53: 0.0083333 | AF53: 0.26023 | AG53: 0.68427
A54: 3.66667 | B54: 2.5255 | C54: 1.996 | D54: 2.5081 | E54: 3.054 | F54: 2.5106 | G54: 1.9835 | H54: 2.4963 | I54: 3.0347 | J54: 1.3515 | K54: 0.97818 | L54: 1.3312 | M54: 1.7279 | N54: 0.60625 | O54: 0.17051 | P54: 0.59762 | Q54: 1.0305 | R54: 0.85711 | S54: 0.46677 | T54: 0.86207 | U54: 1.2516 | V54: 0.92845 | W54: 0.56813 | X54: 0.91297 | Y54: 1.3024 | Z54: 0.71582 | AA54: 0.31537 | AB54: 0.69608 | AC54: 1.1727 | AD54: 0.657 | AE54: 0.22762 | AF54: 0.64068 | AG54: 1.0941
A55: 3.75 | B55: 1.7677 | C55: 1.3982 | D55: 1.756 | E55: 2.1375 | F55: 1.7573 | G55: 1.3895 | H55: 1.7476 | I55: 2.1241 | J55: 0.9492 | K55: 0.68889 | L55: 0.93393 | M55: 1.2118 | N55: 0.42823 | O55: 0.12402 | P55: 0.42177 | Q55: 0.72437 | R55: 0.60337 | S55: 0.33122 | T55: 0.60723 | U55: 0.87898 | V55: 0.6556 | W55: 0.40352 | X55: 0.64448 | Y55: 0.91555 | Z55: 0.50475 | AA55: 0.22465 | AB55: 0.49005 | AC55: 0.82374 | AD55: 0.46368 | AE55: 0.1642 | AF55: 0.45154 | AG55: 0.76923
A56: 3.83333 | B56: 1.0801 | C56: 0.87057 | D56: 1.0701 | E56: 1.3041 | F56: 1.0746 | G56: 0.86664 | H56: 1.0652 | I56: 1.2976 | J56: 0.66173 | K56: 0.50895 | L56: 0.64932 | M56: 0.82034 | N56: 0.36057 | O56: 0.20162 | P56: 0.35645 | Q56: 0.53056 | R56: 0.4556 | S56: 0.30412 | T56: 0.44904 | U56: 0.61273 | V56: 0.54492 | W56: 0.40233 | X56: 0.53731 | Y56: 0.69478 | Z56: 0.40267 | AA56: 0.25142 | AB56: 0.38692 | AC56: 0.58231 | AD56: 0.38022 | AE56: 0.21132 | AF56: 0.37721 | AG56: 0.55564
A57: 3.91667 | B57: 0.95563 | C57: 0.77092 | D57: 0.94836 | E57: 1.1478 | F57: 0.95198 | G57: 0.76829 | H57: 0.94428 | I57: 1.1439 | J57: 0.72034 | K57: 0.57911 | L57: 0.71473 | M57: 0.87639 | N57: 0.485 | O57: 0.36277 | P57: 0.47975 | Q57: 0.62245 | R57: 0.54727 | S57: 0.42103 | T57: 0.54421 | U57: 0.68147 | V57: 0.72034 | W57: 0.57911 | X57: 0.71473 | Y57: 0.87639 | Z57: 0.51267 | AA57: 0.38638 | AB57: 0.50251 | AC57: 0.64995 | AD57: 0.49797 | AE57: 0.36056 | AF57: 0.49774 | AG57: 0.64176
A58: 4 | B58: 0.78437 | C58: 0.63619 | D58: 0.77932 | E58: 0.93413 | F58: 0.78137 | G58: 0.6333 | H58: 0.77653 | I58: 0.9302 | J58: 0.58892 | K58: 0.47363 | L58: 0.58746 | M58: 0.70461 | N58: 0.39411 | O58: 0.29647 | P58: 0.38892 | Q58: 0.49838 | R58: 0.44802 | S58: 0.33896 | T58: 0.44383 | U58: 0.55985 | V58: 0.58892 | W58: 0.47363 | X58: 0.58746 | Y58: 0.70461 | Z58: 0.42219 | AA58: 0.32256 | AB58: 0.41875 | AC58: 0.53401 | AD58: 0.41043 | AE58: 0.31159 | AF58: 0.40627 | AG58: 0.51991
A59: 4.08333 | B59: 0.64431 | C59: 0.52259 | D59: 0.64016 | E59: 0.76732 | F59: 0.64184 | G59: 0.52021 | H59: 0.63786 | I59: 0.76409 | J59: 0.48375 | K59: 0.38905 | L59: 0.48256 | M59: 0.57878 | N59: 0.32373 | O59: 0.24353 | P59: 0.31947 | Q59: 0.40938 | R59: 0.36801 | S59: 0.27843 | T59: 0.36457 | U59: 0.45988 | V59: 0.48375 | W59: 0.38905 | X59: 0.48256 | Y59: 0.57878 | Z59: 0.3468 | AA59: 0.26496 | AB59: 0.34397 | AC59: 0.43865 | AD59: 0.33714 | AE59: 0.25595 | AF59: 0.33372 | AG59: 0.42707
A60: 4.16667 | B60: 0.61129 | C60: 0.49045 | D60: 0.60557 | E60: 0.7388 | F60: 0.60765 | G60: 0.48745 | H60: 0.60252 | I60: 0.7344 | J60: 0.32284 | K60: 0.23913 | L60: 0.31783 | M60: 0.41589 | N60: 0.13864 | O60: 0.038917 | P60: 0.13827 | Q60: 0.24472 | R60: 0.20288 | S60: 0.10625 | T60: 0.20128 | U60: 0.30812 | V60: 0.21433 | W60: 0.12809 | X60: 0.21158 | Y60: 0.30408 | Z60: 0.17185 | AA60: 0.072966 | AB60: 0.16651 | AC60: 0.27139 | AD60: 0.15818 | AE60: 0.057949 | AF60: 0.15134 | AG60: 0.26613
A61: 4.25 | B61: 0.77537 | C61: 0.58283 | D61: 0.76342 | E61: 0.96561 | F61: 0.76872 | G61: 0.57685 | H61: 0.75719 | I61: 0.95855 | J61: 0.20275 | K61: 0.025859 | L61: 0.19288 | M61: 0.38345 | N61: 0.033306 | O61: 0.0083333 | P61: 0.0083333 | Q61: 0.11706 | R61: 0.080336 | S61: 0.0083333 | T61: 0.032345 | U61: 0.22291 | V61: 0.029142 | W61: 0.0083333 | X61: 0.0083333 | Y61: 0.092349 | Z61: 0.053018 | AA61: 0.0083333 | AB61: 0.0083333 | AC61: 0.16019 | AD61: 0.049205 | AE61: 0.0083333 | AF61: 0.0083333 | AG61: 0.14878
A62: 4.33333 | B62: 1.7315 | C62: 1.3655 | D62: 1.7152 | E62: 2.0997 | F62: 1.7195 | G62: 1.3545 | H62: 1.7033 | I62: 2.0854 | J62: 0.739 | K62: 0.45176 | L62: 0.72466 | M62: 1.0563 | N62: 0.21411 | O62: 0.0083333 | P62: 0.17279 | Q62: 0.52804 | R62: 0.39207 | S62: 0.060054 | T62: 0.39084 | U62: 0.71685 | V62: 0.30747 | W62: 0.0083333 | X62: 0.29112 | Y62: 0.60836 | Z62: 0.30145 | AA62: 0.0083333 | AB62: 0.27348 | AC62: 0.60156 | AD62: 0.26529 | AE62: 0.0083333 | AF62: 0.21889 | AG62: 0.60345
A63: 4.41667 | B63: 2.5909 | C63: 2.077 | D63: 2.57 | E63: 3.1256 | F63: 2.5753 | G63: 2.0641 | H63: 2.5564 | I63: 3.1075 | J63: 1.3472 | K63: 0.98622 | L63: 1.3276 | M63: 1.7439 | N63: 0.56171 | O63: 0.13216 | P63: 0.55997 | Q63: 1.0133 | R63: 0.8372 | S63: 0.42199 | T63: 0.83279 | U63: 1.2906 | V63: 0.87041 | W63: 0.50181 | X63: 0.85766 | Y63: 1.2569 | Z63: 0.7041 | AA63: 0.28053 | AB63: 0.68052 | AC63: 1.1363 | AD63: 0.64542 | AE63: 0.21454 | AF63: 0.61745 | AG63: 1.105
A64: 4.5 | B64: 2.188 | C64: 1.7266 | D64: 2.1679 | E64: 2.65 | F64: 2.1731 | G64: 1.7127 | H64: 2.1516 | I64: 2.6327 | J64: 0.96216 | K64: 0.60921 | L64: 0.94346 | M64: 1.3497 | N64: 0.29375 | O64: 0.0083333 | P64: 0.25705 | Q64: 0.69335 | R64: 0.52326 | S64: 0.11657 | T64: 0.52307 | U64: 0.93319 | V64: 0.43218 | W64: 0.041548 | X64: 0.41399 | Y64: 0.8087 | Z64: 0.40749 | AA64: 0.0083333 | AB64: 0.37519 | AC64: 0.78923 | AD64: 0.36012 | AE64: 0.0083333 | AF64: 0.30956 | AG64: 0.78618
A65: 4.58333 | B65: 2.0583 | C65: 1.622 | D65: 2.0385 | E65: 2.4981 | F65: 2.0439 | G65: 1.6088 | H65: 2.023 | I65: 2.4802 | J65: 0.86888 | K65: 0.52353 | L65: 0.85317 | M65: 1.2506 | N65: 0.24632 | O65: 0.0083333 | P65: 0.19244 | Q65: 0.61996 | R65: 0.45665 | S65: 0.057517 | T65: 0.45534 | U65: 0.84584 | V65: 0.35097 | W65: 0.0083333 | X65: 0.329 | Y65: 0.71196 | Z65: 0.34927 | AA65: 0.0083333 | AB65: 0.3145 | AC65: 0.71024 | AD65: 0.30686 | AE65: 0.0083333 | AF65: 0.24859 | AG65: 0.71034
A66: 4.66667 | B66: 2.5085 | C66: 2.0131 | D66: 2.4855 | E66: 3.0338 | F66: 2.4936 | G66: 2.0009 | H66: 2.4716 | I66: 3.0154 | J66: 1.3307 | K66: 0.98914 | L66: 1.3108 | M66: 1.7114 | N66: 0.57474 | O66: 0.17054 | P66: 0.57296 | Q66: 1.0093 | R66: 0.83882 | S66: 0.44306 | T66: 0.83288 | U66: 1.2682 | V66: 0.89005 | W66: 0.53858 | X66: 0.87876 | Y66: 1.2568 | Z66: 0.71146 | AA66: 0.30702 | AB66: 0.69108 | AC66: 1.1183 | AD66: 0.65529 | AE66: 0.24739 | AF66: 0.62849 | AG66: 1.099
A67: 4.75 | B67: 1.7558 | C67: 1.4094 | D67: 1.7406 | E67: 2.1247 | F67: 1.7454 | G67: 1.4008 | H67: 1.7303 | I67: 2.1115 | J67: 0.93468 | K67: 0.69627 | L67: 0.92048 | M67: 1.2005 | N67: 0.40624 | O67: 0.12498 | P67: 0.40422 | Q67: 0.70806 | R67: 0.59064 | S67: 0.31503 | T67: 0.58682 | U67: 0.88973 | V67: 0.62887 | W67: 0.38363 | X67: 0.62067 | Y67: 0.88449 | Z67: 0.50173 | AA67: 0.21926 | AB67: 0.48742 | AC67: 0.78537 | AD67: 0.4625 | AE67: 0.17884 | AF67: 0.44424 | AG67: 0.77231
A68: 4.83333 | B68: 1.0742 | C68: 0.86459 | D68: 1.0686 | E68: 1.2883 | F68: 1.0686 | G68: 0.86018 | H68: 1.063 | I68: 1.2822 | J68: 0.65389 | K68: 0.50591 | L68: 0.64709 | M68: 0.79867 | N68: 0.34941 | O68: 0.18986 | P68: 0.3472 | Q68: 0.51886 | R68: 0.44953 | S68: 0.29613 | T68: 0.44542 | U68: 0.61703 | V68: 0.53223 | W68: 0.39879 | X68: 0.52447 | Y68: 0.66811 | Z68: 0.40158 | AA68: 0.24253 | AB68: 0.39297 | AC68: 0.56272 | AD68: 0.37975 | AE68: 0.22404 | AF68: 0.37166 | AG68: 0.55359
A69: 4.91667 | B69: 0.95245 | C69: 0.77252 | D69: 0.94632 | E69: 1.1343 | F69: 0.94881 | G69: 0.76901 | H69: 0.94293 | I69: 1.1295 | J69: 0.71511 | K69: 0.57512 | L69: 0.71334 | M69: 0.85559 | N69: 0.47856 | O69: 0.36 | P69: 0.47226 | Q69: 0.60518 | R69: 0.54402 | S69: 0.41159 | T69: 0.53893 | U69: 0.67982 | V69: 0.71511 | W69: 0.57512 | X69: 0.71334 | Y69: 0.85559 | Z69: 0.51266 | AA69: 0.39168 | AB69: 0.50848 | AC69: 0.64844 | AD69: 0.49838 | AE69: 0.37836 | AF69: 0.49333 | AG69: 0.63131
A70: 5 | B70: 0.77971 | C70: 0.63192 | D70: 0.7737 | E70: 0.92908 | F70: 0.7767 | G70: 0.62898 | H70: 0.77034 | I70: 0.92509 | J70: 0.58554 | K70: 0.47309 | L70: 0.58316 | M70: 0.7072 | N70: 0.38848 | O70: 0.27832 | P70: 0.37777 | Q70: 0.50155 | R70: 0.44946 | S70: 0.3529 | T70: 0.44157 | U70: 0.56001 | V70: 0.58554 | W70: 0.47309 | X70: 0.58316 | Y70: 0.7072 | Z70: 0.41361 | AA70: 0.30683 | AB70: 0.4132 | AC70: 0.52669 | AD70: 0.40551 | AE70: 0.3021 | AF70: 0.39825 | AG70: 0.51535
A71: 5.08333 | B71: 0.64047 | C71: 0.51908 | D71: 0.63554 | E71: 0.76318 | F71: 0.638 | G71: 0.51666 | H71: 0.63278 | I71: 0.7599 | J71: 0.48098 | K71: 0.38861 | L71: 0.47903 | M71: 0.58091 | N71: 0.31911 | O71: 0.22862 | P71: 0.31031 | Q71: 0.41199 | R71: 0.3692 | S71: 0.28988 | T71: 0.36272 | U71: 0.46001 | V71: 0.48098 | W71: 0.38861 | X71: 0.47903 | Y71: 0.58091 | Z71: 0.33975 | AA71: 0.25204 | AB71: 0.33942 | AC71: 0.43264 | AD71: 0.3331 | AE71: 0.24815 | AF71: 0.32713 | AG71: 0.42332
A72: 5.16667 | B72: 0.61109 | C72: 0.49041 | D72: 0.60529 | E72: 0.7397 | F72: 0.60744 | G72: 0.48742 | H72: 0.60124 | I72: 0.73527 | J72: 0.32384 | K72: 0.2325 | L72: 0.31857 | M72: 0.42364 | N72: 0.13775 | O72: 0.021761 | P72: 0.13593 | Q72: 0.24385 | R72: 0.21009 | S72: 0.11685 | T72: 0.20407 | U72: 0.3164 | V72: 0.21562 | W72: 0.13005 | X72: 0.20965 | Y72: 0.30626 | Z72: 0.16728 | AA72: 0.067762 | AB72: 0.16467 | AC72: 0.27205 | AD72: 0.15713 | AE72: 0.052896 | AF72: 0.15539 | AG72: 0.25933
A73: 5.25 | B73: 0.78046 | C73: 0.59536 | D73: 0.76291 | E73: 0.9768 | F73: 0.7738 | G73: 0.58972 | H73: 0.75642 | I73: 0.96998 | J73: 0.21036 | K73: 0.041041 | L73: 0.20488 | M73: 0.38284 | N73: 0.037018 | O73: 0.0083333 | P73: 0.0083333 | Q73: 0.11838 | R73: 0.090939 | S73: 0.0083333 | T73: 0.04875 | U73: 0.23565 | V73: 0.030298 | W73: 0.0083333 | X73: 0.0083333 | Y73: 0.090864 | Z73: 0.055052 | AA73: 0.0083333 | AB73: 0.0083333 | AC73: 0.18108 | AD73: 0.045975 | AE73: 0.0083333 | AF73: 0.0083333 | AG73: 0.15125
A74: 5.33333 | B74: 1.7353 | C74: 1.3809 | D74: 1.7106 | E74: 2.1244 | F74: 1.7233 | G74: 1.369 | H74: 1.6975 | I74: 2.1103 | J74: 0.74659 | K74: 0.46016 | L74: 0.73195 | M74: 1.0488 | N74: 0.21972 | O74: 0.0083333 | P74: 0.17383 | Q74: 0.52547 | R74: 0.41791 | S74: 0.089375 | T74: 0.39101 | U74: 0.75731 | V74: 0.31193 | W74: 0.0083333 | X74: 0.29245 | Y74: 0.60307 | Z74: 0.29417 | AA74: 0.0083333 | AB74: 0.26731 | AC74: 0.63929 | AD74: 0.26609 | AE74: 0.0083333 | AF74: 0.24403 | AG74: 0.57625
A75: 5.41667 | B75: 2.5906 | C75: 2.0761 | D75: 2.5649 | E75: 3.1368 | F75: 2.5749 | G75: 2.0643 | H75: 2.548 | I75: 3.1212 | J75: 1.352 | K75: 0.95861 | L75: 1.3306 | M75: 1.7731 | N75: 0.55847 | O75: 0.064757 | P75: 0.54844 | Q75: 1.0139 | R75: 0.86862 | S75: 0.46589 | T75: 0.84005 | U75: 1.3267 | V75: 0.87646 | W75: 0.5069 | X75: 0.85477 | Y75: 1.2618 | Z75: 0.68505 | AA75: 0.25803 | AB75: 0.67565 | AC75: 1.1352 | AD75: 0.64133 | AE75: 0.20102 | AF75: 0.63671 | AG75: 1.0794
A76: 5.5 | B76: 2.1922 | C76: 1.749 | D76: 2.1657 | E76: 2.6792 | F76: 2.1773 | G76: 1.7359 | H76: 2.1491 | I76: 2.6616 | J76: 0.97092 | K76: 0.61624 | L76: 0.95202 | M76: 1.3642 | N76: 0.3002 | O76: 0.0083333 | P76: 0.25641 | Q76: 0.68811 | R76: 0.55518 | S76: 0.1511 | T76: 0.52377 | U76: 0.98402 | V76: 0.43786 | W76: 0.068734 | X76: 0.41698 | Y76: 0.80544 | Z76: 0.39696 | AA76: 0.0083333 | AB76: 0.37727 | AC76: 0.82679 | AD76: 0.36048 | AE76: 0.0083333 | AF76: 0.34368 | AG76: 0.7462
A77: 5.58333 | B77: 2.0631 | C77: 1.6398 | D77: 2.0318 | E77: 2.5267 | F77: 2.0487 | G77: 1.626 | H77: 2.0187 | I77: 2.5104 | J77: 0.87819 | K77: 0.53568 | L77: 0.85996 | M77: 1.2354 | N77: 0.25321 | O77: 0.0083333 | P77: 0.19333 | Q77: 0.6168 | R77: 0.48758 | S77: 0.093286 | T77: 0.45468 | U77: 0.89289 | V77: 0.35618 | W77: 0.0083333 | X77: 0.33074 | Y77: 0.70363 | Z77: 0.34108 | AA77: 0.0083333 | AB77: 0.30701 | AC77: 0.75363 | AD77: 0.30787 | AE77: 0.0083333 | AF77: 0.28005 | AG77: 0.6775
A78: 5.66667 | B78: 2.5076 | C78: 2.0121 | D78: 2.4841 | E78: 3.0332 | F78: 2.4926 | G78: 2.0008 | H78: 2.4668 | I78: 3.0152 | J78: 1.3346 | K78: 0.96347 | L78: 1.3122 | M78: 1.745 | N78: 0.57041 | O78: 0.098297 | P78: 0.56417 | Q78: 1.0055 | R78: 0.86816 | S78: 0.48755 | T78: 0.84362 | U78: 1.3036 | V78: 0.8952 | W78: 0.54403 | X78: 0.87093 | Y78: 1.2666 | Z78: 0.69249 | AA78: 0.28723 | AB78: 0.68174 | AC78: 1.1213 | AD78: 0.65128 | AE78: 0.22447 | AF78: 0.6426 | AG78: 1.0706
A79: 5.75 | B79: 1.7551 | C79: 1.4081 | D79: 1.7388 | E79: 2.1218 | F79: 1.7447 | G79: 1.4003 | H79: 1.7267 | I79: 2.1097 | J79: 0.93735 | K79: 0.67892 | L79: 0.92095 | M79: 1.225 | N79: 0.40311 | O79: 0.073111 | P79: 0.39807 | Q79: 0.70646 | R79: 0.61103 | S79: 0.34574 | T79: 0.59407 | U79: 0.91559 | V79: 0.63238 | W79: 0.38677 | X79: 0.6154 | Y79: 0.892 | Z79: 0.4884 | AA79: 0.20612 | AB79: 0.48053 | AC79: 0.78762 | AD79: 0.45966 | AE79: 0.16153 | AF79: 0.45313 | AG79: 0.75297
A80: 5.83333 | B80: 1.0716 | C80: 0.86297 | D80: 1.0618 | E80: 1.283 | F80: 1.0661 | G80: 0.85859 | H80: 1.0567 | I80: 1.2766 | J80: 0.65331 | K80: 0.50422 | L80: 0.64551 | M80: 0.81817 | N80: 0.34525 | O80: 0.18357 | P80: 0.33546 | Q80: 0.52483 | R80: 0.45834 | S80: 0.31403 | T80: 0.4445 | U80: 0.62372 | V80: 0.532 | W80: 0.39289 | X80: 0.52597 | Y80: 0.67811 | Z80: 0.39175 | AA80: 0.23653 | AB80: 0.38494 | AC80: 0.55794 | AD80: 0.37672 | AE80: 0.22417 | AF80: 0.37338 | AG80: 0.54019
A81: 5.91667 | B81: 0.94679 | C81: 0.76734 | D81: 0.9395 | E81: 1.1282 | F81: 0.94314 | G81: 0.76376 | H81: 0.93541 | I81: 1.1233 | J81: 0.71101 | K81: 0.57446 | L81: 0.70813 | M81: 0.85874 | N81: 0.47172 | O81: 0.33796 | P81: 0.45872 | Q81: 0.60903 | R81: 0.54577 | S81: 0.42852 | T81: 0.5362 | U81: 0.68001 | V81: 0.71101 | W81: 0.57446 | X81: 0.70813 | Y81: 0.85874 | Z81: 0.50224 | AA81: 0.37259 | AB81: 0.50175 | AC81: 0.63955 | AD81: 0.49241 | AE81: 0.36683 | AF81: 0.48359 | AG81: 0.62578
A82: 6 | B82: 0.77803 | C82: 0.62848 | D82: 0.77717 | E82: 0.93375 | F82: 0.77498 | G82: 0.62637 | H82: 0.77463 | I82: 0.93039 | J82: 0.58296 | K82: 0.47168 | L82: 0.57698 | M82: 0.70632 | N82: 0.3912 | O82: 0.28509 | P82: 0.38736 | Q82: 0.5089 | R82: 0.44816 | S82: 0.34254 | T82: 0.44178 | U82: 0.56421 | V82: 0.58296 | W82: 0.47168 | X82: 0.57698 | Y82: 0.70632 | Z82: 0.41547 | AA82: 0.30725 | AB82: 0.41022 | AC82: 0.53247 | AD82: 0.39929 | AE82: 0.29101 | AF82: 0.39882 | AG82: 0.506
A83: 6.08333 | B83: 0.63909 | C83: 0.51625 | D83: 0.63839 | E83: 0.76701 | F83: 0.63659 | G83: 0.51452 | H83: 0.6363 | I83: 0.76425 | J83: 0.47886 | K83: 0.38745 | L83: 0.47395 | M83: 0.58019 | N83: 0.32134 | O83: 0.23418 | P83: 0.31819 | Q83: 0.41802 | R83: 0.36814 | S83: 0.28137 | T83: 0.36289 | U83: 0.46346 | V83: 0.47886 | W83: 0.38745 | X83: 0.47395 | Y83: 0.58019 | Z83: 0.34128 | AA83: 0.25239 | AB83: 0.33697 | AC83: 0.43739 | AD83: 0.32798 | AE83: 0.23904 | AF83: 0.3276 | AG83: 0.41564
A84: 6.16667 | B84: 0.60831 | C84: 0.48463 | D84: 0.60757 | E84: 0.73257 | F84: 0.60461 | G84: 0.48158 | H84: 0.60399 | I84: 0.72812 | J84: 0.32046 | K84: 0.23625 | L84: 0.31568 | M84: 0.41208 | N84: 0.14049 | O84: 0.038295 | P84: 0.13475 | Q84: 0.24299 | R84: 0.20799 | S84: 0.11609 | T84: 0.20299 | U84: 0.30445 | V84: 0.21345 | W84: 0.13343 | X84: 0.20804 | Y84: 0.2999 | Z84: 0.16844 | AA84: 0.068953 | AB84: 0.15855 | AC84: 0.2784 | AD84: 0.1494 | AE84: 0.048846 | AF84: 0.1492 | AG84: 0.24948
A85: 6.25 | B85: 0.77465 | C85: 0.5912 | D85: 0.7652 | E85: 0.96265 | F85: 0.76789 | G85: 0.58535 | H85: 0.75923 | I85: 0.95362 | J85: 0.20223 | K85: 0.03384 | L85: 0.1976 | M85: 0.36365 | N85: 0.037711 | O85: 0.0083333 | P85: 0.0083333 | Q85: 0.12382 | R85: 0.084341 | S85: 0.0083333 | T85: 0.039832 | U85: 0.23477 | V85: 0.028134 | W85: 0.0083333 | X85: 0.0083333 | Y85: 0.086241 | Z85: 0.053855 | AA85: 0.0083333 | AB85: 0.0083333 | AC85: 0.17951 | AD85: 0.039987 | AE85: 0.0083333 | AF85: 0.0083333 | AG85: 0.13302
A86: 6.33333 | B86: 1.7256 | C86: 1.3515 | D86: 1.7245 | E86: 2.0973 | F86: 1.7134 | G86: 1.3422 | H86: 1.7117 | I86: 2.0798 | J86: 0.7352 | K86: 0.46598 | L86: 0.72115 | M86: 1.0129 | N86: 0.22308 | O86: 0.0083333 | P86: 0.17554 | Q86: 0.51882 | R86: 0.41089 | S86: 0.11467 | T86: 0.39995 | U86: 0.72916 | V86: 0.30511 | W86: 0.021686 | X86: 0.28632 | Y86: 0.59975 | Z86: 0.29495 | AA86: 0.0083333 | AB86: 0.25311 | AC86: 0.63187 | AD86: 0.24231 | AE86: 0.0083333 | AF86: 0.21235 | AG86: 0.5395
A87: 6.41667 | B87: 2.5786 | C87: 2.0536 | D87: 2.5742 | E87: 3.1095 | F87: 2.5627 | G87: 2.0415 | H87: 2.5617 | I87: 3.086 | J87: 1.3374 | K87: 0.97712 | L87: 1.3188 | M87: 1.7199 | N87: 0.57018 | O87: 0.13332 | P87: 0.54673 | Q87: 1.0072 | R87: 0.85959 | S87: 0.46504 | T87: 0.84168 | U87: 1.2717 | V87: 0.86723 | W87: 0.52761 | X87: 0.84387 | Y87: 1.2391 | Z87: 0.68987 | AA87: 0.26288 | AB87: 0.64579 | AC87: 1.1608 | AD87: 0.60829 | AE87: 0.17837 | AF87: 0.61 | AG87: 1.0372
A88: 6.5 | B88: 2.1802 | C88: 1.7104 | D88: 2.179 | E88: 2.6437 | F88: 2.1651 | G88: 1.6972 | H88: 2.1657 | I88: 2.6257 | J88: 0.95688 | K88: 0.62293 | L88: 0.93836 | M88: 1.3022 | N88: 0.30488 | O88: 0.0083333 | P88: 0.25598 | Q88: 0.68339 | R88: 0.54694 | S88: 0.18321 | T88: 0.53422 | U88: 0.94541 | V88: 0.43066 | W88: 0.089431 | X88: 0.41407 | Y88: 0.79666 | Z88: 0.39875 | AA88: 0.0083333 | AB88: 0.34773 | AC88: 0.82651 | AD88: 0.3313 | AE88: 0.0083333 | AF88: 0.30396 | AG88: 0.70818
A89: 6.58333 | B89: 2.0515 | C89: 1.6068 | D89: 2.049 | E89: 2.4941 | F89: 2.0369 | G89: 1.5955 | H89: 2.033 | I89: 2.474 | J89: 0.86452 | K89: 0.54334 | L89: 0.84824 | M89: 1.1965 | N89: 0.25708 | O89: 0.0083333 | P89: 0.19654 | Q89: 0.60993 | R89: 0.47905 | S89: 0.12307 | T89: 0.46452 | U89: 0.85865 | V89: 0.34769 | W89: 0.0083333 | X89: 0.32165 | Y89: 0.69922 | Z89: 0.34166 | AA89: 0.0083333 | AB89: 0.28847 | AC89: 0.74364 | AD89: 0.27943 | AE89: 0.0083333 | AF89: 0.24132 | AG89: 0.63323
A90: 6.66667 | B90: 2.4962 | C90: 1.9889 | D90: 2.4942 | E90: 3.0044 | F90: 2.4811 | G90: 1.9761 | H90: 2.4791 | I90: 2.988 | J90: 1.3208 | K90: 0.97658 | L90: 1.301 | M90: 1.6968 | N90: 0.58158 | O90: 0.16549 | P90: 0.55935 | Q90: 1.0033 | R90: 0.85954 | S90: 0.48247 | T90: 0.8404 | U90: 1.2542 | V90: 0.88631 | W90: 0.55804 | X90: 0.86376 | Y90: 1.2396 | Z90: 0.69752 | AA90: 0.29335 | AB90: 0.65746 | AC90: 1.1483 | AD90: 0.61893 | AE90: 0.20979 | AF90: 0.6195 | AG90: 1.0285
A91: 6.75 | B91: 1.7472 | C91: 1.392 | D91: 1.746 | E91: 2.1019 | F91: 1.7366 | G91: 1.3831 | H91: 1.7355 | I91: 2.0914 | J91: 0.92772 | K91: 0.68752 | L91: 0.91386 | M91: 1.1905 | N91: 0.4109 | O91: 0.12049 | P91: 0.39508 | Q91: 0.70405 | R91: 0.60502 | S91: 0.3411 | T91: 0.592 | U91: 0.88053 | V91: 0.62616 | W91: 0.39645 | X91: 0.60955 | Y91: 0.87256 | Z91: 0.49193 | AA91: 0.21004 | AB91: 0.46378 | AC91: 0.80608 | AD91: 0.43704 | AE91: 0.15246 | AF91: 0.43646 | AG91: 0.72227
A92: 6.83333 | B92: 1.0677 | C92: 0.85883 | D92: 1.0622 | E92: 1.2766 | F92: 1.062 | G92: 0.8536 | H92: 1.0568 | I92: 1.2696 | J92: 0.64826 | K92: 0.50811 | L92: 0.64181 | M92: 0.80199 | N92: 0.3493 | O92: 0.19697 | P92: 0.34129 | Q92: 0.51884 | R92: 0.45509 | S92: 0.30522 | T92: 0.44818 | U92: 0.60699 | V92: 0.52828 | W92: 0.39324 | X92: 0.52148 | Y92: 0.66707 | Z92: 0.39439 | AA92: 0.24332 | AB92: 0.38054 | AC92: 0.57208 | AD92: 0.3643 | AE92: 0.21025 | AF92: 0.36113 | AG92: 0.52518
A93: 6.91667 | B93: 0.94475 | C93: 0.76315 | D93: 0.94371 | E93: 1.1338 | F93: 0.94104 | G93: 0.76059 | H93: 0.94062 | I93: 1.1298 | J93: 0.70788 | K93: 0.57276 | L93: 0.70062 | M93: 0.85768 | N93: 0.47503 | O93: 0.34618 | P93: 0.47037 | Q93: 0.61794 | R93: 0.5442 | S93: 0.41595 | T93: 0.53645 | U93: 0.68511 | V93: 0.70788 | W93: 0.57276 | X93: 0.70062 | Y93: 0.85768 | Z93: 0.5045 | AA93: 0.37309 | AB93: 0.49813 | AC93: 0.64657 | AD93: 0.48485 | AE93: 0.35337 | AF93: 0.48429 | AG93: 0.61442
A94: 7 | B94: 0.7866 | C94: 0.63404 | D94: 0.78035 | E94: 0.93689 | F94: 0.78358 | G94: 0.63165 | H94: 0.77767 | I94: 0.93357 | J94: 0.59172 | K94: 0.4689 | L94: 0.58939 | M94: 0.71391 | N94: 0.39451 | O94: 0.28793 | P94: 0.39047 | Q94: 0.51377 | R94: 0.44825 | S94: 0.34444 | T94: 0.44479 | U94: 0.5554 | V94: 0.59172 | W94: 0.4689 | X94: 0.58939 | Y94: 0.71391 | Z94: 0.4186 | AA94: 0.31168 | AB94: 0.41363 | AC94: 0.53756 | AD94: 0.40686 | AE94: 0.30158 | AF94: 0.40579 | AG94: 0.5152
A95: 7.08333 | B95: 0.64613 | C95: 0.52082 | D95: 0.641 | E95: 0.76959 | F95: 0.64365 | G95: 0.51885 | H95: 0.6388 | I95: 0.76686 | J95: 0.48606 | K95: 0.38517 | L95: 0.48415 | M95: 0.58643 | N95: 0.32406 | O95: 0.23651 | P95: 0.32074 | Q95: 0.42203 | R95: 0.36821 | S95: 0.28293 | T95: 0.36537 | U95: 0.45622 | V95: 0.48606 | W95: 0.38517 | X95: 0.48415 | Y95: 0.58643 | Z95: 0.34385 | AA95: 0.25602 | AB95: 0.33977 | AC95: 0.44157 | AD95: 0.33421 | AE95: 0.24773 | AF95: 0.33332 | AG95: 0.4232
A96: 7.16667 | B96: 0.61498 | C96: 0.48794 | D96: 0.61336 | E96: 0.73986 | F96: 0.61132 | G96: 0.48491 | H96: 0.60921 | I96: 0.73538 | J96: 0.3257 | K96: 0.22905 | L96: 0.3212 | M96: 0.43163 | N96: 0.14081 | O96: 0.033396 | P96: 0.13836 | Q96: 0.25333 | R96: 0.20419 | S96: 0.10976 | T96: 0.19795 | U96: 0.29909 | V96: 0.22101 | W96: 0.13081 | X96: 0.21458 | Y96: 0.31192 | Z96: 0.16853 | AA96: 0.068589 | AB96: 0.16444 | AC96: 0.27781 | AD96: 0.15481 | AE96: 0.055926 | AF96: 0.15137 | AG96: 0.25193
A97: 7.25 | B97: 0.78308 | C97: 0.59799 | D97: 0.77682 | E97: 0.98025 | F97: 0.7764 | G97: 0.59216 | H97: 0.77011 | I97: 0.9737 | J97: 0.20749 | K97: 0.028986 | L97: 0.19429 | M97: 0.38857 | N97: 0.037363 | O97: 0.0083333 | P97: 0.0083333 | Q97: 0.12143 | R97: 0.080571 | S97: 0.0083333 | T97: 0.034976 | U97: 0.22608 | V97: 0.029834 | W97: 0.0083333 | X97: 0.0083333 | Y97: 0.088369 | Z97: 0.052712 | AA97: 0.0083333 | AB97: 0.0083333 | AC97: 0.1699 | AD97: 0.040145 | AE97: 0.0083333 | AF97: 0.0083333 | AG97: 0.12573
A98: 7.33333 | B98: 1.7445 | C98: 1.3614 | D98: 1.7388 | E98: 2.1213 | F98: 1.7324 | G98: 1.3513 | H98: 1.727 | I98: 2.1067 | J98: 0.74798 | K98: 0.44548 | L98: 0.72838 | M98: 1.0921 | N98: 0.22206 | O98: 0.0083333 | P98: 0.17066 | Q98: 0.5519 | R98: 0.39831 | S98: 0.090943 | T98: 0.38218 | U98: 0.72789 | V98: 0.32702 | W98: 0.014033 | X98: 0.30061 | Y98: 0.60115 | Z98: 0.29399 | AA98: 0.0083333 | AB98: 0.26852 | AC98: 0.62572 | AD98: 0.25389 | AE98: 0.0083333 | AF98: 0.22447 | AG98: 0.54858
A99: 7.41667 | B99: 2.6068 | C99: 2.0695 | D99: 2.5947 | E99: 3.1368 | F99: 2.5911 | G99: 2.0559 | H99: 2.5768 | I99: 3.1186 | J99: 1.3594 | K99: 0.94484 | L99: 1.3418 | M99: 1.8084 | N99: 0.57107 | O99: 0.10964 | P99: 0.55609 | Q99: 1.0532 | R99: 0.84288 | S99: 0.43725 | T99: 0.81764 | U99: 1.2456 | V99: 0.89944 | W99: 0.51435 | X99: 0.87138 | Y99: 1.2833 | Z99: 0.68993 | AA99: 0.26162 | AB99: 0.67069 | AC99: 1.1613 | AD99: 0.63103 | AE99: 0.20686 | AF99: 0.61763 | AG99: 1.0449
A100: 7.5 | B100: 2.204 | C100: 1.725 | D100: 2.1957 | E100: 2.6741 | F100: 2.1891 | G100: 1.7116 | H100: 2.1801 | I100: 2.6599 | J100: 0.97335 | K100: 0.59811 | L100: 0.94511 | M100: 1.4064 | N100: 0.30347 | O100: 0.0083333 | P100: 0.25512 | Q100: 0.72654 | R100: 0.53092 | S100: 0.14764 | T100: 0.51149 | U100: 0.94289 | V100: 0.45851 | W100: 0.072317 | X100: 0.42602 | Y100: 0.79909 | Z100: 0.39768 | AA100: 0.0083333 | AB100: 0.37286 | AC100: 0.81429 | AD100: 0.34664 | AE100: 0.0083333 | AF100: 0.31894 | AG100: 0.71695
A101: 7.58333 | B101: 2.0739 | C101: 1.6157 | D101: 2.0673 | E101: 2.5239 | F101: 2.0594 | G101: 1.6044 | H101: 2.054 | I101: 2.506 | J101: 0.8796 | K101: 0.51784 | L101: 0.85586 | M101: 1.2912 | N101: 0.25593 | O101: 0.0083333 | P101: 0.18812 | Q101: 0.6472 | R101: 0.46414 | S101: 0.098023 | T101: 0.44507 | U101: 0.85852 | V101: 0.37398 | W101: 0.0083333 | X101: 0.34193 | Y101: 0.70088 | Z101: 0.34056 | AA101: 0.0083333 | AB101: 0.30779 | AC101: 0.73296 | AD101: 0.29291 | AE101: 0.0083333 | AF101: 0.25618 | AG101: 0.64281
A102: 7.66667 | B102: 2.5236 | C102: 2.0027 | D102: 2.5194 | E102: 3.0375 | F102: 2.5086 | G102: 1.99 | H102: 2.5025 | I102: 3.0189 | J102: 1.3424 | K102: 0.94726 | L102: 1.3239 | M102: 1.778 | N102: 0.5835 | O102: 0.14797 | P102: 0.57277 | Q102: 1.045 | R102: 0.84403 | S102: 0.45815 | T102: 0.81836 | U102: 1.2324 | V102: 0.91729 | W102: 0.54787 | X102: 0.8897 | Y102: 1.2936 | Z102: 0.69796 | AA102: 0.28972 | AB102: 0.68171 | AC102: 1.1436 | AD102: 0.64142 | AE102: 0.23742 | AF102: 0.63015 | AG102: 1.0394
A103: 7.75 | B103: 1.7663 | C103: 1.4023 | D103: 1.7648 | E103: 2.127 | F103: 1.7559 | G103: 1.3941 | H103: 1.753 | I103: 2.114 | J103: 0.94286 | K103: 0.66609 | L103: 0.9294 | M103: 1.2475 | N103: 0.41235 | O103: 0.10966 | P103: 0.40427 | Q103: 0.73445 | R103: 0.59424 | S103: 0.325 | T103: 0.57649 | U103: 0.86537 | V103: 0.64783 | W103: 0.3902 | X103: 0.62841 | Y103: 0.91303 | Z103: 0.4923 | AA103: 0.20727 | AB103: 0.48127 | AC103: 0.80252 | AD103: 0.4528 | AE103: 0.1706 | AF103: 0.44568 | AG103: 0.73077
A104: 7.83333 | B104: 1.0794 | C104: 0.86244 | D104: 1.0688 | E104: 1.2912 | F104: 1.0738 | G104: 0.85803 | H104: 1.0635 | I104: 1.2828 | J104: 0.65848 | K104: 0.49606 | L104: 0.64929 | M104: 0.83889 | N104: 0.35133 | O104: 0.19549 | P104: 0.3492 | Q104: 0.52181 | R104: 0.45105 | S104: 0.30782 | T104: 0.44501 | U104: 0.60706 | V104: 0.5411 | W104: 0.39094 | X104: 0.53053 | Y104: 0.69945 | Z104: 0.39599 | AA104: 0.24253 | AB104: 0.38553 | AC104: 0.57066 | AD104: 0.37432 | AE104: 0.22729 | AF104: 0.37167 | AG104: 0.52098
A105: 7.91667 | B105: 0.95515 | C105: 0.76991 | D105: 0.94756 | E105: 1.1377 | F105: 0.95149 | G105: 0.767 | H105: 0.94431 | I105: 1.1336 | J105: 0.71852 | K105: 0.56938 | L105: 0.71569 | M105: 0.8669 | N105: 0.47905 | O105: 0.34963 | P105: 0.47414 | Q105: 0.62387 | R105: 0.54431 | S105: 0.41824 | T105: 0.54011 | U105: 0.67441 | V105: 0.71852 | W105: 0.56938 | X105: 0.71569 | Y105: 0.8669 | Z105: 0.5083 | AA105: 0.37846 | AB105: 0.50226 | AC105: 0.65275 | AD105: 0.49404 | AE105: 0.3662 | AF105: 0.49274 | AG105: 0.6256
A106: 8 | B106: 0.78699 | C106: 0.63978 | D106: 0.78863 | E106: 0.93281 | F106: 0.78393 | G106: 0.63729 | H106: 0.7853 | I106: 0.92938 | J106: 0.5918 | K106: 0.47507 | L106: 0.58943 | M106: 0.70922 | N106: 0.39765 | O106: 0.28637 | P106: 0.39526 | Q106: 0.51255 | R106: 0.45188 | S106: 0.35056 | T106: 0.44925 | U106: 0.55998 | V106: 0.5918 | W106: 0.47507 | X106: 0.58943 | Y106: 0.70922 | Z106: 0.41649 | AA106: 0.3137 | AB106: 0.41464 | AC106: 0.52686 | AD106: 0.40587 | AE106: 0.30585 | AF106: 0.40442 | AG106: 0.51082
A107: 8.08333 | B107: 0.64646 | C107: 0.52553 | D107: 0.6478 | E107: 0.76624 | F107: 0.64394 | G107: 0.52349 | H107: 0.64507 | I107: 0.76342 | J107: 0.48612 | K107: 0.39023 | L107: 0.48418 | M107: 0.58258 | N107: 0.32664 | O107: 0.23523 | P107: 0.32468 | Q107: 0.42102 | R107: 0.37119 | S107: 0.28796 | T107: 0.36902 | U107: 0.45998 | V107: 0.48612 | W107: 0.39023 | X107: 0.48418 | Y107: 0.58258 | Z107: 0.34212 | AA107: 0.25768 | AB107: 0.3406 | AC107: 0.43278 | AD107: 0.3334 | AE107: 0.25123 | AF107: 0.3322 | AG107: 0.4196
A108: 8.16667 | B108: 0.61854 | C108: 0.4945 | D108: 0.61417 | E108: 0.74033 | F108: 0.61482 | G108: 0.49133 | H108: 0.61063 | I108: 0.73649 | J108: 0.32589 | K108: 0.24009 | L108: 0.32556 | M108: 0.41306 | N108: 0.14724 | O108: 0.039966 | P108: 0.13969 | Q108: 0.25545 | R108: 0.21165 | S108: 0.11575 | T108: 0.2103 | U108: 0.3131 | V108: 0.22305 | W108: 0.13032 | X108: 0.22257 | Y108: 0.31845 | Z108: 0.16895 | AA108: 0.071356 | AB108: 0.16059 | AC108: 0.28176 | AD108: 0.15664 | AE108: 0.038416 | AF108: 0.15517 | AG108: 0.26429
A109: 8.25 | B109: 0.79262 | C109: 0.5966 | D109: 0.7915 | E109: 0.99507 | F109: 0.78584 | G109: 0.59062 | H109: 0.78512 | I109: 0.98667 | J109: 0.20764 | K109: 0.035749 | L109: 0.20389 | M109: 0.37199 | N109: 0.04368 | O109: 0.0083333 | P109: 0.0083333 | Q109: 0.14841 | R109: 0.092642 | S109: 0.0083333 | T109: 0.050551 | U109: 0.24497 | V109: 0.034225 | W109: 0.0083333 | X109: 0.0083333 | Y109: 0.11773 | Z109: 0.05832 | AA109: 0.0083333 | AB109: 0.0083333 | AC109: 0.18803 | AD109: 0.050264 | AE109: 0.0083333 | AF109: 0.0083333 | AG109: 0.15951
A110: 8.33333 | B110: 1.7587 | C110: 1.3827 | D110: 1.741 | E110: 2.1305 | F110: 1.7465 | G110: 1.3726 | H110: 1.7284 | I110: 2.119 | J110: 0.74873 | K110: 0.45725 | L110: 0.74014 | M110: 1.0455 | N110: 0.24302 | O110: 0.0083333 | P110: 0.19187 | Q110: 0.5707 | R110: 0.42432 | S110: 0.10389 | T110: 0.4126 | U110: 0.73962 | V110: 0.33911 | W110: 0.0083333 | X110: 0.33248 | Y110: 0.65534 | Z110: 0.29843 | AA110: 0.0083333 | AB110: 0.25802 | AC110: 0.65797 | AD110: 0.2708 | AE110: 0.0083333 | AF110: 0.24859 | AG110: 0.59525
A111: 8.41667 | B111: 2.6224 | C111: 2.086 | D111: 2.6042 | E111: 3.1449 | F111: 2.6065 | G111: 2.0725 | H111: 2.5907 | I111: 3.1276 | J111: 1.3602 | K111: 0.99303 | L111: 1.356 | M111: 1.7318 | N111: 0.59897 | O111: 0.13119 | P111: 0.57108 | Q111: 1.0654 | R111: 0.87525 | S111: 0.46545 | T111: 0.86835 | U111: 1.3085 | V111: 0.90842 | W111: 0.50718 | X111: 0.90537 | Y111: 1.3157 | Z111: 0.69198 | AA111: 0.27478 | AB111: 0.65183 | AC111: 1.1774 | AD111: 0.63928 | AE111: 0.13234 | AF111: 0.63757 | AG111: 1.1003
A112: 8.5 | B112: 2.2214 | C112: 1.7554 | D112: 2.2012 | E112: 2.6863 | F112: 2.2062 | G112: 1.7438 | H112: 2.1878 | I112: 2.6672 | J112: 0.97428 | K112: 0.61657 | L112: 0.95795 | M112: 1.3382 | N112: 0.33008 | O112: 0.0083333 | P112: 0.27884 | Q112: 0.74441 | R112: 0.5632 | S112: 0.16729 | T112: 0.54977 | U112: 0.95968 | V112: 0.47209 | W112: 0.062016 | X112: 0.47123 | Y112: 0.86946 | Z112: 0.40256 | AA112: 0.0083333 | AB112: 0.35347 | AC112: 0.85162 | AD112: 0.36535 | AE112: 0.0083333 | AF112: 0.3469 | AG112: 0.77535
A113: 8.58333 | B113: 2.0911 | C113: 1.6414 | D113: 2.0706 | E113: 2.5384 | F113: 2.0764 | G113: 1.6285 | H113: 2.0552 | I113: 2.5233 | J113: 0.8805 | K113: 0.52826 | L113: 0.87019 | M113: 1.2368 | N113: 0.28076 | O113: 0.0083333 | P113: 0.21749 | Q113: 0.67034 | R113: 0.49525 | S113: 0.11214 | T113: 0.4807 | U113: 0.87088 | V113: 0.3887 | W113: 0.0083333 | X113: 0.377 | Y113: 0.76475 | Z113: 0.3462 | AA113: 0.0083333 | AB113: 0.29592 | AC113: 0.77299 | AD113: 0.31374 | AE113: 0.0083333 | AF113: 0.2854 | AG113: 0.69975
A114: 8.66667 | B114: 2.5381 | C114: 2.032 | D114: 2.5205 | E114: 3.0378 | F114: 2.5228 | G114: 2.019 | H114: 2.5051 | I114: 3.0206 | J114: 1.3432 | K114: 0.99178 | L114: 1.3407 | M114: 1.6998 | N114: 0.60977 | O114: 0.17407 | P114: 0.57877 | Q114: 1.0542 | R114: 0.87453 | S114: 0.48164 | T114: 0.86963 | U114: 1.289 | V114: 0.92557 | W114: 0.54929 | X114: 0.92377 | Y114: 1.3146 | Z114: 0.69948 | AA114: 0.3006 | AB114: 0.66617 | AC114: 1.1615 | AD114: 0.64851 | AE114: 0.16615 | AF114: 0.64424 | AG114: 1.0888
A115: 8.75 | B115: 1.7764 | C115: 1.4238 | D115: 1.7648 | E115: 2.1258 | F115: 1.7658 | G115: 1.4147 | H115: 1.753 | I115: 2.1137 | J115: 0.94341 | K115: 0.69767 | L115: 0.94246 | M115: 1.1927 | N115: 0.43062 | O115: 0.12738 | P115: 0.40864 | Q115: 0.74068 | R115: 0.6155 | S115: 0.34089 | T115: 0.61249 | U115: 0.90451 | V115: 0.65357 | W115: 0.39173 | X115: 0.6517 | Y115: 0.9245 | Z115: 0.49331 | AA115: 0.21474 | AB115: 0.47048 | AC115: 0.81573 | AD115: 0.45768 | AE115: 0.12111 | AF115: 0.45511 | AG115: 0.76395
A116: 8.83333 | B116: 1.0836 | C116: 0.87562 | D116: 1.0786 | E116: 1.2918 | F116: 1.0779 | G116: 0.87099 | H116: 1.0728 | I116: 1.2843 | J116: 0.65874 | K116: 0.51261 | L116: 0.65477 | M116: 0.80423 | N116: 0.36054 | O116: 0.19882 | P116: 0.34876 | Q116: 0.53682 | R116: 0.46124 | S116: 0.30243 | T116: 0.45546 | U116: 0.62484 | V116: 0.54342 | W116: 0.40079 | X116: 0.53976 | Y116: 0.6917 | Z116: 0.39553 | AA116: 0.24235 | AB116: 0.3853 | AC116: 0.5721 | AD116: 0.3758 | AE116: 0.2094 | AF116: 0.37592 | AG116: 0.5436
A117: 8.91667 | B117: 0.95564 | C117: 0.77687 | D117: 0.95762 | E117: 1.1327 | F117: 0.95191 | G117: 0.77385 | H117: 0.95358 | I117: 1.1285 | J117: 0.71862 | K117: 0.57687 | L117: 0.71574 | M117: 0.8612 | N117: 0.48287 | O117: 0.34774 | P117: 0.47996 | Q117: 0.62238 | R117: 0.54871 | S117: 0.42568 | T117: 0.54551 | U117: 0.67998 | V117: 0.71862 | W117: 0.57687 | X117: 0.71574 | Y117: 0.8612 | Z117: 0.50574 | AA117: 0.38092 | AB117: 0.50349 | AC117: 0.63976 | AD117: 0.49285 | AE117: 0.37139 | AF117: 0.49108 | AG117: 0.62028
A118: 9 | B118: 0.7883 | C118: 0.63602 | D118: 0.78192 | E118: 0.94449 | F118: 0.78531 | G118: 0.63366 | H118: 0.77968 | I118: 0.94122 | J118: 0.59252 | K118: 0.48088 | L118: 0.58313 | M118: 0.71938 | N118: 0.39922 | O118: 0.29608 | P118: 0.38819 | Q118: 0.52173 | R118: 0.45582 | S118: 0.35404 | T118: 0.44886 | U118: 0.56764 | V118: 0.59252 | W118: 0.48088 | X118: 0.58313 | Y118: 0.71938 | Z118: 0.41727 | AA118: 0.32605 | AB118: 0.40772 | AC118: 0.53482 | AD118: 0.40788 | AE118: 0.302 | AF118: 0.40613 | AG118: 0.51681
A119: 9.08333 | B119: 0.64753 | C119: 0.52245 | D119: 0.64229 | E119: 0.77583 | F119: 0.64508 | G119: 0.52051 | H119: 0.64045 | I119: 0.77314 | J119: 0.48671 | K119: 0.39501 | L119: 0.479 | M119: 0.59092 | N119: 0.32793 | O119: 0.24321 | P119: 0.31887 | Q119: 0.42856 | R119: 0.37442 | S119: 0.29082 | T119: 0.3687 | U119: 0.46627 | V119: 0.48671 | W119: 0.39501 | X119: 0.479 | Y119: 0.59092 | Z119: 0.34276 | AA119: 0.26783 | AB119: 0.33491 | AC119: 0.43931 | AD119: 0.33504 | AE119: 0.24807 | AF119: 0.33361 | AG119: 0.42452
A120: 9.16667 | B120: 0.61584 | C120: 0.49138 | D120: 0.60692 | E120: 0.74795 | F120: 0.61221 | G120: 0.48868 | H120: 0.60345 | I120: 0.74404 | J120: 0.32609 | K120: 0.2425 | L120: 0.32048 | M120: 0.4275 | N120: 0.14556 | O120: 0.038468 | P120: 0.13796 | Q120: 0.26008 | R120: 0.21213 | S120: 0.12218 | T120: 0.20056 | U120: 0.316 | V120: 0.21892 | W120: 0.12726 | X120: 0.21413 | Y120: 0.31887 | Z120: 0.1656 | AA120: 0.071574 | AB120: 0.15781 | AC120: 0.26678 | AD120: 0.1551 | AE120: 0.046147 | AF120: 0.15896 | AG120: 0.25789
A121: 9.25 | B121: 0.78344 | C121: 0.58723 | D121: 0.77059 | E121: 0.99747 | F121: 0.77683 | G121: 0.58128 | H121: 0.7623 | I121: 0.99083 | J121: 0.207 | K121: 0.035993 | L121: 0.19197 | M121: 0.38775 | N121: 0.042508 | O121: 0.0083333 | P121: 0.0083333 | Q121: 0.13824 | R121: 0.090131 | S121: 0.0083333 | T121: 0.042118 | U121: 0.24398 | V121: 0.033004 | W121: 0.0083333 | X121: 0.0083333 | Y121: 0.10477 | Z121: 0.051361 | AA121: 0.0083333 | AB121: 0.0083333 | AC121: 0.17653 | AD121: 0.04208 | AE121: 0.0083333 | AF121: 0.0083333 | AG121: 0.14025
A122: 9.33333 | B122: 1.7463 | C122: 1.3673 | D122: 1.7234 | E122: 2.146 | F122: 1.7344 | G122: 1.3577 | H122: 1.714 | I122: 2.1317 | J122: 0.7488 | K122: 0.46942 | L122: 0.7296 | M122: 1.0654 | N122: 0.23582 | O122: 0.0083333 | P122: 0.17312 | Q122: 0.57379 | R122: 0.42011 | S122: 0.097455 | T122: 0.39841 | U122: 0.7648 | V122: 0.3213 | W122: 0.0083333 | X122: 0.30429 | Y122: 0.64775 | Z122: 0.28366 | AA122: 0.0083333 | AB122: 0.24652 | AC122: 0.62197 | AD122: 0.26071 | AE122: 0.0083333 | AF122: 0.24146 | AG122: 0.5638
A123: 9.41667 | B123: 2.6104 | C123: 2.0801 | D123: 2.5727 | E123: 3.1782 | F123: 2.5948 | G123: 2.0673 | H123: 2.5591 | I123: 3.1629 | J123: 1.361 | K123: 0.99759 | L123: 1.3371 | M123: 1.7927 | N123: 0.59148 | O123: 0.13113 | P123: 0.55707 | Q123: 1.0817 | R123: 0.87684 | S123: 0.489 | T123: 0.83058 | U123: 1.322 | V123: 0.89008 | W123: 0.49252 | X123: 0.86956 | Y123: 1.3198 | Z123: 0.67723 | AA123: 0.27262 | AB123: 0.64697 | AC123: 1.1135 | AD123: 0.63228 | AE123: 0.16729 | AF123: 0.64691 | AG123: 1.072
A124: 9.5 | B124: 2.2064 | C124: 1.7313 | D124: 2.1728 | E124: 2.7106 | F124: 2.1916 | G124: 1.7174 | H124: 2.1596 | I124: 2.6948 | J124: 0.97445 | K124: 0.63331 | L124: 0.94883 | M124: 1.37 | N124: 0.32162 | O124: 0.0083333 | P124: 0.25415 | Q124: 0.7542 | R124: 0.55861 | S124: 0.16126 | T124: 0.53302 | U124: 0.9857 | V124: 0.44916 | W124: 0.038402 | X124: 0.43314 | Y124: 0.85884 | Z124: 0.38402 | AA124: 0.0083333 | AB124: 0.34646 | AC124: 0.80787 | AD124: 0.35457 | AE124: 0.0083333 | AF124: 0.336 | AG124: 0.7383
A125: 9.58333 | B125: 2.076 | C125: 1.623 | D125: 2.0509 | E125: 2.5506 | F125: 2.0617 | G125: 1.6109 | H125: 2.0375 | I125: 2.5358 | J125: 0.88056 | K125: 0.54555 | L125: 0.85805 | M125: 1.2562 | N125: 0.27207 | O125: 0.0083333 | P125: 0.1941 | Q125: 0.67502 | R125: 0.49005 | S125: 0.10468 | T125: 0.46461 | U125: 0.90162 | V125: 0.36754 | W125: 0.0083333 | X125: 0.34633 | Y125: 0.75528 | Z125: 0.32838 | AA125: 0.0083333 | AB125: 0.28264 | AC125: 0.73087 | AD125: 0.30117 | AE125: 0.0083333 | AF125: 0.27623 | AG125: 0.66367
A126: 9.66667 | B126: 2.5271 | C126: 2.0172 | D126: 2.4903 | E126: 3.0671 | F126: 2.5123 | G126: 2.0061 | H126: 2.475 | I126: 3.0511 | J126: 1.344 | K126: 1.0041 | L126: 1.3193 | M126: 1.757 | N126: 0.60274 | O126: 0.1675 | P126: 0.57215 | Q126: 1.0738 | R126: 0.87665 | S126: 0.50821 | T126: 0.82795 | U126: 1.3015 | V126: 0.90881 | W126: 0.53693 | X126: 0.8914 | Y126: 1.3209 | Z126: 0.68603 | AA126: 0.30269 | AB126: 0.65333 | AC126: 1.1003 | AD126: 0.64244 | AE126: 0.19896 | AF126: 0.65958 | AG126: 1.063
A127: 9.75 | B127: 1.7688 | C127: 1.4123 | D127: 1.7433 | E127: 2.1456 | F127: 1.7585 | G127: 1.4046 | H127: 1.7316 | I127: 2.1344 | J127: 0.94398 | K127: 0.70619 | L127: 0.92654 | M127: 1.2319 | N127: 0.42575 | O127: 0.12276 | P127: 0.4031 | Q127: 0.75525 | R127: 0.61704 | S127: 0.36038 | T127: 0.582 | U127: 0.9138 | V127: 0.64195 | W127: 0.38392 | X127: 0.63037 | Y127: 0.93191 | Z127: 0.484 | AA127: 0.21642 | AB127: 0.46124 | AC127: 0.77326 | AD127: 0.45352 | AE127: 0.14576 | AF127: 0.46566 | AG127: 0.74664
A128: 9.83333 | B128: 1.0812 | C128: 0.87327 | D128: 1.0642 | E128: 1.3098 | F128: 1.0757 | G128: 0.86813 | H128: 1.0597 | I128: 1.3032 | J128: 0.6593 | K128: 0.51694 | L128: 0.6473 | M128: 0.83041 | N128: 0.35876 | O128: 0.19974 | P128: 0.34313 | Q128: 0.54109 | R128: 0.46378 | S128: 0.31853 | T128: 0.44281 | U128: 0.63088 | V128: 0.53914 | W128: 0.40184 | X128: 0.52789 | Y128: 0.69498 | Z128: 0.39217 | AA128: 0.24642 | AB128: 0.37776 | AC128: 0.55759 | AD128: 0.37474 | AE128: 0.21361 | AF128: 0.37893 | AG128: 0.5332
A129: 9.91667 | B129: 0.95722 | C129: 0.77231 | D129: 0.94947 | E129: 1.1469 | F129: 0.95359 | G129: 0.76945 | H129: 0.94675 | I129: 1.1429 | J129: 0.71948 | K129: 0.58393 | L129: 0.70808 | M129: 0.87353 | N129: 0.48477 | O129: 0.35953 | P129: 0.47138 | Q129: 0.63353 | R129: 0.55349 | S129: 0.42991 | T129: 0.54504 | U129: 0.68927 | V129: 0.71948 | W129: 0.58393 | X129: 0.70808 | Y129: 0.87353 | Z129: 0.50669 | AA129: 0.39592 | AB129: 0.49508 | AC129: 0.64942 | AD129: 0.49528 | AE129: 0.36671 | AF129: 0.49316 | AG129: 0.62756
A130: 10 | B130: 0.78089 | C130: 0.64383 | D130: 0.77468 | E130: 0.92826 | F130: 0.77787 | G130: 0.64141 | H130: 0.77215 | I130: 0.92529 | J130: 0.58562 | K130: 0.47729 | L130: 0.57817 | M130: 0.70572 | N130: 0.38933 | O130: 0.28926 | P130: 0.38394 | Q130: 0.50162 | R130: 0.4509 | S130: 0.34868 | T130: 0.44486 | U130: 0.55593 | V130: 0.58562 | W130: 0.47729 | X130: 0.57817 | Y130: 0.70572 | Z130: 0.41155 | AA130: 0.31183 | AB130: 0.40668 | AC130: 0.51361 | AD130: 0.40496 | AE130: 0.29879 | AF130: 0.40339 | AG130: 0.50951
A131: 10.0833 | B131: 0.64144 | C131: 0.52886 | D131: 0.63635 | E131: 0.7625 | F131: 0.63896 | G131: 0.52687 | H131: 0.63426 | I131: 0.76006 | J131: 0.48105 | K131: 0.39206 | L131: 0.47493 | M131: 0.5797 | N131: 0.31981 | O131: 0.23761 | P131: 0.31538 | Q131: 0.41204 | R131: 0.37038 | S131: 0.28641 | T131: 0.36542 | U131: 0.45666 | V131: 0.48105 | W131: 0.39206 | X131: 0.47493 | Y131: 0.5797 | Z131: 0.33806 | AA131: 0.25614 | AB131: 0.33406 | AC131: 0.4219 | AD131: 0.33265 | AE131: 0.24544 | AF131: 0.33135 | AG131: 0.41853
A132: 10.1667 | B132: 0.61205 | C132: 0.49098 | D132: 0.60129 | E132: 0.73864 | F132: 0.60838 | G132: 0.48775 | H132: 0.59779 | I132: 0.73464 | J132: 0.32099 | K132: 0.23163 | L132: 0.31958 | M132: 0.41349 | N132: 0.13856 | O132: 0.025091 | P132: 0.13775 | Q132: 0.23791 | R132: 0.21135 | S132: 0.11285 | T132: 0.2116 | U132: 0.30252 | V132: 0.21728 | W132: 0.1246 | X132: 0.21608 | Y132: 0.3105 | Z132: 0.16443 | AA132: 0.070527 | AB132: 0.16163 | AC132: 0.26466 | AD132: 0.15663 | AE132: 0.055138 | AF132: 0.15688 | AG132: 0.26006
A133: 10.25 | B133: 0.78171 | C133: 0.59669 | D133: 0.77003 | E133: 0.98136 | F133: 0.77501 | G133: 0.59152 | H133: 0.76383 | I133: 0.97343 | J133: 0.2013 | K133: 0.033076 | L133: 0.20131 | M133: 0.35827 | N133: 0.035299 | O133: 0.0083333 | P133: 0.0083333 | Q133: 0.11314 | R133: 0.091692 | S133: 0.0083333 | T133: 0.054173 | U133: 0.2295 | V133: 0.031983 | W133: 0.0083333 | X133: 0.0083333 | Y133: 0.10552 | Z133: 0.051249 | AA133: 0.0083333 | AB133: 0.0083333 | AC133: 0.15674 | AD133: 0.04573 | AE133: 0.0083333 | AF133: 0.0083333 | AG133: 0.15508
A134: 10.3333 | B134: 1.7381 | C134: 1.3844 | D134: 1.7159 | E134: 2.1268 | F134: 1.726 | G134: 1.3757 | H134: 1.704 | I134: 2.1134 | J134: 0.7347 | K134: 0.44851 | L134: 0.72459 | M134: 1.0207 | N134: 0.22174 | O134: 0.0083333 | P134: 0.18139 | Q134: 0.52522 | R134: 0.42268 | S134: 0.093461 | T134: 0.42684 | U134: 0.72102 | V134: 0.32105 | W134: 0.0083333 | X134: 0.29982 | Y134: 0.62059 | Z134: 0.2842 | AA134: 0.0083333 | AB134: 0.25208 | AC134: 0.60465 | AD134: 0.26526 | AE134: 0.0083333 | AF134: 0.23348 | AG134: 0.57658
A135: 10.4167 | B135: 2.5947 | C135: 2.0793 | D135: 2.5457 | E135: 3.1373 | F135: 2.5789 | G135: 2.0647 | H135: 2.5322 | I135: 3.1207 | J135: 1.3394 | K135: 0.96275 | L135: 1.3325 | M135: 1.733 | N135: 0.56206 | O135: 0.078377 | P135: 0.56145 | Q135: 0.98508 | R135: 0.87398 | S135: 0.45174 | T135: 0.87886 | U135: 1.2647 | V135: 0.88371 | W135: 0.4806 | X135: 0.87654 | Y135: 1.2835 | Z135: 0.67266 | AA135: 0.26992 | AB135: 0.65557 | AC135: 1.0997 | AD135: 0.63938 | AE135: 0.20023 | AF135: 0.63673 | AG135: 1.0843
A136: 10.5 | B136: 2.1957 | C136: 1.7437 | D136: 2.1633 | E136: 2.6787 | F136: 2.1807 | G136: 1.7329 | H136: 2.1488 | I136: 2.6644 | J136: 0.95657 | K136: 0.59971 | L136: 0.94227 | M136: 1.3143 | N136: 0.30327 | O136: 0.0083333 | P136: 0.26431 | Q136: 0.69167 | R136: 0.56113 | S136: 0.15393 | T136: 0.56677 | U136: 0.93218 | V136: 0.44824 | W136: 0.031028 | X136: 0.42945 | Y136: 0.82468 | Z136: 0.38399 | AA136: 0.0083333 | AB136: 0.35297 | AC136: 0.78997 | AD136: 0.35984 | AE136: 0.0083333 | AF136: 0.3247 | AG136: 0.75195
A137: 10.5833 | B137: 2.0664 | C137: 1.6476 | D137: 2.0401 | E137: 2.5283 | F137: 2.052 | G137: 1.6372 | H137: 2.0246 | I137: 2.5124 | J137: 0.86381 | K137: 0.52156 | L137: 0.85304 | M137: 1.2068 | N137: 0.25541 | O137: 0.0083333 | P137: 0.20318 | Q137: 0.61582 | R137: 0.49327 | S137: 0.098453 | T137: 0.49894 | U137: 0.85007 | V137: 0.36735 | W137: 0.0083333 | X137: 0.34133 | Y137: 0.72209 | Z137: 0.32929 | AA137: 0.0083333 | AB137: 0.28785 | AC137: 0.70856 | AD137: 0.30688 | AE137: 0.0083333 | AF137: 0.26708 | AG137: 0.678
A138: 10.6667 | B138: 2.5115 | C138: 2.0142 | D138: 2.4695 | E138: 3.0293 | F138: 2.4965 | G138: 2.001 | H138: 2.4534 | I138: 3.0118 | J138: 1.3231 | K138: 0.95549 | L138: 1.3169 | M138: 1.7011 | N138: 0.57358 | O138: 0.11135 | P138: 0.5717 | Q138: 0.98344 | R138: 0.87332 | S138: 0.46985 | T138: 0.87269 | U138: 1.2455 | V138: 0.90192 | W138: 0.52287 | X138: 0.89719 | Y138: 1.2832 | Z138: 0.68098 | AA138: 0.29826 | AB138: 0.67136 | AC138: 1.091 | AD138: 0.64843 | AE138: 0.23542 | AF138: 0.65049 | AG138: 1.0724
A139: 10.75 | B139: 1.7578 | C139: 1.4095 | D139: 1.7297 | E139: 2.1192 | F139: 1.7474 | G139: 1.4003 | H139: 1.7185 | I139: 2.1065 | J139: 0.92932 | K139: 0.67233 | L139: 0.92478 | M139: 1.1931 | N139: 0.40532 | O139: 0.083061 | P139: 0.40403 | Q139: 0.69147 | R139: 0.61464 | S139: 0.33312 | T139: 0.61327 | U139: 0.87397 | V139: 0.63704 | W139: 0.37297 | X139: 0.63409 | Y139: 0.90333 | Z139: 0.48039 | AA139: 0.2137 | AB139: 0.47349 | AC139: 0.76645 | AD139: 0.45761 | AE139: 0.16901 | AF139: 0.45834 | AG139: 0.75352
A140: 10.8333 | B140: 1.0733 | C140: 0.87217 | D140: 1.0604 | E140: 1.2822 | F140: 1.0677 | G140: 0.86729 | H140: 1.0553 | I140: 1.2766 | J140: 0.65017 | K140: 0.50568 | L140: 0.64344 | M140: 0.80721 | N140: 0.34615 | O140: 0.17959 | P140: 0.34594 | Q140: 0.50767 | R140: 0.46046 | S140: 0.30633 | T140: 0.46178 | U140: 0.61161 | V140: 0.5339 | W140: 0.39437 | X140: 0.53094 | Y140: 0.68906 | Z140: 0.38736 | AA140: 0.24587 | AB140: 0.38533 | AC140: 0.54562 | AD140: 0.37516 | AE140: 0.22578 | AF140: 0.3736 | AG140: 0.53688
A141: 10.9167 | B141: 0.94822 | C141: 0.7818 | D141: 0.94068 | E141: 1.1272 | F141: 0.94455 | G141: 0.77885 | H141: 0.93761 | I141: 1.1236 | J141: 0.71112 | K141: 0.57957 | L141: 0.70207 | M141: 0.85695 | N141: 0.47276 | O141: 0.35124 | P141: 0.46621 | Q141: 0.60911 | R141: 0.54752 | S141: 0.42339 | T141: 0.54019 | U141: 0.67506 | V141: 0.71112 | W141: 0.57957 | X141: 0.70207 | Y141: 0.85695 | Z141: 0.49974 | AA141: 0.37865 | AB141: 0.49383 | AC141: 0.62367 | AD141: 0.49174 | AE141: 0.36282 | AF141: 0.48983 | AG141: 0.61869
A142: 11 | B142: 0.78696 | C142: 0.63854 | D142: 0.78136 | E142: 0.93525 | F142: 0.78388 | G142: 0.63607 | H142: 0.77814 | I142: 0.93108 | J142: 0.59044 | K142: 0.47468 | L142: 0.58801 | M142: 0.70362 | N142: 0.39426 | O142: 0.29105 | P142: 0.38771 | Q142: 0.51377 | R142: 0.45452 | S142: 0.35594 | T142: 0.44992 | U142: 0.56312 | V142: 0.59044 | W142: 0.47468 | X142: 0.58801 | Y142: 0.70362 | Z142: 0.41791 | AA142: 0.31228 | AB142: 0.41132 | AC142: 0.53322 | AD142: 0.4095 | AE142: 0.3063 | AF142: 0.40517 | AG142: 0.51191
A143: 11.0833 | B143: 0.64644 | C143: 0.52452 | D143: 0.64183 | E143: 0.76824 | F143: 0.6439 | G143: 0.52249 | H143: 0.63919 | I143: 0.76481 | J143: 0.485 | K143: 0.38991 | L143: 0.48301 | M143: 0.57797 | N143: 0.32385 | O143: 0.23908 | P143: 0.31848 | Q143: 0.42203 | R143: 0.37336 | S143: 0.29238 | T143: 0.36957 | U143: 0.46257 | V143: 0.485 | W143: 0.38991 | X143: 0.48301 | Y143: 0.57797 | Z143: 0.34329 | AA143: 0.25652 | AB143: 0.33787 | AC143: 0.438 | AD143: 0.33638 | AE143: 0.2516 | AF143: 0.33282 | AG143: 0.4205
A144: 11.1667 | B144: 0.6154 | C144: 0.49379 | D144: 0.61049 | E144: 0.75487 | F144: 0.61166 | G144: 0.49106 | H144: 0.6068 | I144: 0.74974 | J144: 0.32526 | K144: 0.23938 | L144: 0.32127 | M144: 0.42269 | N144: 0.1404 | O144: 0.022907 | P144: 0.13554 | Q144: 0.24574 | R144: 0.21174 | S144: 0.12098 | T144: 0.2083 | U144: 0.31409 | V144: 0.21768 | W144: 0.13386 | X144: 0.21289 | Y144: 0.31155 | Z144: 0.16815 | AA144: 0.067556 | AB144: 0.16197 | AC144: 0.28051 | AD144: 0.15819 | AE144: 0.058225 | AF144: 0.15943 | AG144: 0.25365
A145: 11.25 | B145: 0.78385 | C145: 0.59387 | D145: 0.77044 | E145: 0.99179 | F145: 0.77702 | G145: 0.58835 | H145: 0.76484 | I145: 0.98327 | J145: 0.20755 | K145: 0.028782 | L145: 0.19197 | M145: 0.38863 | N145: 0.037688 | O145: 0.0083333 | P145: 0.0083333 | Q145: 0.11786 | R145: 0.088155 | S145: 0.0083333 | T145: 0.043863 | U145: 0.2391 | V145: 0.033766 | W145: 0.0083333 | X145: 0.0083333 | Y145: 0.10991 | Z145: 0.054141 | AA145: 0.0083333 | AB145: 0.0083333 | AC145: 0.16601 | AD145: 0.044816 | AE145: 0.0083333 | AF145: 0.0083333 | AG145: 0.14792
A146: 11.3333 | B146: 1.7459 | C146: 1.3874 | D146: 1.7217 | E146: 2.1445 | F146: 1.7335 | G146: 1.3778 | H146: 1.7099 | I146: 2.1283 | J146: 0.74749 | K146: 0.46797 | L146: 0.72725 | M146: 1.0745 | N146: 0.22328 | O146: 0.0083333 | P146: 0.17758 | Q146: 0.54086 | R146: 0.41977 | S146: 0.11291 | T146: 0.40726 | U146: 0.742 | V146: 0.31592 | W146: 0.0083333 | X146: 0.29307 | Y146: 0.62921 | Z146: 0.29434 | AA146: 0.0083333 | AB146: 0.26172 | AC146: 0.62976 | AD146: 0.26744 | AE146: 0.0083333 | AF146: 0.2486 | AG146: 0.5572
A147: 11.4167 | B147: 2.6087 | C147: 2.092 | D147: 2.5895 | E147: 3.1937 | F147: 2.5926 | G147: 2.0801 | H147: 2.5718 | I147: 3.1763 | J147: 1.3576 | K147: 0.99083 | L147: 1.338 | M147: 1.7752 | N147: 0.5696 | O147: 0.067208 | P147: 0.55505 | Q147: 1.0136 | R147: 0.87527 | S147: 0.48694 | T147: 0.86043 | U147: 1.3095 | V147: 0.88492 | W147: 0.52503 | X147: 0.86501 | Y147: 1.2894 | Z147: 0.68828 | AA147: 0.25589 | AB147: 0.66262 | AC147: 1.1697 | AD147: 0.64569 | AE147: 0.21053 | AF147: 0.65405 | AG147: 1.0563
A148: 11.5 | B148: 2.2058 | C148: 1.7534 | D148: 2.1782 | E148: 2.7094 | F148: 2.1905 | G148: 1.7415 | H148: 2.1624 | I148: 2.6915 | J148: 0.97262 | K148: 0.63471 | L148: 0.95177 | M148: 1.3757 | N148: 0.30531 | O148: 0.0083333 | P148: 0.25498 | Q148: 0.71193 | R148: 0.55844 | S148: 0.18049 | T148: 0.54408 | U148: 0.95598 | V148: 0.44346 | W148: 0.059802 | X148: 0.41933 | Y148: 0.83472 | Z148: 0.39745 | AA148: 0.0083333 | AB148: 0.36413 | AC148: 0.82387 | AD148: 0.36227 | AE148: 0.0083333 | AF148: 0.34174 | AG148: 0.73228
A149: 11.5833 | B149: 2.0755 | C149: 1.6492 | D149: 2.0457 | E149: 2.5501 | F149: 2.0608 | G149: 1.6366 | H149: 2.0316 | I149: 2.5319 | J149: 0.87905 | K149: 0.5438 | L149: 0.85422 | M149: 1.2689 | N149: 0.25739 | O149: 0.0083333 | P149: 0.19924 | Q149: 0.63121 | R149: 0.48948 | S149: 0.12144 | T149: 0.47381 | U149: 0.87636 | V149: 0.36085 | W149: 0.0083333 | X149: 0.33209 | Y149: 0.73485 | Z149: 0.34108 | AA149: 0.0083333 | AB149: 0.29876 | AC149: 0.7391 | AD149: 0.30942 | AE149: 0.0083333 | AF149: 0.28684 | AG149: 0.65487
A150: 11.6667 | B150: 2.5253 | C150: 2.0268 | D150: 2.5056 | E150: 3.0997 | F150: 2.51 | G150: 2.0156 | H150: 2.4904 | I150: 3.0788 | J150: 1.3406 | K150: 0.98754 | L150: 1.3241 | M150: 1.7389 | N150: 0.58129 | O150: 0.10212 | P150: 0.56085 | Q150: 1.0139 | R150: 0.87504 | S150: 0.50327 | T150: 0.8598 | U150: 1.2952 | V150: 0.90373 | W150: 0.56127 | X150: 0.88394 | Y150: 1.2864 | Z150: 0.69623 | AA150: 0.28553 | AB150: 0.6704 | AC150: 1.1562 | AD150: 0.65501 | AE150: 0.24946 | AF150: 0.66006 | AG150: 1.0461
A151: 11.75 | B151: 1.7675 | C151: 1.4189 | D151: 1.7535 | E151: 2.1707 | F151: 1.7569 | G151: 1.4111 | H151: 1.7425 | I151: 2.1561 | J151: 0.94156 | K151: 0.69386 | L151: 0.92901 | M151: 1.2193 | N151: 0.41077 | O151: 0.076016 | P151: 0.39565 | Q151: 0.71275 | R151: 0.6159 | S151: 0.35606 | T151: 0.60442 | U151: 0.9101 | V151: 0.63839 | W151: 0.39957 | X151: 0.62472 | Y151: 0.9048 | Z151: 0.49107 | AA151: 0.20455 | AB151: 0.47241 | AC151: 0.81174 | AD151: 0.46227 | AE151: 0.17879 | AF151: 0.46538 | AG151: 0.73517
A152: 11.8333 | B152: 1.0801 | C152: 0.87719 | D152: 1.0719 | E152: 1.3066 | F152: 1.0743 | G152: 0.87291 | H152: 1.066 | I152: 1.2994 | J152: 0.65735 | K152: 0.50628 | L152: 0.65187 | M152: 0.80932 | N152: 0.35094 | O152: 0.17619 | P152: 0.34425 | Q152: 0.52526 | R152: 0.4627 | S152: 0.32089 | T152: 0.45284 | U152: 0.63146 | V152: 0.53673 | W152: 0.40145 | X152: 0.532 | Y152: 0.68615 | Z152: 0.3947 | AA152: 0.23549 | AB152: 0.38252 | AC152: 0.57541 | AD152: 0.3792 | AE152: 0.22531 | AF152: 0.37905 | AG152: 0.52906
A153: 11.9167 | B153: 0.9556 | C153: 0.77537 | D153: 0.9488 | E153: 1.1357 | F153: 0.95186 | G153: 0.77237 | H153: 0.94489 | I153: 1.1306 | J153: 0.71696 | K153: 0.57639 | L153: 0.71402 | M153: 0.85439 | N153: 0.47874 | O153: 0.35342 | P153: 0.47079 | Q153: 0.62387 | R153: 0.55192 | S153: 0.43221 | T153: 0.54633 | U153: 0.68379 | V153: 0.71696 | W153: 0.57639 | X153: 0.71402 | Y153: 0.85439 | Z153: 0.50747 | AA153: 0.3792 | AB153: 0.49946 | AC153: 0.64748 | AD153: 0.49725 | AE153: 0.37194 | AF153: 0.492 | AG153: 0.62161
A154: 12 | B154: 0.79449 | C154: 0.64285 | D154: 0.79308 | E154: 0.9419 | F154: 0.7914 | G154: 0.64019 | H154: 0.78959 | I154: 0.93806 | J154: 0.59809 | K154: 0.47815 | L154: 0.59521 | M154: 0.71642 | N154: 0.39774 | O154: 0.29159 | P154: 0.3919 | Q154: 0.50712 | R154: 0.457 | S154: 0.34736 | T154: 0.45651 | U154: 0.56721 | V154: 0.59809 | W154: 0.47815 | X154: 0.59521 | Y154: 0.71642 | Z154: 0.42126 | AA154: 0.31226 | AB154: 0.41519 | AC154: 0.53185 | AD154: 0.41372 | AE154: 0.31021 | AF154: 0.40788 | AG154: 0.52148
A155: 12.0833 | B155: 0.65262 | C155: 0.52806 | D155: 0.65146 | E155: 0.77371 | F155: 0.65008 | G155: 0.52587 | H155: 0.64859 | I155: 0.77055 | J155: 0.49129 | K155: 0.39277 | L155: 0.48893 | M155: 0.58849 | N155: 0.32672 | O155: 0.23952 | P155: 0.32192 | Q155: 0.41656 | R155: 0.3754 | S155: 0.28533 | T155: 0.37499 | U155: 0.46593 | V155: 0.49129 | W155: 0.39277 | X155: 0.48893 | Y155: 0.58849 | Z155: 0.34603 | AA155: 0.2565 | AB155: 0.34105 | AC155: 0.43688 | AD155: 0.33984 | AE155: 0.25481 | AF155: 0.33505 | AG155: 0.42835
A156: 12.1667 | B156: 0.61843 | C156: 0.49922 | D156: 0.61588 | E156: 0.74073 | F156: 0.61467 | G156: 0.49587 | H156: 0.61157 | I156: 0.73568 | J156: 0.32746 | K156: 0.23513 | L156: 0.32661 | M156: 0.41828 | N156: 0.13889 | O156: 0.034985 | P156: 0.13392 | Q156: 0.24882 | R156: 0.20887 | S156: 0.10758 | T156: 0.20559 | U156: 0.31511 | V156: 0.21986 | W156: 0.12934 | X156: 0.21786 | Y156: 0.31116 | Z156: 0.16554 | AA156: 0.059959 | AB156: 0.16346 | AC156: 0.26055 | AD156: 0.15697 | AE156: 0.057374 | AF156: 0.15371 | AG156: 0.26163
A157: 12.25 | B157: 0.78325 | C157: 0.5996 | D157: 0.77397 | E157: 0.97587 | F157: 0.77641 | G157: 0.59339 | H157: 0.76603 | I157: 0.96776 | J157: 0.20467 | K157: 0.027331 | L157: 0.19824 | M157: 0.38026 | N157: 0.035502 | O157: 0.0083333 | P157: 0.0083333 | Q157: 0.11906 | R157: 0.08558 | S157: 0.0083333 | T157: 0.031619 | U157: 0.24685 | V157: 0.029667 | W157: 0.0083333 | X157: 0.0083333 | Y157: 0.095236 | Z157: 0.045334 | AA157: 0.0083333 | AB157: 0.0083333 | AC157: 0.13355 | AD157: 0.044973 | AE157: 0.0083333 | AF157: 0.0083333 | AG157: 0.15136
A158: 12.3333 | B158: 1.7507 | C158: 1.3811 | D158: 1.7368 | E158: 2.1197 | F158: 1.7384 | G158: 1.3717 | H158: 1.7229 | I158: 2.1048 | J158: 0.74886 | K158: 0.45321 | L158: 0.73973 | M158: 1.0347 | N158: 0.21618 | O158: 0.0083333 | P158: 0.17559 | Q158: 0.53554 | R158: 0.40986 | S158: 0.068981 | T158: 0.39441 | U158: 0.75102 | V158: 0.3167 | W158: 0.0083333 | X158: 0.28651 | Y158: 0.61882 | Z158: 0.2812 | AA158: 0.0083333 | AB158: 0.26348 | AC158: 0.57399 | AD158: 0.25913 | AE158: 0.0083333 | AF158: 0.219 | AG158: 0.58835
A159: 12.4167 | B159: 2.621 | C159: 2.1074 | D159: 2.6081 | E159: 3.1395 | F159: 2.6049 | G159: 2.0938 | H159: 2.5903 | I159: 3.122 | J159: 1.3664 | K159: 0.97318 | L159: 1.3612 | M159: 1.7513 | N159: 0.56233 | O159: 0.11547 | P159: 0.54285 | Q159: 1.0358 | R159: 0.86246 | S159: 0.4205 | T159: 0.8477 | U159: 1.3242 | V159: 0.89354 | W159: 0.50987 | X159: 0.87647 | Y159: 1.2838 | Z159: 0.67644 | AA159: 0.22218 | AB159: 0.67009 | AC159: 1.0863 | AD159: 0.63977 | AE159: 0.21766 | AF159: 0.63083 | AG159: 1.0938
A160: 12.5 | B160: 2.2125 | C160: 1.75 | D160: 2.1937 | E160: 2.6757 | F160: 2.1972 | G160: 1.7383 | H160: 2.1774 | I160: 2.6571 | J160: 0.97514 | K160: 0.60743 | L160: 0.97079 | M160: 1.3313 | N160: 0.29536 | O160: 0.0083333 | P160: 0.25926 | Q160: 0.70304 | R160: 0.54569 | S160: 0.12409 | T160: 0.52641 | U160: 0.9762 | V160: 0.44525 | W160: 0.076067 | X160: 0.4101 | Y160: 0.81847 | Z160: 0.38189 | AA160: 0.0083333 | AB160: 0.3621 | AC160: 0.75781 | AD160: 0.35251 | AE160: 0.0083333 | AF160: 0.31539 | AG160: 0.768
A161: 12.5833 | B161: 2.0811 | C161: 1.6414 | D161: 2.0632 | E161: 2.5225 | F161: 2.0663 | G161: 1.6303 | H161: 2.048 | I161: 2.5013 | J161: 0.88042 | K161: 0.52682 | L161: 0.86944 | M161: 1.2234 | N161: 0.24916 | O161: 0.0083333 | P161: 0.19782 | Q161: 0.62989 | R161: 0.47782 | S161: 0.065668 | T161: 0.45812 | U161: 0.88524 | V161: 0.3613 | W161: 0.0083333 | X161: 0.32501 | Y161: 0.72213 | Z161: 0.32514 | AA161: 0.0083333 | AB161: 0.30415 | AC161: 0.67372 | AD161: 0.29952 | AE161: 0.0083333 | AF161: 0.25006 | AG161: 0.69107
A162: 12.6667 | B162: 2.5379 | C162: 2.0511 | D162: 2.5279 | E162: 3.041 | F162: 2.5225 | G162: 2.0368 | H162: 2.5101 | I162: 3.0203 | J162: 1.3498 | K162: 0.97249 | L162: 1.3464 | M162: 1.7204 | N162: 0.57572 | O162: 0.15332 | P162: 0.5578 | Q162: 1.0276 | R162: 0.86314 | S162: 0.45138 | T162: 0.85053 | U162: 1.2961 | V162: 0.91281 | W162: 0.54064 | X162: 0.90597 | Y162: 1.2873 | Z162: 0.68593 | AA162: 0.25489 | AB162: 0.67917 | AC162: 1.0742 | AD162: 0.6506 | AE162: 0.24385 | AF162: 0.63752 | AG162: 1.0805
A163: 12.75 | B163: 1.7764 | C163: 1.437 | D163: 1.7696 | E163: 2.1292 | F163: 1.7657 | G163: 1.4265 | H163: 1.7573 | I163: 2.1148 | J163: 0.94809 | K163: 0.68478 | L163: 0.94482 | M163: 1.2068 | N163: 0.40698 | O163: 0.11372 | P163: 0.39423 | Q163: 0.72268 | R163: 0.60766 | S163: 0.32074 | T163: 0.59878 | U163: 0.90921 | V163: 0.64484 | W163: 0.38459 | X163: 0.63939 | Y163: 0.90661 | Z163: 0.48401 | AA163: 0.18328 | AB163: 0.47953 | AC163: 0.75551 | AD163: 0.45931 | AE163: 0.17538 | AF163: 0.45048 | AG163: 0.75885
A164: 12.8333 | B164: 1.0872 | C164: 0.88361 | D164: 1.0831 | E164: 1.2954 | F164: 1.0815 | G164: 0.87823 | H164: 1.077 | I164: 1.2875 | J164: 0.66361 | K164: 0.50897 | L164: 0.66467 | M164: 0.81394 | N164: 0.35057 | O164: 0.1911 | P164: 0.34158 | Q164: 0.5218 | R164: 0.46046 | S164: 0.29745 | T164: 0.45623 | U164: 0.62168 | V164: 0.54296 | W164: 0.39918 | X164: 0.54552 | Y164: 0.6896 | Z164: 0.39404 | AA164: 0.23479 | AB164: 0.39341 | AC164: 0.5482 | AD164: 0.38007 | AE164: 0.21913 | AF164: 0.37661 | AG164: 0.54567
A165: 12.9167 | B165: 0.96474 | C165: 0.78061 | D165: 0.96302 | E165: 1.1437 | F165: 0.96099 | G165: 0.77737 | H165: 0.95878 | I165: 1.1391 | J165: 0.72625 | K165: 0.58061 | L165: 0.72276 | M165: 0.86994 | N165: 0.48297 | O165: 0.35407 | P165: 0.47588 | Q165: 0.61579 | R165: 0.55493 | S165: 0.4218 | T165: 0.55433 | U165: 0.68876 | V165: 0.72625 | W165: 0.58061 | X165: 0.72276 | Y165: 0.86994 | Z165: 0.51153 | AA165: 0.37918 | AB165: 0.50416 | AC165: 0.64582 | AD165: 0.50237 | AE165: 0.37668 | AF165: 0.49528 | AG165: 0.63322
A166: 13 | B166: 0.7936 | C166: 0.64628 | D166: 0.78551 | E166: 0.94203 | F166: 0.79048 | G166: 0.64375 | H166: 0.78258 | I166: 0.93817 | J166: 0.59663 | K166: 0.48342 | L166: 0.59239 | M166: 0.71928 | N166: 0.39564 | O166: 0.27939 | P166: 0.38528 | Q166: 0.51241 | R166: 0.46093 | S166: 0.35895 | T166: 0.45448 | U166: 0.57551 | V166: 0.59663 | W166: 0.48342 | X166: 0.59239 | Y166: 0.71928 | Z166: 0.41736 | AA166: 0.31757 | AB166: 0.41165 | AC166: 0.52921 | AD166: 0.4139 | AE166: 0.31416 | AF166: 0.40782 | AG166: 0.528
A167: 13.0833 | B167: 0.65188 | C167: 0.53087 | D167: 0.64524 | E167: 0.77381 | F167: 0.64932 | G167: 0.5288 | H167: 0.64284 | I167: 0.77064 | J167: 0.49009 | K167: 0.3971 | L167: 0.48661 | M167: 0.59084 | N167: 0.32499 | O167: 0.2295 | P167: 0.31648 | Q167: 0.42091 | R167: 0.37862 | S167: 0.29485 | T167: 0.37332 | U167: 0.47274 | V167: 0.49009 | W167: 0.3971 | X167: 0.48661 | Y167: 0.59084 | Z167: 0.34283 | AA167: 0.26086 | AB167: 0.33814 | AC167: 0.43471 | AD167: 0.33999 | AE167: 0.25806 | AF167: 0.335 | AG167: 0.43371
A168: 13.1667 | B168: 0.61954 | C168: 0.50568 | D168: 0.61346 | E168: 0.74285 | F168: 0.61575 | G168: 0.50238 | H168: 0.60969 | I168: 0.73754 | J168: 0.3299 | K168: 0.24662 | L168: 0.32584 | M168: 0.43058 | N168: 0.13901 | O168: 0.03094 | P168: 0.13382 | Q168: 0.24669 | R168: 0.21557 | S168: 0.12098 | T168: 0.20758 | U168: 0.32016 | V168: 0.21928 | W168: 0.13314 | X168: 0.21519 | Y168: 0.31205 | Z168: 0.16325 | AA168: 0.065045 | AB168: 0.15906 | AC168: 0.26333 | AD168: 0.15957 | AE168: 0.056206 | AF168: 0.15797 | AG168: 0.26287
A169: 13.25 | B169: 0.78748 | C169: 0.6189 | D169: 0.77327 | E169: 0.9818 | F169: 0.78058 | G169: 0.61251 | H169: 0.76643 | I169: 0.97362 | J169: 0.21233 | K169: 0.04388 | L169: 0.20244 | M169: 0.36876 | N169: 0.038566 | O169: 0.0083333 | P169: 0.0083333 | Q169: 0.12298 | R169: 0.092513 | S169: 0.0083333 | T169: 0.048305 | U169: 0.24478 | V169: 0.028682 | W169: 0.0083333 | X169: 0.0083333 | Y169: 0.093672 | Z169: 0.044292 | AA169: 0.0083333 | AB169: 0.0083333 | AC169: 0.13718 | AD169: 0.04489 | AE169: 0.0083333 | AF169: 0.0083333 | AG169: 0.1455
A170: 13.3333 | B170: 1.7562 | C170: 1.4226 | D170: 1.7355 | E170: 2.1261 | F170: 1.7438 | G170: 1.4113 | H170: 1.7244 | I170: 2.108 | J170: 0.76042 | K170: 0.47752 | L170: 0.74239 | M170: 1.0499 | N170: 0.22096 | O170: 0.0083333 | P170: 0.15316 | Q170: 0.54374 | R170: 0.42953 | S170: 0.10372 | T170: 0.3928 | U170: 0.77146 | V170: 0.31842 | W170: 0.016408 | X170: 0.29765 | Y170: 0.60832 | Z170: 0.27583 | AA170: 0.0083333 | AB170: 0.24936 | AC170: 0.59156 | AD170: 0.26906 | AE170: 0.0083333 | AF170: 0.23902 | AG170: 0.57809
A171: 13.4167 | B171: 2.626 | C171: 2.1403 | D171: 2.6 | E171: 3.1469 | F171: 2.6098 | G171: 2.1274 | H171: 2.5836 | I171: 3.1272 | J171: 1.3773 | K171: 1.0197 | L171: 1.3581 | M171: 1.8081 | N171: 0.56325 | O171: 0.10162 | P171: 0.53934 | Q171: 1.0305 | R171: 0.89133 | S171: 0.48213 | T171: 0.85904 | U171: 1.343 | V171: 0.89116 | W171: 0.52155 | X171: 0.87547 | Y171: 1.2933 | Z171: 0.66698 | AA171: 0.24086 | AB171: 0.65112 | AC171: 1.0966 | AD171: 0.65117 | AE171: 0.20648 | AF171: 0.64207 | AG171: 1.0952
A172: 13.5 | B172: 2.2191 | C172: 1.7956 | D172: 2.1976 | E172: 2.6824 | F172: 2.2036 | G172: 1.7836 | H172: 2.1796 | I172: 2.6645 | J172: 0.98899 | K172: 0.64352 | L172: 0.9684 | M172: 1.3631 | N172: 0.30129 | O172: 0.0083333 | P172: 0.22782 | Q172: 0.71373 | R172: 0.57107 | S172: 0.16563 | T172: 0.52517 | U172: 0.9958 | V172: 0.44743 | W172: 0.084998 | X172: 0.42633 | Y172: 0.81075 | Z172: 0.37507 | AA172: 0.0083333 | AB172: 0.35352 | AC172: 0.77304 | AD172: 0.3655 | AE172: 0.0083333 | AF172: 0.33722 | AG172: 0.7542
A173: 13.5833 | B173: 2.0878 | C173: 1.6907 | D173: 2.0604 | E173: 2.5256 | F173: 2.0729 | G173: 1.6757 | H173: 2.0462 | I173: 2.504 | J173: 0.89441 | K173: 0.55582 | L173: 0.87453 | M173: 1.2356 | N173: 0.25476 | O173: 0.0083333 | P173: 0.1713 | Q173: 0.63689 | R173: 0.501 | S173: 0.11272 | T173: 0.4585 | U173: 0.91125 | V173: 0.36333 | W173: 0.0083333 | X173: 0.33577 | Y173: 0.71054 | Z173: 0.31871 | AA173: 0.0083333 | AB173: 0.28657 | AC173: 0.69374 | AD173: 0.31112 | AE173: 0.0083333 | AF173: 0.27096 | AG173: 0.68057
A174: 13.6667 | B174: 2.5423 | C174: 2.0755 | D174: 2.5196 | E174: 3.0474 | F174: 2.5269 | G174: 2.0623 | H174: 2.5038 | I174: 3.0271 | J174: 1.3596 | K174: 1.0178 | L174: 1.3428 | M174: 1.7712 | N174: 0.5756 | O174: 0.13357 | P174: 0.5564 | Q174: 1.0179 | R174: 0.8908 | S174: 0.50334 | T174: 0.85827 | U174: 1.3178 | V174: 0.91041 | W174: 0.55885 | X174: 0.89491 | Y174: 1.2855 | Z174: 0.67627 | AA174: 0.27476 | AB174: 0.66098 | AC174: 1.0858 | AD174: 0.66102 | AE174: 0.24035 | AF174: 0.65597 | AG174: 1.084
A175: 13.75 | B175: 1.7795 | C175: 1.4533 | D175: 1.765 | E175: 2.1321 | F175: 1.7687 | G175: 1.444 | H175: 1.7538 | I175: 2.1184 | J175: 0.95491 | K175: 0.71539 | L175: 0.94256 | M175: 1.2421 | N175: 0.40682 | O175: 0.097181 | P175: 0.3935 | Q175: 0.71552 | R175: 0.62696 | S175: 0.35616 | T175: 0.60431 | U175: 0.92577 | V175: 0.64314 | W175: 0.39865 | X175: 0.63227 | Y175: 0.9026 | Z175: 0.47719 | AA175: 0.19669 | AB175: 0.46633 | AC175: 0.7631 | AD175: 0.46654 | AE175: 0.17306 | AF175: 0.46337 | AG175: 0.76182
A176: 13.8333 | B176: 1.088 | C176: 0.88884 | D176: 1.0775 | E176: 1.2974 | F176: 1.0822 | G176: 0.88437 | H176: 1.0718 | I176: 1.2899 | J176: 0.66563 | K176: 0.52717 | L176: 0.65982 | M176: 0.82555 | N176: 0.34901 | O176: 0.17954 | P176: 0.3425 | Q176: 0.52177 | R176: 0.47016 | S176: 0.32161 | T176: 0.45482 | U176: 0.64767 | V176: 0.54158 | W176: 0.4035 | X176: 0.52983 | Y176: 0.68777 | Z176: 0.38927 | AA176: 0.23791 | AB176: 0.37923 | AC176: 0.55252 | AD176: 0.38283 | AE176: 0.22596 | AF176: 0.37686 | AG176: 0.55619
A177: 13.9167 | B177: 0.96366 | C177: 0.78477 | D177: 0.95384 | E177: 1.1439 | F177: 0.95987 | G177: 0.7817 | H177: 0.95028 | I177: 1.1392 | J177: 0.72448 | K177: 0.58702 | L177: 0.71934 | M177: 0.87341 | N177: 0.48041 | O177: 0.33926 | P177: 0.46783 | Q177: 0.62222 | R177: 0.5597 | S177: 0.43587 | T177: 0.55187 | U177: 0.69883 | V177: 0.72448 | W177: 0.58702 | X177: 0.71934 | Y177: 0.87341 | Z177: 0.5068 | AA177: 0.38562 | AB177: 0.49986 | AC177: 0.64261 | AD177: 0.50259 | AE177: 0.38148 | AF177: 0.49521 | AG177: 0.64114
A178: 14 | B178: 0.78435 | C178: 0.64247 | D178: 0.77369 | E178: 0.93917 | F178: 0.7813 | G178: 0.63957 | H178: 0.77169 | I178: 0.93565 | J178: 0.59081 | K178: 0.48108 | L178: 0.58576 | M178: 0.71391 | N178: 0.39121 | O178: 0.29056 | P178: 0.38691 | Q178: 0.49784 | R178: 0.45061 | S178: 0.3469 | T178: 0.44275 | U178: 0.57054 | V178: 0.59081 | W178: 0.48108 | X178: 0.58576 | Y178: 0.71391 | Z178: 0.41895 | AA178: 0.31511 | AB178: 0.41228 | AC178: 0.53196 | AD178: 0.40818 | AE178: 0.30672 | AF178: 0.40208 | AG178: 0.52933
A179: 14.0833 | B179: 0.64429 | C179: 0.52774 | D179: 0.63553 | E179: 0.77146 | F179: 0.64179 | G179: 0.52536 | H179: 0.63389 | I179: 0.76857 | J179: 0.48531 | K179: 0.39518 | L179: 0.48116 | M179: 0.58642 | N179: 0.32135 | O179: 0.23867 | P179: 0.31782 | Q179: 0.40894 | R179: 0.37014 | S179: 0.28495 | T179: 0.36369 | U179: 0.46866 | V179: 0.48531 | W179: 0.39518 | X179: 0.48116 | Y179: 0.58642 | Z179: 0.34413 | AA179: 0.25884 | AB179: 0.33866 | AC179: 0.43697 | AD179: 0.33529 | AE179: 0.25195 | AF179: 0.33028 | AG179: 0.4348
A180: 14.1667 | B180: 0.61253 | C180: 0.48899 | D180: 0.6043 | E180: 0.73519 | F180: 0.60883 | G180: 0.48591 | H180: 0.60019 | I180: 0.73088 | J180: 0.32557 | K180: 0.23839 | L180: 0.31806 | M180: 0.42762 | N180: 0.13708 | O180: 0.029864 | P180: 0.13192 | Q180: 0.23912 | R180: 0.20729 | S180: 0.10328 | T180: 0.20516 | U180: 0.3079 | V180: 0.22506 | W180: 0.13487 | X180: 0.22232 | Y180: 0.31222 | Z180: 0.16954 | AA180: 0.063651 | AB180: 0.16878 | AC180: 0.27914 | AD180: 0.15703 | AE180: 0.045598 | AF180: 0.15363 | AG180: 0.27048
A181: 14.25 | B181: 0.7789 | C181: 0.59145 | D181: 0.76518 | E181: 0.97734 | F181: 0.77215 | G181: 0.58605 | H181: 0.75971 | I181: 0.97032 | J181: 0.20791 | K181: 0.035213 | L181: 0.20219 | M181: 0.39395 | N181: 0.035946 | O181: 0.0083333 | P181: 0.0083333 | Q181: 0.12282 | R181: 0.088045 | S181: 0.0083333 | T181: 0.034691 | U181: 0.23738 | V181: 0.035621 | W181: 0.0083333 | X181: 0.0083333 | Y181: 0.11374 | Z181: 0.056529 | AA181: 0.0083333 | AB181: 0.0083333 | AC181: 0.1908 | AD181: 0.048028 | AE181: 0.0083333 | AF181: 0.0083333 | AG181: 0.17027
A182: 14.3333 | B182: 1.7366 | C182: 1.3624 | D182: 1.7222 | E182: 2.123 | F182: 1.7244 | G182: 1.35 | H182: 1.7098 | I182: 2.1105 | J182: 0.74839 | K182: 0.44962 | L182: 0.73234 | M182: 1.0948 | N182: 0.21465 | O182: 0.0083333 | P182: 0.16653 | Q182: 0.53383 | R182: 0.40731 | S182: 0.05759 | T182: 0.39178 | U182: 0.73751 | V182: 0.34407 | W182: 0.021132 | X182: 0.33884 | Y182: 0.62497 | Z182: 0.29956 | AA182: 0.0083333 | AB182: 0.27832 | AC182: 0.63483 | AD182: 0.26604 | AE182: 0.0083333 | AF182: 0.22448 | AG182: 0.60816
A183: 14.4167 | B183: 2.5964 | C183: 2.0732 | D183: 2.5601 | E183: 3.1194 | F183: 2.5805 | G183: 2.0627 | H183: 2.5445 | I183: 3.1009 | J183: 1.3589 | K183: 0.98582 | L183: 1.3255 | M183: 1.7915 | N183: 0.55536 | O183: 0.099679 | P183: 0.53487 | Q183: 0.9936 | R183: 0.8562 | S183: 0.41293 | T183: 0.84394 | U183: 1.2878 | V183: 0.91729 | W183: 0.53161 | X183: 0.91209 | Y183: 1.29 | Z183: 0.69428 | AA183: 0.23622 | AB183: 0.69027 | AC183: 1.1668 | AD183: 0.64067 | AE183: 0.16836 | AF183: 0.62922 | AG183: 1.1232
A184: 14.5 | B184: 2.1943 | C184: 1.7215 | D184: 2.1718 | E184: 2.6786 | F184: 2.1791 | G184: 1.7097 | H184: 2.1573 | I184: 2.6671 | J184: 0.97376 | K184: 0.61162 | L184: 0.95385 | M184: 1.3993 | N184: 0.29344 | O184: 0.0083333 | P184: 0.24686 | Q184: 0.69836 | R184: 0.54199 | S184: 0.11165 | T184: 0.52198 | U184: 0.95281 | V184: 0.47856 | W184: 0.090072 | X184: 0.47906 | Y184: 0.83142 | Z184: 0.40441 | AA184: 0.0083333 | AB184: 0.38203 | AC184: 0.82296 | AD184: 0.36035 | AE184: 0.0083333 | AF184: 0.318 | AG184: 0.7903
A185: 14.5833 | B185: 2.0645 | C185: 1.6176 | D185: 2.0474 | E185: 2.5237 | F185: 2.0499 | G185: 1.6035 | H185: 2.0324 | I185: 2.5071 | J185: 0.88013 | K185: 0.52139 | L185: 0.86065 | M185: 1.2914 | N185: 0.24734 | O185: 0.0083333 | P185: 0.18626 | Q185: 0.62741 | R185: 0.47498 | S185: 0.055139 | T185: 0.45587 | U185: 0.87182 | V185: 0.39444 | W185: 0.0083333 | X185: 0.38727 | Y185: 0.73014 | Z185: 0.34721 | AA185: 0.0083333 | AB185: 0.32085 | AC185: 0.74519 | AD185: 0.30788 | AE185: 0.0083333 | AF185: 0.25682 | AG185: 0.71555
A186: 14.6667 | B186: 2.5136 | C186: 2.0071 | D186: 2.4801 | E186: 3.016 | F186: 2.4984 | G186: 1.9943 | H186: 2.4633 | I186: 2.9984 | J186: 1.3419 | K186: 0.98537 | L186: 1.3106 | M186: 1.7599 | N186: 0.56774 | O186: 0.13068 | P186: 0.55181 | Q186: 0.98678 | R186: 0.85679 | S186: 0.43178 | T186: 0.84741 | U186: 1.2678 | V186: 0.9337 | W186: 0.56512 | X186: 0.92124 | Y186: 1.2906 | Z186: 0.70179 | AA186: 0.26906 | AB186: 0.69989 | AC186: 1.1495 | AD186: 0.65048 | AE186: 0.19475 | AF186: 0.63671 | AG186: 1.1153
A187: 14.75 | B187: 1.7593 | C187: 1.4051 | D187: 1.7355 | E187: 2.1105 | F187: 1.7488 | G187: 1.3962 | H187: 1.7241 | I187: 2.0982 | J187: 0.94247 | K187: 0.69379 | L187: 0.92067 | M187: 1.2347 | N187: 0.40128 | O187: 0.097144 | P187: 0.39057 | Q187: 0.69377 | R187: 0.60317 | S187: 0.30666 | T187: 0.5966 | U187: 0.89019 | V187: 0.6592 | W187: 0.40208 | X187: 0.64997 | Y187: 0.90862 | Z187: 0.49494 | AA187: 0.19272 | AB187: 0.49337 | AC187: 0.80688 | AD187: 0.45911 | AE187: 0.14058 | AF187: 0.44902 | AG187: 0.78417
A188: 14.8333 | B188: 1.0756 | C188: 0.87603 | D188: 1.0648 | E188: 1.2816 | F188: 1.0699 | G188: 0.87029 | H188: 1.059 | I188: 1.2736 | J188: 0.65788 | K188: 0.51257 | L188: 0.64635 | M188: 0.82785 | N188: 0.34542 | O188: 0.18211 | P188: 0.34104 | Q188: 0.51483 | R188: 0.45576 | S188: 0.29798 | T188: 0.45473 | U188: 0.61861 | V188: 0.54518 | W188: 0.40075 | X188: 0.53831 | Y188: 0.69343 | Z188: 0.39694 | AA188: 0.23514 | AB188: 0.39254 | AC188: 0.57386 | AD188: 0.37703 | AE188: 0.21123 | AF188: 0.36929 | AG188: 0.54985
A189: 14.9167 | B189: 0.95243 | C189: 0.78014 | D189: 0.93949 | E189: 1.1404 | F189: 0.94873 | G189: 0.77662 | H189: 0.93705 | I189: 1.1361 | J189: 0.71741 | K189: 0.58417 | L189: 0.71128 | M189: 0.86688 | N189: 0.47503 | O189: 0.35282 | P189: 0.46982 | Q189: 0.60453 | R189: 0.54717 | S189: 0.42123 | T189: 0.53763 | U189: 0.6928 | V189: 0.71741 | W189: 0.58417 | X189: 0.71128 | Y189: 0.86688 | Z189: 0.50872 | AA189: 0.38263 | AB189: 0.50063 | AC189: 0.64595 | AD189: 0.49565 | AE189: 0.37245 | AF189: 0.48824 | AG189: 0.64275
A190: 15 | B190: 0.78264 | C190: 0.64547 | D190: 0.77387 | E190: 0.93776 | F190: 0.77962 | G190: 0.64328 | H190: 0.77089 | I190: 0.93323 | J190: 0.58858 | K190: 0.4775 | L190: 0.58579 | M190: 0.70805 | N190: 0.39083 | O190: 0.29079 | P190: 0.38562 | Q190: 0.49871 | R190: 0.44897 | S190: 0.34879 | T190: 0.44043 | U190: 0.56469 | V190: 0.58858 | W190: 0.4775 | X190: 0.58579 | Y190: 0.70805 | Z190: 0.41663 | AA190: 0.31038 | AB190: 0.4073 | AC190: 0.53308 | AD190: 0.40569 | AE190: 0.30011 | AF190: 0.40109 | AG190: 0.52452
A191: 15.0833 | B191: 0.64289 | C191: 0.5302 | D191: 0.63568 | E191: 0.77031 | F191: 0.6404 | G191: 0.52841 | H191: 0.63323 | I191: 0.76658 | J191: 0.48348 | K191: 0.39224 | L191: 0.48119 | M191: 0.58161 | N191: 0.32104 | O191: 0.23886 | P191: 0.31676 | Q191: 0.40965 | R191: 0.36879 | S191: 0.2865 | T191: 0.36178 | U191: 0.46385 | V191: 0.48348 | W191: 0.39224 | X191: 0.48119 | Y191: 0.58161 | Z191: 0.34223 | AA191: 0.25496 | AB191: 0.33457 | AC191: 0.43789 | AD191: 0.33324 | AE191: 0.24652 | AF191: 0.32947 | AG191: 0.43086
A192: 15.1667 | B192: 0.61298 | C192: 0.49883 | D192: 0.6044 | E192: 0.73951 | F192: 0.60931 | G192: 0.49623 | H192: 0.6009 | I192: 0.73408 | J192: 0.32223 | K192: 0.23288 | L192: 0.3217 | M192: 0.4222 | N192: 0.1384 | O192: 0.03297 | P192: 0.13353 | Q192: 0.24848 | R192: 0.2078 | S192: 0.10883 | T192: 0.20624 | U192: 0.30664 | V192: 0.21864 | W192: 0.13371 | X192: 0.21727 | Y192: 0.30309 | Z192: 0.16882 | AA192: 0.066069 | AB192: 0.16498 | AC192: 0.27848 | AD192: 0.15601 | AE192: 0.04311 | AF192: 0.15269 | AG192: 0.26023
A193: 15.25 | B193: 0.78222 | C193: 0.59893 | D193: 0.76835 | E193: 0.97304 | F193: 0.77552 | G193: 0.59229 | H193: 0.76265 | I193: 0.96595 | J193: 0.20176 | K193: 0.032825 | L193: 0.19321 | M193: 0.37512 | N193: 0.036157 | O193: 0.0083333 | P193: 0.0083333 | Q193: 0.12806 | R193: 0.08772 | S193: 0.0083333 | T193: 0.052984 | U193: 0.22405 | V193: 0.031197 | W193: 0.0083333 | X193: 0.0083333 | Y193: 0.11071 | Z193: 0.054193 | AA193: 0.0083333 | AB193: 0.0083333 | AC193: 0.16516 | AD193: 0.04714 | AE193: 0.0083333 | AF193: 0.0083333 | AG193: 0.1483
A194: 15.3333 | B194: 1.7402 | C194: 1.3837 | D194: 1.7155 | E194: 2.1126 | F194: 1.7281 | G194: 1.3721 | H194: 1.7062 | I194: 2.0983 | J194: 0.73683 | K194: 0.44942 | L194: 0.72617 | M194: 1.0471 | N194: 0.21706 | O194: 0.0083333 | P194: 0.16359 | Q194: 0.54687 | R194: 0.41218 | S194: 0.082829 | T194: 0.41045 | U194: 0.72622 | V194: 0.32273 | W194: 0.0083333 | X194: 0.30748 | Y194: 0.62081 | Z194: 0.29719 | AA194: 0.0083333 | AB194: 0.26987 | AC194: 0.63813 | AD194: 0.26413 | AE194: 0.0083333 | AF194: 0.21976 | AG194: 0.57894
A195: 15.4167 | B195: 2.5985 | C195: 2.1135 | D195: 2.5605 | E195: 3.134 | F195: 2.5828 | G195: 2.1027 | H195: 2.548 | I195: 3.1146 | J195: 1.3445 | K195: 0.96494 | L195: 1.3396 | M195: 1.7688 | N195: 0.56102 | O195: 0.1054 | P195: 0.54103 | Q195: 1.0336 | R195: 0.85868 | S195: 0.4366 | T195: 0.85365 | U195: 1.2814 | V195: 0.88936 | W195: 0.52365 | X195: 0.88129 | Y195: 1.2546 | Z195: 0.69143 | AA195: 0.25112 | AB195: 0.67207 | AC195: 1.163 | AD195: 0.63652 | AE195: 0.15111 | AF195: 0.61893 | AG195: 1.0774
A196: 15.5 | B196: 2.1984 | C196: 1.7492 | D196: 2.1729 | E196: 2.6646 | F196: 2.1834 | G196: 1.7344 | H196: 2.1587 | I196: 2.6457 | J196: 0.95949 | K196: 0.60093 | L196: 0.95126 | M196: 1.3527 | N196: 0.29771 | O196: 0.0083333 | P196: 0.24219 | Q196: 0.71759 | R196: 0.54768 | S196: 0.14376 | T196: 0.54803 | U196: 0.93641 | V196: 0.45174 | W196: 0.062323 | X196: 0.43362 | Y196: 0.82726 | Z196: 0.40059 | AA196: 0.0083333 | AB196: 0.3732 | AC196: 0.83277 | AD196: 0.35828 | AE196: 0.0083333 | AF196: 0.31857 | AG196: 0.7541
A197: 15.5833 | B197: 2.0689 | C197: 1.6422 | D197: 2.0385 | E197: 2.5145 | F197: 2.0544 | G197: 1.6282 | H197: 2.0274 | I197: 2.4972 | J197: 0.86628 | K197: 0.52086 | L197: 0.85457 | M197: 1.2372 | N197: 0.24976 | O197: 0.0083333 | P197: 0.18018 | Q197: 0.63986 | R197: 0.48091 | S197: 0.085534 | T197: 0.47715 | U197: 0.85595 | V197: 0.36916 | W197: 0.0083333 | X197: 0.34798 | Y197: 0.72463 | Z197: 0.3447 | AA197: 0.0083333 | AB197: 0.31044 | AC197: 0.74961 | AD197: 0.30547 | AE197: 0.0083333 | AF197: 0.25126 | AG197: 0.68061
A198: 15.6667 | B198: 2.5153 | C198: 2.0473 | D198: 2.4796 | E198: 3.0338 | F198: 2.5003 | G198: 2.036 | H198: 2.4667 | I198: 3.0133 | J198: 1.3282 | K198: 0.96235 | L198: 1.3257 | M198: 1.7351 | N198: 0.57375 | O198: 0.14358 | P198: 0.5557 | Q198: 1.0253 | R198: 0.85877 | S198: 0.45389 | T198: 0.85229 | U198: 1.2637 | V198: 0.90757 | W198: 0.56008 | X198: 0.90108 | Y198: 1.2514 | Z198: 0.69905 | AA198: 0.27823 | AB198: 0.68505 | AC198: 1.1473 | AD198: 0.64636 | AE198: 0.18589 | AF198: 0.6337 | AG198: 1.0754
A199: 15.75 | B199: 1.7605 | C199: 1.4331 | D199: 1.7357 | E199: 2.1225 | F199: 1.7501 | G199: 1.425 | H199: 1.7264 | I199: 2.1097 | J199: 0.93295 | K199: 0.67766 | L199: 0.93079 | M199: 1.2164 | N199: 0.40551 | O199: 0.10562 | P199: 0.39257 | Q199: 0.72085 | R199: 0.6045 | S199: 0.32161 | T199: 0.59969 | U199: 0.88746 | V199: 0.64102 | W199: 0.39727 | X199: 0.63786 | Y199: 0.88019 | Z199: 0.49303 | AA199: 0.19871 | AB199: 0.48351 | AC199: 0.80614 | AD199: 0.45622 | AE199: 0.13512 | AF199: 0.44692 | AG199: 0.75696
A200: 15.8333 | B200: 1.0752 | C200: 0.87676 | D200: 1.0584 | E200: 1.2871 | F200: 1.0696 | G200: 0.87321 | H200: 1.0538 | I200: 1.2812 | J200: 0.65303 | K200: 0.50099 | L200: 0.64419 | M200: 0.81179 | N200: 0.34761 | O200: 0.19215 | P200: 0.34012 | Q200: 0.51164 | R200: 0.45549 | S200: 0.29584 | T200: 0.4546 | U200: 0.6165 | V200: 0.53688 | W200: 0.40313 | X200: 0.52984 | Y200: 0.6732 | Z200: 0.39544 | AA200: 0.23025 | AB200: 0.38616 | AC200: 0.5718 | AD200: 0.37514 | AE200: 0.20256 | AF200: 0.36579 | AG200: 0.54491
... 2210 more rows
